Workbook

Sheet Main
B10: 2020-08-10
B12: Sheet No. | C12: Template Name | D12: Summary
B13: 1 | C13: Future Intra | D13: For Intraday trading in F&O segment
B14: 2 | C14: Cash Intra | D14: For Intraday trading in cash market segment
B15: 3 | C15: Mid-cap Intra | D15: For Intraday trading in Mid-cap stocks
B16: 4 | C16: Bulk Deals | D16: Reveals Bulk Deals carried on NSE & BSE
B17: 5 | C17: Call Tracker
K27: `

Sheet Future Intra
M5: Back to Main Page
A6: FOR INTRA DAY TRADING | L6: =Main!B10 -> 2020-08-10
A9: Sr.no | B9: Sector | C9: Scrip | D9: CLOSE RATE | E9: Pivot Point | F9: Supports | I9: Resistances
B10: Sector | D10: Point | E10: Point | F10: S1 | G10: S2 | H10: S3 | I10: R1 | J10: R2 | K10: R3 | L10: HIGH | M10: LOW | N10: OI | O10: % Change in OI
A11: 1 | B11: Index | C11: BANKNIFTY | D11: 21771.35 | E11: 21680.62 | F11: 21526.23 | G11: 21281.12 | H11: 21126.73 | I11: 21925.73 | J11: 22080.12 | K11: 22325.23 | L11: 21835 | M11: 21435.5 | N11: 1408575 | O11: 4.36%
A12: 2 | B12: Index | C12: NIFTY | D12: 11226.20 | E12: 11206.07 | F12: 11162.13 | G12: 11098.07 | H12: 11054.13 | I12: 11270.13 | J12: 11314.07 | K12: 11378.13 | L12: 11250 | M12: 11142 | N12: 11373600 | O12: 1.72%
A13: 3 | B13: Cement | C13: ACC | D13: 1402.35 | E13: 1409.67 | F13: 1390.33 | G13: 1378.32 | H13: 1358.98 | I13: 1421.68 | J13: 1441.02 | K13: 1453.03 | L13: 1429 | M13: 1397.65 | N13: 2540000 | O13: -0.59%
A14: 4 | B14: Others | C14: ADANIENT | D14: 193.70 | E14: 189.97 | F14: 184.23 | G14: 174.77 | H14: 169.03 | I14: 199.43 | J14: 205.17 | K14: 214.63 | L14: 195.7 | M14: 180.5 | N14: 18656000 | O14: 8.16%
A15: 5 | B15: Others | C15: ADANIPORTS | D15: 328.10 | E15: 326.70 | F15: 324.10 | G15: 320.10 | H15: 317.50 | I15: 330.70 | J15: 333.30 | K15: 337.30 | L15: 329.3 | M15: 322.7 | N15: 32090000 | O15: 0.36%
A16: 6 | B16: Automobile | C16: AMARAJABAT | D16: 722.30 | E16: 723.13 | F16: 716.27 | G16: 710.23 | H16: 703.37 | I16: 729.17 | J16: 736.03 | K16: 742.07 | L16: 730 | M16: 717.1 | N16: 1326000 | O16: 3.76%
A17: 7 | B17: Cement | C17: AMBUJACEM | D17: 220.75 | E17: 222.23 | F17: 218.22 | G17: 215.68 | H17: 211.67 | I17: 224.77 | J17: 228.78 | K17: 231.32 | L17: 226.25 | M17: 219.7 | N17: 17517000 | O17: -1.96%
A18: 8 | B18: Others | C18: APOLLOHOSP | D18: 1736.10 | E18: 1726.98 | F18: 1704.12 | G18: 1672.13 | H18: 1649.27 | I18: 1758.97 | J18: 1781.83 | K18: 1813.82 | L18: 1749.85 | M18: 1695 | N18: 1191000 | O18: 0.46%
A19: 9 | B19: Automobile | C19: APOLLOTYRE | D19: 124.10 | E19: 121.62 | F19: 117.58 | G19: 111.07 | H19: 107.03 | I19: 128.13 | J19: 132.17 | K19: 138.68 | L19: 125.65 | M19: 115.1 | N19: 16560000 | O19: 9.56%
A20: 10 | B20: Automobile | C20: ASHOKLEY | D20: 50.20 | E20: 49.98 | F20: 49.27 | G20: 48.33 | H20: 47.62 | I20: 50.92 | J20: 51.63 | K20: 52.57 | L20: 50.7 | M20: 49.05 | N20: 48780000 | O20: -1.53%
A21: 11 | B21: FMCG | C21: ASIANPAINT | D21: 1808.30 | E21: 1785.40 | F21: 1753.00 | G21: 1697.70 | H21: 1665.30 | I21: 1840.70 | J21: 1873.10 | K21: 1928.40 | L21: 1817.8 | M21: 1730.1 | N21: 5173200 | O21: -1.58%
A22: 12 | B22: Pharma | C22: AUROPHARMA | D22: 908.95 | E22: 910.15 | F22: 897.40 | G22: 885.85 | H22: 873.10 | I22: 921.70 | J22: 934.45 | K22: 946.00 | L22: 922.9 | M22: 898.6 | N22: 14557400 | O22: -3.19%
A23: 13 | B23: Banking | C23: AXISBANK | D23: 434.65 | E23: 433.72 | F23: 429.18 | G23: 423.72 | H23: 419.18 | I23: 439.18 | J23: 443.72 | K23: 449.18 | L23: 438.25 | M23: 428.25 | N23: 54885600 | O23: 1.37%
A24: 14 | B24: Automobile | C24: BAJAJ-AUTO | D24: 3017.90 | E24: 3013.65 | F24: 2990.85 | G24: 2963.80 | H24: 2941.00 | I24: 3040.70 | J24: 3063.50 | K24: 3090.55 | L24: 3036.45 | M24: 2986.6 | N24: 1499250 | O24: 0.86%
A25: 15 | B25: Finance | C25: BAJAJFINSV | D25: 6500.45 | E25: 6440.62 | F25: 6341.23 | G25: 6182.02 | H25: 6082.63 | I25: 6599.83 | J25: 6699.22 | K25: 6858.43 | L25: 6540 | M25: 6281.4 | N25: 853250 | O25: 3.02%
A26: 16 | B26: Finance | C26: BAJFINANCE | D26: 3478.30 | E26: 3430.12 | F26: 3365.18 | G26: 3252.07 | H26: 3187.13 | I26: 3543.23 | J26: 3608.17 | K26: 3721.28 | L26: 3495.05 | M26: 3317 | N26: 5065250 | O26: -4.43%
A27: 17 | B27: Automobile | C27: BALKRISIND | D27: 1356.20 | E27: 1364.63 | F27: 1344.27 | G27: 1332.33 | H27: 1311.97 | I27: 1376.57 | J27: 1396.93 | K27: 1408.87 | L27: 1385 | M27: 1352.7 | N27: 2546400 | O27: -0.06%
A28: 18 | B28: Banking | C28: BANDHANBNK | D28: 309.05 | E28: 307.03 | F28: 303.07 | G28: 297.08 | H28: 293.12 | I28: 313.02 | J28: 316.98 | K28: 322.97 | L28: 311 | M28: 301.05 | N28: 26730000 | O28: -4.63%
A29: 19 | B29: Banking | C29: BANKBARODA | D29: 48.65 | E29: 47.98 | F29: 46.97 | G29: 45.28 | H29: 44.27 | I29: 49.67 | J29: 50.68 | K29: 52.37 | L29: 49 | M29: 46.3 | N29: 47141800 | O29: 2.19%
A30: 20 | B30: FMCG | C30: BATAINDIA | D30: 1263.75 | E30: 1263.77 | F30: 1253.63 | G30: 1243.52 | H30: 1233.38 | I30: 1273.88 | J30: 1284.02 | K30: 1294.13 | L30: 1273.9 | M30: 1253.65 | N30: 2556400 | O30: 11.68%
A31: 21 | B31: Capital_Goods | C31: BEL | D31: 99.35 | E31: 99.53 | F31: 98.22 | G31: 97.08 | H31: 95.77 | I31: 100.67 | J31: 101.98 | K31: 103.12 | L31: 100.85 | M31: 98.4 | N31: 24669600 | O31: 0.78%
A32: 22 | B32: FMCG | C32: BERGEPAINT | D32: 558.05 | E32: 548.65 | F32: 537.30 | G32: 516.55 | H32: 505.20 | I32: 569.40 | J32: 580.75 | K32: 601.50 | L32: 560 | M32: 527.9 | N32: 3786200 | O32: 5.75%
A33: 23 | B33: Automobile | C33: BHARATFORG | D33: 409.45 | E33: 410.20 | F33: 404.70 | G33: 399.95 | H33: 394.45 | I33: 414.95 | J33: 420.45 | K33: 425.20 | L33: 415.7 | M33: 405.45 | N33: 5062500 | O33: 2.33%
A34: 24 | B34: Telecom | C34: BHARTIARTL | D34: 561.60 | E34: 560.02 | F34: 555.63 | G34: 549.67 | H34: 545.28 | I34: 565.98 | J34: 570.37 | K34: 576.33 | L34: 564.4 | M34: 554.05 | N34: 80960889 | O34: 0.16%
A35: 25 | B35: Capital_Goods | C35: BHEL | D35: 35.50 | E35: 35.38 | F35: 35.02 | G35: 34.53 | H35: 34.17 | I35: 35.87 | J35: 36.23 | K35: 36.72 | L35: 35.75 | M35: 34.9 | N35: 47397000 | O35: 4.73%
A36: 26 | B36: Pharma | C36: BIOCON | D36: 401.65 | E36: 404.28 | F36: 395.57 | G36: 389.48 | H36: 380.77 | I36: 410.37 | J36: 419.08 | K36: 425.17 | L36: 413 | M36: 398.2 | N36: 16014900 | O36: 4.91%
A37: 27 | B37: Automobile | C37: BOSCHLTD | D37: 13722.45 | E37: 13556.33 | F37: 13264.32 | G37: 12806.18 | H37: 12514.17 | I37: 14014.47 | J37: 14306.48 | K37: 14764.62 | L37: 13848.35 | M37: 13098.2 | N37: 109600 | O37: 4.68%
A38: 28 | B38: Oil_Gas | C38: BPCL | D38: 421.50 | E38: 419.17 | F38: 414.83 | G38: 408.17 | H38: 403.83 | I38: 425.83 | J38: 430.17 | K38: 436.83 | L38: 423.5 | M38: 412.5 | N38: 19197000 | O38: -4.00%
A39: 29 | B39: FMCG | C39: BRITANNIA | D39: 3931.25 | E39: 3912.57 | F39: 3881.18 | G39: 3831.12 | H39: 3799.73 | I39: 3962.63 | J39: 3994.02 | K39: 4044.08 | L39: 3943.95 | M39: 3862.5 | N39: 1344400 | O39: 1.80%
A40: 30 | B40: Pharma | C40: CADILAHC | D40: 392.15 | E40: 392.20 | F40: 388.35 | G40: 384.55 | H40: 380.70 | I40: 396.00 | J40: 399.85 | K40: 403.65 | L40: 396.05 | M40: 388.4 | N40: 9369800 | O40: -7.89%
A41: 31 | B41: Banking | C41: CANBK | D41: 101.65 | E41: 101.07 | F41: 100.13 | G41: 98.62 | H41: 97.68 | I41: 102.58 | J41: 103.52 | K41: 105.03 | L41: 102 | M41: 99.55 | N41: 14255000 | O41: -12.47%
A42: 32 | B42: Textile | C42: CENTURYTEX | D42: 322.30 | E42: 316.47 | F42: 308.63 | G42: 294.97 | H42: 287.13 | I42: 330.13 | J42: 337.97 | K42: 351.63 | L42: 324.3 | M42: 302.8 | N42: 3836000 | O42: 42.56%
A43: 33 | B43: Finance | C43: CHOLAFIN | D43: 208.85 | E43: 207.02 | F43: 203.93 | G43: 199.02 | H43: 195.93 | I43: 211.93 | J43: 215.02 | K43: 219.93 | L43: 210.1 | M43: 202.1 | N43: 5665000 | O43: -4.99%
A44: 34 | B44: Pharma | C44: CIPLA | D44: 732.35 | E44: 733.53 | F44: 725.97 | G44: 719.58 | H44: 712.02 | I44: 739.92 | J44: 747.48 | K44: 753.87 | L44: 741.1 | M44: 727.15 | N44: 15466100 | O44: 2.82%
A45: 35 | B45: Others | C45: COALINDIA | D45: 130.30 | E45: 130.05 | F45: 129.35 | G45: 128.40 | H45: 127.70 | I45: 131.00 | J45: 131.70 | K45: 132.65 | L45: 130.75 | M45: 129.1 | N45: 30088400 | O45: -0.50%
A46: 36 | B46: FMCG | C46: COLPAL | D46: 1462.50 | E46: 1458.53 | F46: 1443.02 | G46: 1423.53 | H46: 1408.02 | I46: 1478.02 | J46: 1493.53 | K46: 1513.02 | L46: 1474.05 | M46: 1439.05 | N46: 2811900 | O46: 0.98%
A47: 37 | B47: Others | C47: CONCOR | D47: 454.55 | E47: 455.97 | F47: 449.43 | G47: 444.32 | H47: 437.78 | I47: 461.08 | J47: 467.62 | K47: 472.73 | L47: 462.5 | M47: 450.85 | N47: 3998154 | O47: -0.74%
A48: 38 | B48: Capital_Goods | C48: CUMMINSIND | D48: 412.85 | E48: 409.90 | F48: 405.20 | G48: 397.55 | H48: 392.85 | I48: 417.55 | J48: 422.25 | K48: 429.90 | L48: 414.6 | M48: 402.25 | N48: 1928400 | O48: -1.11%
A49: 39 | B49: FMCG | C49: DABUR | D49: 511.55 | E49: 510.17 | F49: 507.33 | G49: 503.12 | H49: 500.28 | I49: 514.38 | J49: 517.22 | K49: 521.43 | L49: 513 | M49: 505.95 | N49: 10730000 | O49: -0.03%
A50: 40 | B50: Pharma | C50: DIVISLAB | D50: 2790.00 | E50: 2777.00 | F50: 2739.05 | G50: 2688.10 | H50: 2650.15 | I50: 2827.95 | J50: 2865.90 | K50: 2916.85 | L50: 2814.95 | M50: 2726.05 | N50: 3640800 | O50: -0.08%
A51: 41 | B51: Realty | C51: DLF | D51: 142.60 | E51: 142.93 | F51: 141.07 | G51: 139.53 | H51: 137.67 | I51: 144.47 | J51: 146.33 | K51: 147.87 | L51: 144.8 | M51: 141.4 | N51: 25261500 | O51: 4.36%
A52: 42 | B52: Pharma | C52: DRREDDY | D52: 4590.00 | E52: 4627.57 | F52: 4542.68 | G52: 4495.37 | H52: 4410.48 | I52: 4674.88 | J52: 4759.77 | K52: 4807.08 | L52: 4712.45 | M52: 4580.25 | N52: 3177750 | O52: -1.94%
A53: 43 | B53: Automobile | C53: EICHERMOT | D53: 21782.40 | E53: 21822.73 | F53: 21468.62 | G53: 21154.83 | H53: 20800.72 | I53: 22136.52 | J53: 22490.63 | K53: 22804.42 | L53: 22176.85 | M53: 21508.95 | N53: 273560 | O53: -0.40%
A54: 44 | B54: Finance | C54: EQUITAS | D54: 50.80 | E54: 50.55 | F54: 49.85 | G54: 48.90 | H54: 48.20 | I54: 51.50 | J54: 52.20 | K54: 53.15 | L54: 51.25 | M54: 49.6 | N54: 11719200 | O54: -0.13%
A55: 45 | B55: Automobile | C55: ESCORTS | D55: 1127.75 | E55: 1130.98 | F55: 1115.47 | G55: 1103.18 | H55: 1087.67 | I55: 1143.27 | J55: 1158.78 | K55: 1171.07 | L55: 1146.5 | M55: 1118.7 | N55: 2497000 | O55: 2.07%
A56: 46 | B56: Automobile | C56: EXIDEIND | D56: 162.15 | E56: 160.92 | F56: 158.13 | G56: 154.12 | H56: 151.33 | I56: 164.93 | J56: 167.72 | K56: 171.73 | L56: 163.7 | M56: 156.9 | N56: 12250800 | O56: -2.63%
A57: 47 | B57: Banking | C57: FEDERALBNK | D57: 54.90 | E57: 54.13 | F57: 53.12 | G57: 51.33 | H57: 50.32 | I57: 55.92 | J57: 56.93 | K57: 58.72 | L57: 55.15 | M57: 52.35 | N57: 83521000 | O57: 2.32%
A58: 48 | B58: Oil_Gas | C58: GAIL | D58: 97.15 | E58: 96.87 | F58: 96.08 | G58: 95.02 | H58: 94.23 | I58: 97.93 | J58: 98.72 | K58: 99.78 | L58: 97.65 | M58: 95.8 | N58: 27877000 | O58: -4.07%
A59: 49 | B59: Pharma | C59: GLENMARK | D59: 455.50 | E59: 458.63 | F59: 448.97 | G59: 442.43 | H59: 432.77 | I59: 465.17 | J59: 474.83 | K59: 481.37 | L59: 468.3 | M59: 452.1 | N59: 6628600 | O59: 3.33%
A60: 50 | B60: Infrastructure | C60: GMRINFRA | D60: 21.30 | E60: 21.17 | F60: 20.88 | G60: 20.47 | H60: 20.18 | I60: 21.58 | J60: 21.87 | K60: 22.28 | L60: 21.45 | M60: 20.75 | N60: 84870000 | O60: 0.53%
A61: 51 | B61: FMCG | C61: GODREJCP | D61: 691.70 | E61: 694.95 | F61: 687.40 | G61: 683.10 | H61: 675.55 | I61: 699.25 | J61: 706.80 | K61: 711.10 | L61: 702.5 | M61: 690.65 | N61: 4089000 | O61: -0.97%
A62: 52 | B62: Others | C62: GODREJPROP | D62: 886.75 | E62: 890.42 | F62: 878.53 | G62: 870.32 | H62: 858.43 | I62: 898.63 | J62: 910.52 | K62: 918.73 | L62: 902.3 | M62: 882.2 | N62: 404300 | O62: 0.48%
A63: 53 | B63: Cement | C63: GRASIM | D63: 637.60 | E63: 637.23 | F63: 630.47 | G63: 623.33 | H63: 616.57 | I63: 644.37 | J63: 651.13 | K63: 658.27 | L63: 644 | M63: 630.1 | N63: 17769750 | O63: -0.35%
A64: 54 | B64: Others | C64: HAVELLS | D64: 612.50 | E64: 610.88 | F64: 607.27 | G64: 602.03 | H64: 598.42 | I64: 616.12 | J64: 619.73 | K64: 624.97 | L64: 614.5 | M64: 605.65 | N64: 5419000 | O64: 0.41%
A65: 55 | B65: Technology | C65: HCLTECH | D65: 693.05 | E65: 694.32 | F65: 687.18 | G65: 681.32 | H65: 674.18 | I65: 700.18 | J65: 707.32 | K65: 713.18 | L65: 701.45 | M65: 688.45 | N65: 17116400 | O65: 0.97%
A66: 56 | B66: Finance | C66: HDFC | D66: 1786.75 | E66: 1780.77 | F66: 1770.78 | G66: 1754.82 | H66: 1744.83 | I66: 1796.73 | J66: 1806.72 | K66: 1822.68 | L66: 1790.75 | M66: 1764.8 | N66: 30435600 | O66: 3.35%
A67: 57 | B67: Banking | C67: HDFCBANK | D67: 1042.90 | E67: 1036.83 | F67: 1027.27 | G67: 1011.63 | H67: 1002.07 | I67: 1052.47 | J67: 1062.03 | K67: 1077.67 | L67: 1046.4 | M67: 1021.2 | N67: 35371600 | O67: 0.77%
A68: 58 | B68: Finance | C68: HDFCLIFE | D68: 610.15 | E68: 611.23 | F68: 607.02 | G68: 603.88 | H68: 599.67 | I68: 614.37 | J68: 618.58 | K68: 621.72 | L68: 615.45 | M68: 608.1 | N68: 10941700 | O68: 0.69%
A69: 59 | B69: Automobile | C69: HEROMOTOCO | D69: 2718.30 | E69: 2709.77 | F69: 2685.63 | G69: 2652.97 | H69: 2628.83 | I69: 2742.43 | J69: 2766.57 | K69: 2799.23 | L69: 2733.9 | M69: 2677.1 | N69: 2083200 | O69: -0.19%
A70: 60 | B70: Metals | C70: HINDALCO | D70: 178.45 | E70: 177.78 | F70: 175.87 | G70: 173.28 | H70: 171.37 | I70: 180.37 | J70: 182.28 | K70: 184.87 | L70: 179.7 | M70: 175.2 | N70: 29971000 | O70: -3.17%
A71: 61 | B71: Oil_Gas | C71: HINDPETRO | D71: 214.40 | E71: 216.55 | F71: 210.60 | G71: 206.80 | H71: 200.85 | I71: 220.35 | J71: 226.30 | K71: 230.10 | L71: 222.5 | M71: 212.75 | N71: 27877500 | O71: 2.14%
A72: 62 | B72: FMCG | C72: HINDUNILVR | D72: 2220.95 | E72: 2224.83 | F72: 2210.67 | G72: 2200.38 | H72: 2186.22 | I72: 2235.12 | J72: 2249.28 | K72: 2259.57 | L72: 2239 | M72: 2214.55 | N72: 14803200 | O72: 0.39%
A73: 63 | B73: Finance | C73: IBULHSGFIN | D73: 194.15 | E73: 195.12 | F73: 189.98 | G73: 185.82 | H73: 180.68 | I73: 199.28 | J73: 204.42 | K73: 208.58 | L73: 200.25 | M73: 190.95 | N73: 13466400 | O73: 1.76%
A74: 64 | B74: Banking | C74: ICICIBANK | D74: 358.80 | E74: 358.10 | F74: 355.25 | G74: 351.70 | H74: 348.85 | I74: 361.65 | J74: 364.50 | K74: 368.05 | L74: 360.95 | M74: 354.55 | N74: 135676750 | O74: -0.87%
A75: 65 | B75: Finance | C75: ICICIPRULI | D75: 467.80 | E75: 467.55 | F75: 461.35 | G75: 454.90 | H75: 448.70 | I75: 474.00 | J75: 480.20 | K75: 486.65 | L75: 473.75 | M75: 461.1 | N75: 8748000 | O75: 0.85%
A76: 66 | B76: Telecom | C76: IDEA | D76: 8.90 | E76: 8.50 | F76: 8.00 | G76: 7.10 | H76: 6.60 | I76: 9.40 | J76: 9.90 | K76: 10.80 | L76: 9 | M76: 7.6 | N76: 423220000 | O76: 33.70%
A77: 67 | B77: Banking | C77: IDFCFIRSTB | D77: 28.50 | E77: 27.95 | F77: 27.25 | G77: 26.00 | H77: 25.30 | I77: 29.20 | J77: 29.90 | K77: 31.15 | L77: 28.65 | M77: 26.7 | N77: 131898000 | O77: -2.79%
A78: 68 | B78: Oil_Gas | C78: IGL | D78: 390.20 | E78: 388.28 | F78: 384.57 | G78: 378.93 | H78: 375.22 | I78: 393.92 | J78: 397.63 | K78: 403.27 | L78: 392 | M78: 382.65 | N78: 9565875 | O78: 8.03%
A79: 69 | B79: Others | C79: INDIGO | D79: 943.70 | E79: 940.83 | F79: 934.37 | G79: 925.03 | H79: 918.57 | I79: 950.17 | J79: 956.63 | K79: 965.97 | L79: 947.3 | M79: 931.5 | N79: 2855000 | O79: 5.33%
A80: 70 | B80: Banking | C80: INDUSINDBK | D80: 511.65 | E80: 507.20 | F80: 498.15 | G80: 484.65 | H80: 475.60 | I80: 520.70 | J80: 529.75 | K80: 543.25 | L80: 516.25 | M80: 493.7 | N80: 31404800 | O80: 1.21%
A81: 71 | B81: Telecom | C81: INFRATEL | D81: 193.50 | E81: 192.23 | F81: 189.87 | G81: 186.23 | H81: 183.87 | I81: 195.87 | J81: 198.23 | K81: 201.87 | L81: 194.6 | M81: 188.6 | N81: 14179200 | O81: 11.64%
A82: 72 | B82: Technology | C82: INFY | D82: 955.40 | E82: 959.50 | F82: 950.00 | G82: 944.60 | H82: 935.10 | I82: 964.90 | J82: 974.40 | K82: 979.80 | L82: 969 | M82: 954.1 | N82: 44796000 | O82: -0.32%
A83: 73 | B83: Oil_Gas | C83: IOC | D83: 86.90 | E83: 87.20 | F83: 85.70 | G83: 84.50 | H83: 83.00 | I83: 88.40 | J83: 89.90 | K83: 91.10 | L83: 88.7 | M83: 86 | N83: 45611400 | O83: 2.99%
A84: 74 | B84: FMCG | C84: ITC | D84: 196.75 | E84: 196.52 | F84: 195.03 | G84: 193.32 | H84: 191.83 | I84: 198.23 | J84: 199.72 | K84: 201.43 | L84: 198 | M84: 194.8 | N84: 86432000 | O84: 0.87%
A85: 75 | B85: Metals | C85: JINDALSTEL | D85: 200.35 | E85: 199.35 | F85: 196.80 | G85: 193.25 | H85: 190.70 | I85: 202.90 | J85: 205.45 | K85: 209.00 | L85: 201.9 | M85: 195.8 | N85: 18480000 | O85: 2.70%
A86: 76 | B86: Metals | C86: JSWSTEEL | D86: 240.65 | E86: 239.73 | F86: 237.72 | G86: 234.78 | H86: 232.77 | I86: 242.67 | J86: 244.68 | K86: 247.62 | L86: 241.75 | M86: 236.8 | N86: 43567200 | O86: -0.44%
A87: 77 | B87: Others | C87: JUBLFOOD | D87: 1861.40 | E87: 1866.73 | F87: 1846.47 | G87: 1831.53 | H87: 1811.27 | I87: 1881.67 | J87: 1901.93 | K87: 1916.87 | L87: 1887 | M87: 1851.8 | N87: 2352500 | O87: 9.11%
A88: 78 | B88: Banking | C88: KOTAKBANK | D88: 1341.05 | E88: 1337.03 | F88: 1329.32 | G88: 1317.58 | H88: 1309.87 | I88: 1348.77 | J88: 1356.48 | K88: 1368.22 | L88: 1344.75 | M88: 1325.3 | N88: 8816000 | O88: 2.08%
A89: 79 | B89: Finance | C89: L&TFH | D89: 63.85 | E89: 63.22 | F89: 62.43 | G89: 61.02 | H89: 60.23 | I89: 64.63 | J89: 65.42 | K89: 66.83 | L89: 64 | M89: 61.8 | N89: 28424000 | O89: 7.21%
A90: 80 | B90: Finance | C90: LICHSGFIN | D90: 258.25 | E90: 259.22 | F90: 254.03 | G90: 249.82 | H90: 244.63 | I90: 263.43 | J90: 268.62 | K90: 272.83 | L90: 264.4 | M90: 255 | N90: 11030000 | O90: 4.41%
A91: 81 | B91: Capital_Goods | C91: LT | D91: 920.40 | E91: 923.42 | F91: 915.98 | G91: 911.57 | H91: 904.13 | I91: 927.83 | J91: 935.27 | K91: 939.68 | L91: 930.85 | M91: 919 | N91: 10231100 | O91: 3.33%
A92: 82 | B92: Pharma | C92: LUPIN | D92: 884.35 | E92: 894.75 | F92: 868.00 | G92: 851.65 | H92: 824.90 | I92: 911.10 | J92: 937.85 | K92: 954.20 | L92: 921.5 | M92: 878.4 | N92: 8489800 | O92: -4.04%
A93: 83 | B93: Automobile | C93: M&M | D93: 603.45 | E93: 607.82 | F93: 596.63 | G93: 589.82 | H93: 578.63 | I93: 614.63 | J93: 625.82 | K93: 632.63 | L93: 619 | M93: 601 | N93: 15594600 | O93: 2.28%
A94: 84 | B94: Finance | C94: M&MFIN | D94: 131.15 | E94: 130.22 | F94: 128.43 | G94: 125.72 | H94: 123.93 | I94: 132.93 | J94: 134.72 | K94: 137.43 | L94: 132 | M94: 127.5 | N94: 20722548 | O94: 2.28%
A95: 85 | B95: Finance | C95: MANAPPURAM | D95: 162.55 | E95: 160.53 | F95: 158.02 | G95: 153.48 | H95: 150.97 | I95: 165.07 | J95: 167.58 | K95: 172.12 | L95: 163.05 | M95: 156 | N95: 20328000 | O95: -10.58%
A96: 86 | B96: FMCG | C96: MARICO | D96: 371.65 | E96: 370.55 | F96: 368.10 | G96: 364.55 | H96: 362.10 | I96: 374.10 | J96: 376.55 | K96: 380.10 | L96: 373 | M96: 367 | N96: 10612000 | O96: 0.61%
A97: 87 | B97: Automobile | C97: MARUTI | D97: 6617.35 | E97: 6580.88 | F97: 6486.57 | G97: 6355.78 | H97: 6261.47 | I97: 6711.67 | J97: 6805.98 | K97: 6936.77 | L97: 6675.2 | M97: 6450.1 | N97: 2522500 | O97: -0.08%
A98: 88 | B98: FMCG | C98: MCDOWELL-N | D98: 589.90 | E98: 589.48 | F98: 582.47 | G98: 575.03 | H98: 568.02 | I98: 596.92 | J98: 603.93 | K98: 611.37 | L98: 596.5 | M98: 582.05 | N98: 16396250 | O98: -2.09%
A99: 89 | B99: Finance | C99: MFSL | D99: 538.70 | E99: 538.82 | F99: 532.18 | G99: 525.67 | H99: 519.03 | I99: 545.33 | J99: 551.97 | K99: 558.48 | L99: 545.45 | M99: 532.3 | N99: 2390700 | O99: 0.99%
A100: 90 | B100: Oil_Gas | C100: MGL | D100: 972.70 | E100: 974.87 | F100: 960.98 | G100: 949.27 | H100: 935.38 | I100: 986.58 | J100: 1000.47 | K100: 1012.18 | L100: 988.75 | M100: 963.15 | N100: 1148400 | O100: 15.02%
A101: 91 | B101: Technology | C101: MINDTREE | D101: 1148.85 | E101: 1140.88 | F101: 1129.32 | G101: 1109.78 | H101: 1098.22 | I101: 1160.42 | J101: 1171.98 | K101: 1191.52 | L101: 1152.45 | M101: 1121.35 | N101: 1204000 | O101: -1.83%
A102: 92 | B102: Automobile | C102: MOTHERSUMI | D102: 99.95 | E102: 99.90 | F102: 98.20 | G102: 96.45 | H102: 94.75 | I102: 101.65 | J102: 103.35 | K102: 105.10 | L102: 101.6 | M102: 98.15 | N102: 23121000 | O102: 7.03%
A103: 93 | B103: Automobile | C103: MRF | D103: 62896.15 | E103: 62723.90 | F103: 61784.00 | G103: 60671.85 | H103: 59731.95 | I103: 63836.05 | J103: 64775.95 | K103: 65888.10 | L103: 63663.8 | M103: 61611.75 | N103: 28290 | O103: 1.47%
A104: 94 | B104: Finance | C104: MUTHOOTFIN | D104: 1222.90 | E104: 1220.18 | F104: 1199.42 | G104: 1175.93 | H104: 1155.17 | I104: 1243.67 | J104: 1264.43 | K104: 1287.92 | L104: 1240.95 | M104: 1196.7 | N104: 5250000 | O104: 3.26%
A105: 95 | B105: Metals | C105: NATIONALUM | D105: 35.05 | E105: 35.08 | F105: 34.67 | G105: 34.28 | H105: 33.87 | I105: 35.47 | J105: 35.88 | K105: 36.27 | L105: 35.5 | M105: 34.7 | N105: 39967000 | O105: -2.69%
A106: 96 | B106: Others | C106: NAUKRI | D106: 3321.10 | E106: 3322.50 | F106: 3278.60 | G106: 3236.10 | H106: 3192.20 | I106: 3365.00 | J106: 3408.90 | K106: 3451.40 | L106: 3366.4 | M106: 3280 | N106: 778250 | O106: 0.48%
A107: 97 | B107: FMCG | C107: NESTLEIND | D107: 16814.60 | E107: 16773.18 | F107: 16616.42 | G107: 16418.23 | H107: 16261.47 | I107: 16971.37 | J107: 17128.13 | K107: 17326.32 | L107: 16929.95 | M107: 16575 | N107: 398550 | O107: -1.88%
A108: 98 | B108: Technology | C108: NIITTECH | D108: 1995.80 | E108: 2004.95 | F108: 1966.90 | G108: 1938.00 | H108: 1899.95 | I108: 2033.85 | J108: 2071.90 | K108: 2100.80 | L108: 2043 | M108: 1976.05 | N108: 450000 | O108: -8.40%
A109: 99 | B109: Metals | C109: NMDC | D109: 89.40 | E109: 89.08 | F109: 88.37 | G109: 87.33 | H109: 86.62 | I109: 90.12 | J109: 90.83 | K109: 91.87 | L109: 89.8 | M109: 88.05 | N109: 33794800 | O109: -1.79%
A110: 100 | B110: Power | C110: NTPC | D110: 83.65 | E110: 83.77 | F110: 83.03 | G110: 82.42 | H110: 81.68 | I110: 84.38 | J110: 85.12 | K110: 85.73 | L110: 84.5 | M110: 83.15 | N110: 65589900 | O110: 2.71%
A111: 101 | B111: Oil_Gas | C111: ONGC | D111: 78.90 | E111: 78.92 | F111: 78.23 | G111: 77.57 | H111: 76.88 | I111: 79.58 | J111: 80.27 | K111: 80.93 | L111: 79.6 | M111: 78.25 | N111: 44421300 | O111: 3.11%
A112: 102 | B112: Textile | C112: PAGEIND | D112: 19111.45 | E112: 19236.93 | F112: 18924.52 | G112: 18737.58 | H112: 18425.17 | I112: 19423.87 | J112: 19736.28 | K112: 19923.22 | L112: 19549.35 | M112: 19050 | N112: 103650 | O112: 3.69%
A113: 103 | B113: Pharma | C113: PEL | D113: 1471.45 | E113: 1484.95 | F113: 1444.55 | G113: 1417.65 | H113: 1377.25 | I113: 1511.85 | J113: 1552.25 | K113: 1579.15 | L113: 1525.35 | M113: 1458.05 | N113: 3039300 | O113: -1.74%
A114: 104 | B114: Oil_Gas | C114: PETRONET | D114: 245.75 | E114: 245.82 | F114: 243.43 | G114: 241.12 | H114: 238.73 | I114: 248.13 | J114: 250.52 | K114: 252.83 | L114: 248.2 | M114: 243.5 | N114: 12807000 | O114: 1.43%
A115: 105 | B115: Finance | C115: PFC | D115: 85.80 | E115: 86.37 | F115: 84.53 | G115: 83.27 | H115: 81.43 | I115: 87.63 | J115: 89.47 | K115: 90.73 | L115: 88.2 | M115: 85.1 | N115: 53723000 | O115: -3.05%
A116: 106 | B116: FMCG | C116: PIDILITIND | D116: 1382.50 | E116: 1369.25 | F116: 1339.55 | G116: 1296.60 | H116: 1266.90 | I116: 1412.20 | J116: 1441.90 | K116: 1484.85 | L116: 1398.95 | M116: 1326.3 | N116: 3765500 | O116: -6.64%
A117: 107 | B117: Banking | C117: PNB | D117: 33.05 | E117: 32.82 | F117: 32.48 | G117: 31.92 | H117: 31.58 | I117: 33.38 | J117: 33.72 | K117: 34.28 | L117: 33.15 | M117: 32.25 | N117: 60438000 | O117: 3.62%
A118: 108 | B118: Power | C118: POWERGRID | D118: 175.25 | E118: 175.58 | F118: 174.22 | G118: 173.18 | H118: 171.82 | I118: 176.62 | J118: 177.98 | K118: 179.02 | L118: 176.95 | M118: 174.55 | N118: 13432000 | O118: -1.21%
A119: 109 | B119: Media | C119: PVR | D119: 1123.85 | E119: 1122.32 | F119: 1114.13 | G119: 1104.42 | H119: 1096.23 | I119: 1132.03 | J119: 1140.22 | K119: 1149.93 | L119: 1130.5 | M119: 1112.6 | N119: 1675619 | O119: -0.70%
A120: 110 | B120: Cement | C120: RAMCOCEM | D120: 691.40 | E120: 691.82 | F120: 683.63 | G120: 675.87 | H120: 667.68 | I120: 699.58 | J120: 707.77 | K120: 715.53 | L120: 700 | M120: 684.05 | N120: 1690650 | O120: 5.46%
A121: 111 | B121: Banking | C121: RBLBANK | D121: 192.00 | E121: 185.95 | F121: 177.85 | G121: 163.70 | H121: 155.60 | I121: 200.10 | J121: 208.20 | K121: 222.35 | L121: 194.05 | M121: 171.8 | N121: 25979200 | O121: 43.38%
A122: 112 | B122: Power | C122: RECLTD | D122: 106.15 | E122: 106.62 | F122: 104.33 | G122: 102.52 | H122: 100.23 | I122: 108.43 | J122: 110.72 | K122: 112.53 | L122: 108.9 | M122: 104.8 | N122: 20838000 | O122: -2.99%
A123: 113 | B123: Oil_Gas | C123: RELIANCE | D123: 2157.35 | E123: 2147.10 | F123: 2125.75 | G123: 2094.15 | H123: 2072.80 | I123: 2178.70 | J123: 2200.05 | K123: 2231.65 | L123: 2168.45 | M123: 2115.5 | N123: 38959740 | O123: -0.03%
A124: 114 | B124: Metals | C124: SAIL | D124: 37.90 | E124: 37.90 | F124: 37.35 | G124: 36.80 | H124: 36.25 | I124: 38.45 | J124: 39.00 | K124: 39.55 | L124: 38.45 | M124: 37.35 | N124: 60420000 | O124: 1.76%
A125: 115 | B125: Finance | C125: SBILIFE | D125: 873.10 | E125: 875.43 | F125: 864.67 | G125: 856.23 | H125: 845.47 | I125: 883.87 | J125: 894.63 | K125: 903.07 | L125: 886.2 | M125: 867 | N125: 6536250 | O125: -0.06%
A126: 116 | B126: Banking | C126: SBIN | D126: 191.50 | E126: 191.45 | F126: 189.90 | G126: 188.30 | H126: 186.75 | I126: 193.05 | J126: 194.60 | K126: 196.20 | L126: 193 | M126: 189.85 | N126: 116802000 | O126: 0.86%
A127: 117 | B127: Cement | C127: SHREECEM | D127: 22028.90 | E127: 21993.43 | F127: 21787.87 | G127: 21546.83 | H127: 21341.27 | I127: 22234.47 | J127: 22440.03 | K127: 22681.07 | L127: 22199 | M127: 21752.4 | N127: 176750 | O127: 4.65%
A128: 118 | B128: Capital_Goods | C128: SIEMENS | D128: 1158.50 | E128: 1158.32 | F128: 1147.43 | G128: 1136.37 | H128: 1125.48 | I128: 1169.38 | J128: 1180.27 | K128: 1191.33 | L128: 1169.2 | M128: 1147.25 | N128: 1966800 | O128: 3.95%
A129: 119 | B129: Textile | C129: SRF | D129: 4100.15 | E129: 4031.18 | F129: 3917.37 | G129: 3734.58 | H129: 3620.77 | I129: 4213.97 | J129: 4327.78 | K129: 4510.57 | L129: 4145 | M129: 3848.4 | N129: 751750 | O129: 14.29%
A130: 120 | B130: Finance | C130: SRTRANSFIN | D130: 680.25 | E130: 675.25 | F130: 666.60 | G130: 652.95 | H130: 644.30 | I130: 688.90 | J130: 697.55 | K130: 711.20 | L130: 683.9 | M130: 661.6 | N130: 3033516 | O130: 1.20%
A131: 121 | B131: Pharma | C131: SUNPHARMA | D131: 527.80 | E131: 529.40 | F131: 522.60 | G131: 517.40 | H131: 510.60 | I131: 534.60 | J131: 541.40 | K131: 546.60 | L131: 536.2 | M131: 524.2 | N131: 32656400 | O131: 0.43%
A132: 122 | B132: Media | C132: SUNTV | D132: 396.30 | E132: 398.45 | F132: 392.45 | G132: 388.60 | H132: 382.60 | I132: 402.30 | J132: 408.30 | K132: 412.15 | L132: 404.45 | M132: 394.6 | N132: 5163000 | O132: 0.53%
A133: 123 | B133: Fertilisers | C133: TATACHEM | D133: 302.35 | E133: 301.85 | F133: 297.50 | G133: 292.65 | H133: 288.30 | I133: 306.70 | J133: 311.05 | K133: 315.90 | L133: 306.2 | M133: 297 | N133: 3326000 | O133: 10.13%
A134: 124 | B134: Others | C134: TATACONSUM | D134: 519.10 | E134: 510.73 | F134: 491.47 | G134: 463.83 | H134: 444.57 | I134: 538.37 | J134: 557.63 | K134: 585.27 | L134: 530 | M134: 483.1 | N134: 14439600 | O134: 3.54%
A135: 125 | B135: Automobile | C135: TATAMOTORS | D135: 119.40 | E135: 118.82 | F135: 117.33 | G135: 115.27 | H135: 113.78 | I135: 120.88 | J135: 122.37 | K135: 124.43 | L135: 120.3 | M135: 116.75 | N135: 97646700 | O135: -0.27%
A136: 126 | B136: Power | C136: TATAPOWER | D136: 50.00 | E136: 50.12 | F136: 49.38 | G136: 48.77 | H136: 48.03 | I136: 50.73 | J136: 51.47 | K136: 52.08 | L136: 50.85 | M136: 49.5 | N136: 62599500 | O136: 5.96%
A137: 127 | B137: Metals | C137: TATASTEEL | D137: 403.30 | E137: 401.25 | F137: 395.65 | G137: 388.00 | H137: 382.40 | I137: 408.90 | J137: 414.50 | K137: 422.15 | L137: 406.85 | M137: 393.6 | N137: 16374400 | O137: 0.34%
A138: 128 | B138: Technology | C138: TCS | D138: 2300.35 | E138: 2307.30 | F138: 2283.40 | G138: 2266.45 | H138: 2242.55 | I138: 2324.25 | J138: 2348.15 | K138: 2365.10 | L138: 2331.2 | M138: 2290.35 | N138: 9959100 | O138: -2.11%
A139: 129 | B139: Technology | C139: TECHM | D139: 663.90 | E139: 663.02 | F139: 656.53 | G139: 649.17 | H139: 642.68 | I139: 670.38 | J139: 676.87 | K139: 684.23 | L139: 669.5 | M139: 655.65 | N139: 12759600 | O139: -1.60%
A140: 130 | B140: FMCG | C140: TITAN | D140: 1086.15 | E140: 1098.40 | F140: 1070.40 | G140: 1054.65 | H140: 1026.65 | I140: 1114.15 | J140: 1142.15 | K140: 1157.90 | L140: 1126.4 | M140: 1082.65 | N140: 7836000 | O140: 15.05%
A141: 131 | B141: Pharma | C141: TORNTPHARM | D141: 2952.05 | E141: 2957.23 | F141: 2921.62 | G141: 2891.18 | H141: 2855.57 | I141: 2987.67 | J141: 3023.28 | K141: 3053.72 | L141: 2992.85 | M141: 2926.8 | N141: 1658500 | O141: -5.39%
A142: 132 | B142: Power | C142: TORNTPOWER | D142: 339.00 | E142: 344.42 | F142: 329.58 | G142: 320.17 | H142: 305.33 | I142: 353.83 | J142: 368.67 | K142: 378.08 | L142: 359.25 | M142: 335 | N142: 2823000 | O142: 105.46%
A143: 133 | B143: Automobile | C143: TVSMOTOR | D143: 420.05 | E143: 419.53 | F143: 412.07 | G143: 404.08 | H143: 396.62 | I143: 427.52 | J143: 434.98 | K143: 442.97 | L143: 427 | M143: 411.55 | N143: 6382600 | O143: 19.60%
A144: 134 | B144: FMCG | C144: UBL | D144: 967.35 | E144: 966.58 | F144: 956.77 | G144: 946.18 | H144: 936.37 | I144: 977.17 | J144: 986.98 | K144: 997.57 | L144: 976.4 | M144: 956 | N144: 1568000 | O144: 1.63%
A145: 135 | B145: Finance | C145: UJJIVAN | D145: 241.10 | E145: 238.77 | F145: 233.53 | G145: 225.97 | H145: 220.73 | I145: 246.33 | J145: 251.57 | K145: 259.13 | L145: 244 | M145: 231.2 | N145: 3014000 | O145: -1.37%
A146: 136 | B146: Cement | C146: ULTRACEMCO | D146: 4014.70 | E146: 4028.62 | F146: 3978.23 | G146: 3941.77 | H146: 3891.38 | I146: 4065.08 | J146: 4115.47 | K146: 4151.93 | L146: 4079 | M146: 3992.15 | N146: 2538000 | O146: -0.70%
A147: 137 | B147: Fertilisers | C147: UPL | D147: 475.25 | E147: 471.95 | F147: 464.10 | G147: 452.95 | H147: 445.10 | I147: 483.10 | J147: 490.95 | K147: 502.10 | L147: 479.8 | M147: 460.8 | N147: 14086800 | O147: -5.15%
A148: 138 | B148: Metals | C148: VEDL | D148: 123.50 | E148: 124.68 | F148: 121.97 | G148: 120.43 | H148: 117.72 | I148: 126.22 | J148: 128.93 | K148: 130.47 | L148: 127.4 | M148: 123.15 | N148: 127825400 | O148: 5.05%
A149: 139 | B149: Capital_Goods | C149: VOLTAS | D149: 595.80 | E149: 598.48 | F149: 591.02 | G149: 586.23 | H149: 578.77 | I149: 603.27 | J149: 610.73 | K149: 615.52 | L149: 605.95 | M149: 593.7 | N149: 2853000 | O149: 2.48%
A150: 140 | B150: Technology | C150: WIPRO | D150: 278.90 | E150: 279.68 | F150: 277.02 | G150: 275.13 | H150: 272.47 | I150: 281.57 | J150: 284.23 | K150: 286.12 | L150: 282.35 | M150: 277.8 | N150: 23110400 | O150: -1.11%
A151: 141 | B151: Media | C151: ZEEL | D151: 150.45 | E151: 150.33 | F151: 149.02 | G151: 147.58 | H151: 146.27 | I151: 151.77 | J151: 153.08 | K151: 154.52 | L151: 151.65 | M151: 148.9 | N151: 32535000 | O151: -1.60%
A152: 142
A153: 143
A154: 144
A155: 145
A156: 146
A157: 147
A175: Pivot Point: This is trigger point for intra day buy/sell based on the price range of the previous day
A176: As per the tool,the trader should take BUY position just above Pivot and keep the stop loss of pivot point and the first target would be Resistance 1(R1)
A177: If R1 is crossed then R2 becomes the next target with stop loss of at R1
A178: Similarly if price goes below pivot point then the trader should sell and keep a stop loss of pivot point and the first target would be S1
A179: If S1 is crossed then S2 becomes the next target with stop loss of at S1
A181: Disclaimer:
A182: This document has been prepared by the Retail Research Desk of Asit C Mehta
A183: Investment Intermediates Ltd. and is meant for use of the recipient only
A184: and is not for circulation. This document is not to be reported or
A185: copied or made available to others. It should not be considered to be
A186: taken as an offer to sell or a solicitation to buy any security. The
A187: information contained herein is from sources believed reliable. We do
A188: not represent that it is accurate or complete and it should not be
A189: relied upon as such. We may from time to time have positions in and buy
A190: and sell securities referred to herein

Sheet Cash Intra
M5: Back to Main Page
A6: FOR INTRA DAY TRADING | K6: =Main!B10 -> 2020-08-10
A8: Sr.no | B8: Scrip | C8: CLOSE RATE | D8: Pivot Point | E8: Supports | H8: Resistances
C9: Point | E9: S1 | F9: S2 | G9: S3 | H9: R1 | I9: R2 | J9: R3 | K9: HIGH | L9: LOW | M9: Total Trade Quanity in Lakhs
A10: 1 | B10: Nifty 50 | C10: 11214.05 | D10: 11196.00 | E10: 11160.10 | F10: 11106.15 | G10: 11070.25 | H10: 11249.95 | I10: 11285.85 | J10: 11339.80 | K10: 11231.9 | L10: 11142.05
A11: 2 | B11: Nifty Bank | C11: 21754 | D11: 21664.18 | E11: 21541.12 | F11: 21328.23 | G11: 21205.17 | H11: 21877.07 | I11: 22000.13 | J11: 22213.02 | K11: 21787.25 | L11: 21451.3
A12: 3 | B12: Nifty CPSE | C12: 1418.65 | D12: 1418.95 | E12: 1414.85 | F12: 1411.05 | G12: 1406.95 | H12: 1422.75 | I12: 1426.85 | J12: 1430.65 | K12: 1423.05 | L12: 1415.15
A13: 4 | B13: Nifty Infra | C13: 3188.25 | D13: 3185.55 | E13: 3177.75 | F13: 3167.25 | G13: 3159.45 | H13: 3196.05 | I13: 3203.85 | J13: 3214.35 | K13: 3193.35 | L13: 3175.05
A14: 5 | B14: Nifty IT | C14: 18004.15 | D14: 18054.72 | E14: 17927.13 | F14: 17850.12 | G14: 17722.53 | H14: 18131.73 | I14: 18259.32 | J14: 18336.33 | K14: 18182.3 | L14: 17977.7
A15: 6 | B15: Nifty PSE | C15: 2497.3 | D15: 2499.27 | E15: 2487.33 | F15: 2477.37 | G15: 2465.43 | H15: 2509.23 | I15: 2521.17 | J15: 2531.13 | K15: 2511.2 | L15: 2489.3
A16: 7 | B16: Nifty Midcap 50 | C16: 4437.75 | D16: 4412.35 | E16: 4377.65 | F16: 4317.55 | G16: 4282.85 | H16: 4472.45 | I16: 4507.15 | J16: 4567.25 | K16: 4447.05 | L16: 4352.25
A17: 8 | B17: ACC | C17: 1397.2 | D17: 1404.25 | E17: 1385.45 | F17: 1373.70 | G17: 1354.90 | H17: 1416.00 | I17: 1434.80 | J17: 1446.55 | K17: 1423.05 | L17: 1392.5 | M17: 6.90559
A18: 9 | B18: AUBANK | C18: 709.5 | D18: 715.40 | E18: 701.10 | F18: 692.70 | G18: 678.40 | H18: 723.80 | I18: 738.10 | J18: 746.50 | K18: 729.7 | L18: 707 | M18: 4.82417
A19: 10 | B19: AARTIIND | C19: 1067.7 | D19: 1067.37 | E19: 1057.73 | F19: 1047.77 | G19: 1038.13 | H19: 1077.33 | I19: 1086.97 | J19: 1096.93 | K19: 1077 | L19: 1057.4 | M19: 4.14414
A20: 11 | B20: ABBOTINDIA | C20: 16199 | D20: 16192.25 | E20: 16085.80 | F20: 15972.60 | G20: 15866.15 | H20: 16305.45 | I20: 16411.90 | J20: 16525.10 | K20: 16298.7 | L20: 16079.05 | M20: 0.15324
A21: 12 | B21: ADANIGAS | C21: 162.05 | D21: 159.52 | E21: 155.53 | F21: 149.02 | G21: 145.03 | H21: 166.03 | I21: 170.02 | J21: 176.53 | K21: 163.5 | L21: 153 | M21: 29.33243
A22: 13 | B22: ADANIPORTS | C22: 326.65 | D22: 325.52 | E22: 322.68 | F22: 318.72 | G22: 315.88 | H22: 329.48 | I22: 332.32 | J22: 336.28 | K22: 328.35 | L22: 321.55 | M22: 26.34956
A23: 14 | B23: ADANIPOWER | C23: 36.65 | D23: 36.25 | E23: 35.60 | F23: 34.55 | G23: 33.90 | H23: 37.30 | I23: 37.95 | J23: 39.00 | K23: 36.9 | L23: 35.2 | M23: 83.91661
A24: 15 | B24: ADANITRANS | C24: 249.7 | D24: 245.67 | E24: 238.03 | F24: 226.37 | G24: 218.73 | H24: 257.33 | I24: 264.97 | J24: 276.63 | K24: 253.3 | L24: 234 | M24: 15.46086
A25: 16 | B25: ABCAPITAL | C25: 59.15 | D25: 58.93 | E25: 58.12 | F25: 57.08 | G25: 56.27 | H25: 59.97 | I25: 60.78 | J25: 61.82 | K25: 59.75 | L25: 57.9 | M25: 26.56815
A26: 17 | B26: ABFRL | C26: 120.95 | D26: 121.93 | E26: 119.02 | F26: 117.08 | G26: 114.17 | H26: 123.87 | I26: 126.78 | J26: 128.72 | K26: 124.85 | L26: 120 | M26: 20.38128
A27: 18 | B27: AJANTPHARM | C27: 1693.1 | D27: 1695.68 | E27: 1673.42 | F27: 1653.73 | G27: 1631.47 | H27: 1715.37 | I27: 1737.63 | J27: 1757.32 | K27: 1717.95 | L27: 1676 | M27: 2.29507
A28: 19 | B28: ALKEM | C28: 2981.95 | D28: 2985.65 | E28: 2881.30 | F28: 2780.65 | G28: 2676.30 | H28: 3086.30 | I28: 3190.65 | J28: 3291.30 | K28: 3090 | L28: 2885 | M28: 23.37098
A29: 20 | B29: AMARAJABAT | C29: 718.15 | D29: 719.63 | E29: 712.02 | F29: 705.88 | G29: 698.27 | H29: 725.77 | I29: 733.38 | J29: 739.52 | K29: 727.25 | L29: 713.5 | M29: 6.88883
A30: 21 | B30: AMBUJACEM | C30: 219.55 | D30: 221.47 | E30: 216.68 | F30: 213.82 | G30: 209.03 | H30: 224.33 | I30: 229.12 | J30: 231.98 | K30: 226.25 | L30: 218.6 | M30: 48.71444
A31: 22 | B31: APOLLOHOSP | C31: 1743.2 | D31: 1732.25 | E31: 1711.50 | F31: 1679.80 | G31: 1659.05 | H31: 1763.95 | I31: 1784.70 | J31: 1816.40 | K31: 1753 | L31: 1700.55 | M31: 15.7038
A32: 23 | B32: APOLLOTYRE | C32: 123.55 | D32: 121.00 | E32: 117.05 | F32: 110.55 | G32: 106.60 | H32: 127.50 | I32: 131.45 | J32: 137.95 | K32: 124.95 | L32: 114.5 | M32: 327.59762
A33: 24 | B33: ASHOKLEY | C33: 49.95 | D33: 49.73 | E33: 49.07 | F33: 48.18 | G33: 47.52 | H33: 50.62 | I33: 51.28 | J33: 52.17 | K33: 50.4 | L33: 48.85 | M33: 288.02772
A34: 25 | B34: ASIANPAINT | C34: 1806.25 | D34: 1782.95 | E34: 1749.00 | F34: 1691.75 | G34: 1657.80 | H34: 1840.20 | I34: 1874.15 | J34: 1931.40 | K34: 1816.9 | L34: 1725.7 | M34: 51.6609
A35: 26 | B35: AUROPHARMA | C35: 906.45 | D35: 909.15 | E35: 895.30 | F35: 884.15 | G35: 870.30 | H35: 920.30 | I35: 934.15 | J35: 945.30 | K35: 923 | L35: 898 | M35: 75.55414
A36: 27 | B36: DMART | C36: 2138.4 | D36: 2149.27 | E36: 2122.13 | F36: 2105.87 | G36: 2078.73 | H36: 2165.53 | I36: 2192.67 | J36: 2208.93 | K36: 2176.4 | L36: 2133 | M36: 3.54664
A37: 28 | B37: AXISBANK | C37: 433.3 | D37: 432.48 | E37: 427.97 | F37: 422.63 | G37: 418.12 | H37: 437.82 | I37: 442.33 | J37: 447.67 | K37: 437 | L37: 427.15 | M37: 155.70556
A38: 29 | B38: BAJAJ-AUTO | C38: 3001.7 | D38: 2998.57 | E38: 2978.13 | F38: 2954.57 | G38: 2934.13 | H38: 3022.13 | I38: 3042.57 | J38: 3066.13 | K38: 3019 | L38: 2975 | M38: 5.15513
A39: 30 | B39: BAJFINANCE | C39: 3464.3 | D39: 3418.58 | E39: 3355.72 | F39: 3247.13 | G39: 3184.27 | H39: 3527.17 | I39: 3590.03 | J39: 3698.62 | K39: 3481.45 | L39: 3310 | M39: 101.51345
A40: 31 | B40: BAJAJFINSV | C40: 6467.15 | D40: 6405.72 | E40: 6311.43 | F40: 6155.72 | G40: 6061.43 | H40: 6561.43 | I40: 6655.72 | J40: 6811.43 | K40: 6500 | L40: 6250 | M40: 8.25773
A41: 32 | B41: BAJAJHLDNG | C41: 2701.05 | D41: 2692.87 | E41: 2668.58 | F41: 2636.12 | G41: 2611.83 | H41: 2725.33 | I41: 2749.62 | J41: 2782.08 | K41: 2717.15 | L41: 2660.4 | M41: 0.263
A42: 33 | B42: BALKRISIND | C42: 1349.85 | D42: 1359.83 | E42: 1336.12 | F42: 1322.38 | G42: 1298.67 | H42: 1373.57 | I42: 1397.28 | J42: 1411.02 | K42: 1383.55 | L42: 1346.1 | M42: 9.73243
A43: 34 | B43: BANDHANBNK | C43: 307.5 | D43: 305.68 | E43: 302.07 | F43: 296.63 | G43: 293.02 | H43: 311.12 | I43: 314.73 | J43: 320.17 | K43: 309.3 | L43: 300.25 | M43: 208.35433
A44: 35 | B44: BANKBARODA | C44: 48.35 | D44: 47.77 | E44: 46.68 | F44: 45.02 | G44: 43.93 | H44: 49.43 | I44: 50.52 | J44: 52.18 | K44: 48.85 | L44: 46.1 | M44: 371.47126
A45: 36 | B45: BANKINDIA | C45: 48.95 | D45: 48.95 | E45: 48.10 | F45: 47.25 | G45: 46.40 | H45: 49.80 | I45: 50.65 | J45: 51.50 | K45: 49.8 | L45: 48.1 | M45: 27.35923
A46: 37 | B46: BATAINDIA | C46: 1257.9 | D46: 1261.12 | E46: 1248.78 | F46: 1239.67 | G46: 1227.33 | H46: 1270.23 | I46: 1282.57 | J46: 1291.68 | K46: 1273.45 | L46: 1252 | M46: 14.89623
A47: 38 | B47: BERGEPAINT | C47: 555.15 | D47: 546.67 | E47: 535.33 | F47: 515.52 | G47: 504.18 | H47: 566.48 | I47: 577.82 | J47: 597.63 | K47: 558 | L47: 526.85 | M47: 36.88766
A48: 39 | B48: BEL | C48: 99.2 | D48: 99.43 | E48: 98.12 | F48: 97.03 | G48: 95.72 | H48: 100.52 | I48: 101.83 | J48: 102.92 | K48: 100.75 | L48: 98.35 | M48: 77.70524
A49: 40 | B49: BHARATFORG | C49: 407.8 | D49: 408.67 | E49: 403.83 | F49: 399.87 | G49: 395.03 | H49: 412.63 | I49: 417.47 | J49: 421.43 | K49: 413.5 | L49: 404.7 | M49: 20.08743
A50: 41 | B50: BHEL | C50: 35.25 | D50: 35.18 | E50: 34.82 | F50: 34.38 | G50: 34.02 | H50: 35.62 | I50: 35.98 | J50: 36.42 | K50: 35.55 | L50: 34.75 | M50: 339.40333
A51: 42 | B51: BPCL | C51: 419.75 | D51: 417.40 | E51: 413.40 | F51: 407.05 | G51: 403.05 | H51: 423.75 | I51: 427.75 | J51: 434.10 | K51: 421.4 | L51: 411.05 | M51: 91.19146
A52: 43 | B52: BHARTIARTL | C52: 560.8 | D52: 558.75 | E52: 554.10 | F52: 547.40 | G52: 542.75 | H52: 565.45 | I52: 570.10 | J52: 576.80 | K52: 563.4 | L52: 552.05 | M52: 72.10904
A53: 44 | B53: INFRATEL | C53: 192.6 | D53: 191.47 | E53: 189.13 | F53: 185.67 | G53: 183.33 | H53: 194.93 | I53: 197.27 | J53: 200.73 | K53: 193.8 | L53: 188 | M53: 79.75014
A54: 45 | B54: BIOCON | C54: 399.45 | D54: 402.45 | E54: 393.05 | F54: 386.65 | G54: 377.25 | H54: 408.85 | I54: 418.25 | J54: 424.65 | K54: 411.85 | L54: 396.05 | M54: 56.34992
A55: 46 | B55: BBTC | C55: 1360.5 | D55: 1357.48 | E55: 1335.02 | F55: 1309.53 | G55: 1287.07 | H55: 1382.97 | I55: 1405.43 | J55: 1430.92 | K55: 1379.95 | L55: 1332 | M55: 2.22398
A56: 47 | B56: BOSCHLTD | C56: 13657.65 | D56: 13499.20 | E56: 13208.40 | F56: 12759.15 | G56: 12468.35 | H56: 13948.45 | I56: 14239.25 | J56: 14688.50 | K56: 13790 | L56: 13049.95 | M56: 1.16365
A57: 48 | B57: BRITANNIA | C57: 3934.8 | D57: 3909.93 | E57: 3874.87 | F57: 3814.93 | G57: 3779.87 | H57: 3969.87 | I57: 4004.93 | J57: 4064.87 | K57: 3945 | L57: 3850 | M57: 10.61884
A58: 49 | B58: CESC | C58: 580.85 | D58: 577.30 | E58: 570.60 | F58: 560.35 | G58: 553.65 | H58: 587.55 | I58: 594.25 | J58: 604.50 | K58: 584 | L58: 567.05 | M58: 2.75837
A59: 50 | B59: CADILAHC | C59: 390.9 | D59: 391.25 | E59: 387.20 | F59: 383.50 | G59: 379.45 | H59: 394.95 | I59: 399.00 | J59: 402.70 | K59: 395.3 | L59: 387.55 | M59: 46.04458
A60: 51 | B60: CANBK | C60: 101.9 | D60: 102.05 | E60: 101.35 | F60: 100.80 | G60: 100.10 | H60: 102.60 | I60: 103.30 | J60: 103.85 | K60: 102.75 | L60: 101.5 | M60: 46.03398
A61: 52 | B61: CASTROLIND | C61: 121.45 | D61: 121.22 | E61: 119.73 | F61: 118.02 | G61: 116.53 | H61: 122.93 | I61: 124.42 | J61: 126.13 | K61: 122.7 | L61: 119.5 | M61: 16.15286
A62: 53 | B62: CHOLAFIN | C62: 208.75 | D62: 207.02 | E62: 204.33 | F62: 199.92 | G62: 197.23 | H62: 211.43 | I62: 214.12 | J62: 218.53 | K62: 209.7 | L62: 202.6 | M62: 73.78626
A63: 54 | B63: CIPLA | C63: 728.65 | D63: 730.93 | E63: 722.22 | F63: 715.78 | G63: 707.07 | H63: 737.37 | I63: 746.08 | J63: 752.52 | K63: 739.65 | L63: 724.5 | M63: 61.59882
A64: 55 | B64: CUB | C64: 122.95 | D64: 121.85 | E64: 120.20 | F64: 117.45 | G64: 115.80 | H64: 124.60 | I64: 126.25 | J64: 129.00 | K64: 123.5 | L64: 119.1 | M64: 24.32231
A65: 56 | B65: COALINDIA | C65: 129.75 | D65: 129.55 | E65: 128.75 | F65: 127.75 | G65: 126.95 | H65: 130.55 | I65: 131.35 | J65: 132.35 | K65: 130.35 | L65: 128.55 | M65: 65.5363
A66: 57 | B66: COLPAL | C66: 1456.95 | D66: 1452.15 | E66: 1436.85 | F66: 1416.75 | G66: 1401.45 | H66: 1472.25 | I66: 1487.55 | J66: 1507.65 | K66: 1467.45 | L66: 1432.05 | M66: 5.6752
A67: 58 | B67: CONCOR | C67: 455.9 | D67: 455.83 | E67: 449.17 | F67: 442.43 | G67: 435.77 | H67: 462.57 | I67: 469.23 | J67: 475.97 | K67: 462.5 | L67: 449.1 | M67: 10.68578
A68: 59 | B68: COROMANDEL | C68: 788.9 | D68: 793.22 | E68: 779.68 | F68: 770.47 | G68: 756.93 | H68: 802.43 | I68: 815.97 | J68: 825.18 | K68: 806.75 | L68: 784 | M68: 2.01697
A69: 60 | B69: CROMPTON | C69: 260.65 | D69: 259.43 | E69: 253.27 | F69: 245.88 | G69: 239.72 | H69: 266.82 | I69: 272.98 | J69: 280.37 | K69: 265.6 | L69: 252.05 | M69: 6.68445
A70: 61 | B70: CUMMINSIND | C70: 419.1 | D70: 417.42 | E70: 412.83 | F70: 406.57 | G70: 401.98 | H70: 423.68 | I70: 428.27 | J70: 434.53 | K70: 422 | L70: 411.15 | M70: 10.03976
A71: 62 | B71: DLF | C71: 141.85 | D71: 142.25 | E71: 140.60 | F71: 139.35 | G71: 137.70 | H71: 143.50 | I71: 145.15 | J71: 146.40 | K71: 143.9 | L71: 141 | M71: 104.89309
A72: 63 | B72: DABUR | C72: 512.3 | D72: 510.68 | E72: 507.67 | F72: 503.03 | G72: 500.02 | H72: 515.32 | I72: 518.33 | J72: 522.97 | K72: 513.7 | L72: 506.05 | M72: 27.54143
A73: 64 | B73: DALBHARAT | C73: 763.9 | D73: 780.38 | E73: 735.77 | F73: 707.63 | G73: 663.02 | H73: 808.52 | I73: 853.13 | J73: 881.27 | K73: 825 | L73: 752.25 | M73: 5.02595
A74: 65 | B74: DIVISLAB | C74: 2784.85 | D74: 2775.75 | E74: 2731.50 | F74: 2678.15 | G74: 2633.90 | H74: 2829.10 | I74: 2873.35 | J74: 2926.70 | K74: 2820 | L74: 2722.4 | M74: 14.48742
A75: 66 | B75: LALPATHLAB | C75: 1902.95 | D75: 1892.20 | E75: 1864.75 | F75: 1826.55 | G75: 1799.10 | H75: 1930.40 | I75: 1957.85 | J75: 1996.05 | K75: 1919.65 | L75: 1854 | M75: 2.63157
A76: 67 | B76: DRREDDY | C76: 4573.5 | D76: 4613.68 | E76: 4520.37 | F76: 4467.23 | G76: 4373.92 | H76: 4666.82 | I76: 4760.13 | J76: 4813.27 | K76: 4707 | L76: 4560.55 | M76: 16.65377
A77: 68 | B77: EDELWEISS | C77: 78.8 | D77: 79.62 | E77: 77.83 | F77: 76.87 | G77: 75.08 | H77: 80.58 | I77: 82.37 | J77: 83.33 | K77: 81.4 | L77: 78.65 | M77: 8.08426
A78: 69 | B78: EICHERMOT | C78: 21807.35 | D78: 21836.73 | E78: 21530.62 | F78: 21253.88 | G78: 20947.77 | H78: 22113.47 | I78: 22419.58 | J78: 22696.32 | K78: 22142.85 | L78: 21560 | M78: 1.9529
A79: 70 | B79: EMAMILTD | C79: 257.3 | D79: 252.70 | E79: 241.90 | F79: 226.50 | G79: 215.70 | H79: 268.10 | I79: 278.90 | J79: 294.30 | K79: 263.5 | L79: 237.3 | M79: 44.31966
A80: 71 | B80: ENDURANCE | C80: 958.4 | D80: 957.55 | E80: 949.05 | F80: 939.70 | G80: 931.20 | H80: 966.90 | I80: 975.40 | J80: 984.75 | K80: 966.05 | L80: 948.2 | M80: 0.44172
A81: 72 | B81: ESCORTS | C81: 1123.65 | D81: 1130.55 | E81: 1113.10 | F81: 1102.55 | G81: 1085.10 | H81: 1141.10 | I81: 1158.55 | J81: 1169.10 | K81: 1148 | L81: 1120 | M81: 17.53969
A82: 73 | B82: EXIDEIND | C82: 161.9 | D82: 160.62 | E82: 157.88 | F82: 153.87 | G82: 151.13 | H82: 164.63 | I82: 167.37 | J82: 171.38 | K82: 163.35 | L82: 156.6 | M82: 75.86811
A83: 74 | B83: FEDERALBNK | C83: 54.65 | D83: 53.95 | E83: 52.90 | F83: 51.15 | G83: 50.10 | H83: 55.70 | I83: 56.75 | J83: 58.50 | K83: 55 | L83: 52.2 | M83: 521.86679
A84: 75 | B84: FORTIS | C84: 138 | D84: 138.72 | E84: 136.43 | F84: 134.87 | G84: 132.58 | H84: 140.28 | I84: 142.57 | J84: 144.13 | K84: 141 | L84: 137.15 | M84: 9.61673
A85: 76 | B85: FRETAIL | C85: 108.7 | D85: 109.48 | E85: 106.27 | F85: 103.83 | G85: 100.62 | H85: 111.92 | I85: 115.13 | J85: 117.57 | K85: 112.7 | L85: 107.05 | M85: 55.55218
A86: 77 | B86: GAIL | C86: 96.9 | D86: 96.65 | E86: 95.90 | F86: 94.90 | G86: 94.15 | H86: 97.65 | I86: 98.40 | J86: 99.40 | K86: 97.4 | L86: 95.65 | M86: 99.73831
A87: 78 | B87: GMRINFRA | C87: 21.15 | D87: 21.03 | E87: 20.72 | F87: 20.28 | G87: 19.97 | H87: 21.47 | I87: 21.78 | J87: 22.22 | K87: 21.35 | L87: 20.6 | M87: 90.63883
A88: 79 | B88: GICRE | C88: 140.9 | D88: 141.40 | E88: 139.80 | F88: 138.70 | G88: 137.10 | H88: 142.50 | I88: 144.10 | J88: 145.20 | K88: 143 | L88: 140.3 | M88: 3.54959
A89: 80 | B89: GLENMARK | C89: 453.45 | D89: 457.12 | E89: 447.33 | F89: 441.22 | G89: 431.43 | H89: 463.23 | I89: 473.02 | J89: 479.13 | K89: 466.9 | L89: 451 | M89: 46.52819
A90: 81 | B90: GODREJAGRO | C90: 464.55 | D90: 464.02 | E90: 461.53 | F90: 458.52 | G90: 456.03 | H90: 467.03 | I90: 469.52 | J90: 472.53 | K90: 466.5 | L90: 461 | M90: 1.36164
A91: 82 | B91: GODREJCP | C91: 689.1 | D91: 692.58 | E91: 683.62 | F91: 678.13 | G91: 669.17 | H91: 698.07 | I91: 707.03 | J91: 712.52 | K91: 701.55 | L91: 687.1 | M91: 11.29384
A92: 83 | B92: GODREJIND | C92: 366.85 | D92: 364.83 | E92: 357.67 | F92: 348.48 | G92: 341.32 | H92: 374.02 | I92: 381.18 | J92: 390.37 | K92: 372 | L92: 355.65 | M92: 2.08808
A93: 84 | B93: GODREJPROP | C93: 887.75 | D93: 890.02 | E93: 880.03 | F93: 872.32 | G93: 862.33 | H93: 897.73 | I93: 907.72 | J93: 915.43 | K93: 900 | L93: 882.3 | M93: 2.1476
A94: 85 | B94: GRASIM | C94: 636.55 | D94: 635.57 | E94: 629.23 | F94: 621.92 | G94: 615.58 | H94: 642.88 | I94: 649.22 | J94: 656.53 | K94: 641.9 | L94: 628.25 | M94: 22.26682
A95: 86 | B95: GUJGASLTD | C95: 303.05 | D95: 304.52 | E95: 300.53 | F95: 298.02 | G95: 294.03 | H95: 307.03 | I95: 311.02 | J95: 313.53 | K95: 308.5 | L95: 302 | M95: 4.99298
A96: 87 | B96: GSPL | C96: 207.55 | D96: 207.63 | E96: 203.92 | F96: 200.28 | G96: 196.57 | H96: 211.27 | I96: 214.98 | J96: 218.62 | K96: 211.35 | L96: 204 | M96: 18.72188
A97: 88 | B97: HCLTECH | C97: 690.3 | D97: 691.73 | E97: 683.57 | F97: 676.83 | G97: 668.67 | H97: 698.47 | I97: 706.63 | J97: 713.37 | K97: 699.9 | L97: 685 | M97: 73.71589
A98: 89 | B98: HDFCAMC | C98: 2369 | D98: 2368.42 | E98: 2352.83 | F98: 2336.67 | G98: 2321.08 | H98: 2384.58 | I98: 2400.17 | J98: 2416.33 | K98: 2384 | L98: 2352.25 | M98: 3.6476
A99: 90 | B99: HDFCBANK | C99: 1043.85 | D99: 1037.22 | E99: 1027.23 | F99: 1010.62 | G99: 1000.63 | H99: 1053.83 | I99: 1063.82 | J99: 1080.43 | K99: 1047.2 | L99: 1020.6 | M99: 124.18816
A100: 91 | B100: HDFCLIFE | C100: 606.95 | D100: 608.75 | E100: 603.65 | F100: 600.35 | G100: 595.25 | H100: 612.05 | I100: 617.15 | J100: 620.45 | K100: 613.85 | L100: 605.45 | M100: 17.23762
A101: 92 | B101: HAVELLS | C101: 609.55 | D101: 608.28 | E101: 604.57 | F101: 599.58 | G101: 595.87 | H101: 613.27 | I101: 616.98 | J101: 621.97 | K101: 612 | L101: 603.3 | M101: 9.0989
A102: 93 | B102: HEROMOTOCO | C102: 2706.2 | D102: 2698.77 | E102: 2677.53 | F102: 2648.87 | G102: 2627.63 | H102: 2727.43 | I102: 2748.67 | J102: 2777.33 | K102: 2720 | L102: 2670.1 | M102: 8.54162
A103: 94 | B103: HEXAWARE | C103: 393.45 | D103: 393.08 | E103: 388.62 | F103: 383.78 | G103: 379.32 | H103: 397.92 | I103: 402.38 | J103: 407.22 | K103: 397.55 | L103: 388.25 | M103: 3.67487
A104: 95 | B104: HINDALCO | C104: 177.6 | D104: 177.32 | E104: 175.63 | F104: 173.67 | G104: 171.98 | H104: 179.28 | I104: 180.97 | J104: 182.93 | K104: 179 | L104: 175.35 | M104: 101.17776
A105: 96 | B105: HINDPETRO | C105: 213.6 | D105: 216.33 | E105: 209.67 | F105: 205.73 | G105: 199.07 | H105: 220.27 | I105: 226.93 | J105: 230.87 | K105: 223 | L105: 212.4 | M105: 187.89292
A106: 97 | B106: HINDUNILVR | C106: 2210.55 | D106: 2216.78 | E106: 2198.77 | F106: 2186.98 | G106: 2168.97 | H106: 2228.57 | I106: 2246.58 | J106: 2258.37 | K106: 2234.8 | L106: 2205 | M106: 17.78051
A107: 98 | B107: HINDZINC | C107: 252.95 | D107: 248.98 | E107: 240.47 | F107: 227.98 | G107: 219.47 | H107: 261.47 | I107: 269.98 | J107: 282.47 | K107: 257.5 | L107: 236.5 | M107: 74.11184
A108: 99 | B108: HUDCO | C108: 35.15 | D108: 35.13 | E108: 34.72 | F108: 34.28 | G108: 33.87 | H108: 35.57 | I108: 35.98 | J108: 36.42 | K108: 35.55 | L108: 34.7 | M108: 13.91566
A109: 100 | B109: HDFC | C109: 1777.7 | D109: 1774.17 | E109: 1766.53 | F109: 1755.37 | G109: 1747.73 | H109: 1785.33 | I109: 1792.97 | J109: 1804.13 | K109: 1781.8 | L109: 1763 | M109: 51.29995
A110: 101 | B110: ICICIBANK | C110: 357.95 | D110: 356.92 | E110: 354.18 | F110: 350.42 | G110: 347.68 | H110: 360.68 | I110: 363.42 | J110: 367.18 | K110: 359.65 | L110: 353.15 | M110: 285.12323
A111: 102 | B111: ICICIGI | C111: 1356.35 | D111: 1360.18 | E111: 1341.37 | F111: 1326.38 | G111: 1307.57 | H111: 1375.17 | I111: 1393.98 | J111: 1408.97 | K111: 1379 | L111: 1345.2 | M111: 2.59444
A112: 103 | B112: ICICIPRULI | C112: 470.4 | D112: 469.80 | E112: 463.00 | F112: 455.60 | G112: 448.80 | H112: 477.20 | I112: 484.00 | J112: 491.40 | K112: 476.6 | L112: 462.4 | M112: 24.6103
A113: 104 | B113: IDBI | C113: 40.3 | D113: 40.18 | E113: 38.92 | F113: 37.53 | G113: 36.27 | H113: 41.57 | I113: 42.83 | J113: 44.22 | K113: 41.45 | L113: 38.8 | M113: 69.25152
A114: 105 | B114: IDFCFIRSTB | C114: 28.4 | D114: 27.90 | E114: 27.25 | F114: 26.10 | G114: 25.45 | H114: 29.05 | I114: 29.70 | J114: 30.85 | K114: 28.55 | L114: 26.75 | M114: 581.44887
A115: 106 | B115: ITC | C115: 196.05 | D115: 195.73 | E115: 194.47 | F115: 192.88 | G115: 191.62 | H115: 197.32 | I115: 198.58 | J115: 200.17 | K115: 197 | L115: 194.15 | M115: 209.13956
A116: 107 | B116: IBULHSGFIN | C116: 193.35 | D116: 194.40 | E116: 189.15 | F116: 184.95 | G116: 179.70 | H116: 198.60 | I116: 203.85 | J116: 208.05 | K116: 199.65 | L116: 190.2 | M116: 218.51565
A117: 108 | B117: IBVENTURES | C117: 140.5 | D117: 137.13 | E117: 130.37 | F117: 120.23 | G117: 113.47 | H117: 147.27 | I117: 154.03 | J117: 164.17 | K117: 143.9 | L117: 127 | M117: 39.21048
A118: 109 | B118: INDHOTEL | C118: 77.85 | D118: 77.72 | E118: 77.13 | F118: 76.42 | G118: 75.83 | H118: 78.43 | I118: 79.02 | J118: 79.73 | K118: 78.3 | L118: 77 | M118: 16.06503
A119: 110 | B119: IOC | C119: 86.4 | D119: 86.82 | E119: 85.23 | F119: 84.07 | G119: 82.48 | H119: 87.98 | I119: 89.57 | J119: 90.73 | K119: 88.4 | L119: 85.65 | M119: 222.70182
A120: 111 | B120: IRCTC | C120: 1331.35 | D120: 1333.45 | E120: 1327.90 | F120: 1324.45 | G120: 1318.90 | H120: 1336.90 | I120: 1342.45 | J120: 1345.90 | K120: 1339 | L120: 1330 | M120: 2.70307
A121: 112 | B121: IGL | C121: 388.25 | D121: 386.77 | E121: 382.48 | F121: 376.72 | G121: 372.43 | H121: 392.53 | I121: 396.82 | J121: 402.58 | K121: 391.05 | L121: 381 | M121: 50.03718
A122: 113 | B122: INDUSINDBK | C122: 509 | D122: 504.78 | E122: 496.22 | F122: 483.43 | G122: 474.87 | H122: 517.57 | I122: 526.13 | J122: 538.92 | K122: 513.35 | L122: 492 | M122: 165.45264
A123: 114 | B123: NAUKRI | C123: 3312.9 | D123: 3318.33 | E123: 3269.67 | F123: 3226.43 | G123: 3177.77 | H123: 3361.57 | I123: 3410.23 | J123: 3453.47 | K123: 3367 | L123: 3275.1 | M123: 2.84416
A124: 115 | B124: INFY | C124: 950.9 | D124: 956.45 | E124: 943.45 | F124: 936.00 | G124: 923.00 | H124: 963.90 | I124: 976.90 | J124: 984.35 | K124: 969.45 | L124: 949 | M124: 80.10973
A125: 116 | B125: INDIGO | C125: 939.25 | D125: 938.18 | E125: 929.07 | F125: 918.88 | G125: 909.77 | H125: 948.37 | I125: 957.48 | J125: 967.67 | K125: 947.3 | L125: 928 | M125: 17.60819
A126: 117 | B126: IPCALAB | C126: 1956.7 | D126: 1967.23 | E126: 1939.47 | F126: 1922.23 | G126: 1894.47 | H126: 1984.47 | I126: 2012.23 | J126: 2029.47 | K126: 1995 | L126: 1950 | M126: 1.45153
A127: 118 | B127: JSWENERGY | C127: 48.1 | D127: 47.83 | E127: 45.02 | F127: 41.93 | G127: 39.12 | H127: 50.92 | I127: 53.73 | J127: 56.82 | K127: 50.65 | L127: 44.75 | M127: 173.45601
A128: 119 | B128: JSWSTEEL | C128: 240.2 | D128: 239.00 | E128: 237.00 | F128: 233.80 | G128: 231.80 | H128: 242.20 | I128: 244.20 | J128: 247.40 | K128: 241 | L128: 235.8 | M128: 67.94779
A129: 120 | B129: JINDALSTEL | C129: 199.4 | D129: 198.55 | E129: 196.10 | F129: 192.80 | G129: 190.35 | H129: 201.85 | I129: 204.30 | J129: 207.60 | K129: 201 | L129: 195.25 | M129: 102.06972
A130: 121 | B130: JUBLFOOD | C130: 1872.35 | D130: 1876.45 | E130: 1856.90 | F130: 1841.45 | G130: 1821.90 | H130: 1891.90 | I130: 1911.45 | J130: 1926.90 | K130: 1896 | L130: 1861 | M130: 9.68951
A131: 122 | B131: JUBILANT | C131: 839.35 | D131: 843.20 | E131: 830.40 | F131: 821.45 | G131: 808.65 | H131: 852.15 | I131: 864.95 | J131: 873.90 | K131: 856 | L131: 834.25 | M131: 5.60183
A132: 123 | B132: KOTAKBANK | C132: 1342.5 | D132: 1337.85 | E132: 1327.90 | F132: 1313.30 | G132: 1303.35 | H132: 1352.45 | I132: 1362.40 | J132: 1377.00 | K132: 1347.8 | L132: 1323.25 | M132: 28.07078
A133: 124 | B133: L&TFH | C133: 63.45 | D133: 62.90 | E133: 62.10 | F133: 60.75 | G133: 59.95 | H133: 64.25 | I133: 65.05 | J133: 66.40 | K133: 63.7 | L133: 61.55 | M133: 158.03862
A134: 125 | B134: LTTS | C134: 1592.95 | D134: 1589.32 | E134: 1553.63 | F134: 1514.32 | G134: 1478.63 | H134: 1628.63 | I134: 1664.32 | J134: 1703.63 | K134: 1625 | L134: 1550 | M134: 2.63861
A135: 126 | B135: LICHSGFIN | C135: 259.55 | D135: 261.02 | E135: 257.03 | F135: 254.52 | G135: 250.53 | H135: 263.53 | I135: 267.52 | J135: 270.03 | K135: 265 | L135: 258.5 | M135: 60.5178
A136: 127 | B136: LTI | C136: 2467.6 | D136: 2474.45 | E136: 2439.20 | F136: 2410.80 | G136: 2375.55 | H136: 2502.85 | I136: 2538.10 | J136: 2566.50 | K136: 2509.7 | L136: 2446.05 | M136: 0.75176
A137: 128 | B137: LT | C137: 915.65 | D137: 918.87 | E137: 910.88 | F137: 906.12 | G137: 898.13 | H137: 923.63 | I137: 931.62 | J137: 936.38 | K137: 926.85 | L137: 914.1 | M137: 24.61159
A138: 129 | B138: LUPIN | C138: 879.85 | D138: 890.78 | E138: 863.17 | F138: 846.48 | G138: 818.87 | H138: 907.47 | I138: 935.08 | J138: 951.77 | K138: 918.4 | L138: 874.1 | M138: 121.43358
A139: 130 | B139: MRF | C139: 62702.8 | D139: 62404.27 | E139: 61548.53 | F139: 60394.27 | G139: 59538.53 | H139: 63558.53 | I139: 64414.27 | J139: 65568.53 | K139: 63260 | L139: 61250 | M139: 0.29581
A140: 131 | B140: MGL | C140: 969 | D140: 971.85 | E140: 956.15 | F140: 943.30 | G140: 927.60 | H140: 984.70 | I140: 1000.40 | J140: 1013.25 | K140: 987.55 | L140: 959 | M140: 7.75997
A141: 132 | B141: M&MFIN | C141: 135.35 | D141: 135.93 | E141: 133.77 | F141: 132.18 | G141: 130.02 | H141: 137.52 | I141: 139.68 | J141: 141.27 | K141: 138.1 | L141: 134.35 | M141: 101.74796
A142: 133 | B142: M&M | C142: 600.45 | D142: 605.22 | E142: 593.93 | F142: 587.42 | G142: 576.13 | H142: 611.73 | I142: 623.02 | J142: 629.53 | K142: 616.5 | L142: 598.7 | M142: 76.79209
A143: 134 | B143: MANAPPURAM | C143: 161.6 | D143: 159.80 | E143: 157.45 | F143: 153.30 | G143: 150.95 | H143: 163.95 | I143: 166.30 | J143: 170.45 | K143: 162.15 | L143: 155.65 | M143: 163.32608
A144: 135 | B144: MRPL | C144: 34.55 | D144: 34.82 | E144: 34.23 | F144: 33.92 | G144: 33.33 | H144: 35.13 | I144: 35.72 | J144: 36.03 | K144: 35.4 | L144: 34.5 | M144: 13.28804
A145: 136 | B145: MARICO | C145: 370 | D145: 369.15 | E145: 366.35 | F145: 362.70 | G145: 359.90 | H145: 372.80 | I145: 375.60 | J145: 379.25 | K145: 371.95 | L145: 365.5 | M145: 25.55271
A146: 137 | B146: MARUTI | C146: 6679 | D146: 6636.78 | E146: 6524.07 | F146: 6369.13 | G146: 6256.42 | H146: 6791.72 | I146: 6904.43 | J146: 7059.37 | K146: 6749.5 | L146: 6481.85 | M146: 15.68
A147: 138 | B147: MFSL | C147: 535.9 | D147: 536.97 | E147: 528.93 | F147: 521.97 | G147: 513.93 | H147: 543.93 | I147: 551.97 | J147: 558.93 | K147: 545 | L147: 530 | M147: 4.75324
A148: 139 | B148: MINDTREE | C148: 1152.25 | D148: 1142.32 | E148: 1128.13 | F148: 1104.02 | G148: 1089.83 | H148: 1166.43 | I148: 1180.62 | J148: 1204.73 | K148: 1156.5 | L148: 1118.2 | M148: 9.19146
A149: 140 | B149: MOTHERSUMI | C149: 99.8 | D149: 99.55 | E149: 98.00 | F149: 96.20 | G149: 94.65 | H149: 101.35 | I149: 102.90 | J149: 104.70 | K149: 101.1 | L149: 97.75 | M149: 104.88879
A150: 141 | B150: MPHASIS | C150: 1164.4 | D150: 1164.67 | E150: 1157.58 | F150: 1150.77 | G150: 1143.68 | H150: 1171.48 | I150: 1178.57 | J150: 1185.38 | K150: 1171.75 | L150: 1157.85 | M150: 3.70458
A151: 142 | B151: MUTHOOTFIN | C151: 1217 | D151: 1214.22 | E151: 1193.78 | F151: 1170.57 | G151: 1150.13 | H151: 1237.43 | I151: 1257.87 | J151: 1281.08 | K151: 1234.65 | L151: 1191 | M151: 57.79809
A152: 143 | B152: NATCOPHARM | C152: 781.75 | D152: 778.85 | E152: 762.90 | F152: 744.05 | G152: 728.10 | H152: 797.70 | I152: 813.65 | J152: 832.50 | K152: 794.8 | L152: 760 | M152: 6.96088
A153: 144 | B153: NHPC | C153: 20.45 | D153: 20.35 | E153: 20.20 | F153: 19.95 | G153: 19.80 | H153: 20.60 | I153: 20.75 | J153: 21.00 | K153: 20.5 | L153: 20.1 | M153: 29.64871
A154: 145 | B154: NIITTECH | C154: 1988.85 | D154: 1998.87 | E154: 1961.13 | F154: 1933.42 | G154: 1895.68 | H154: 2026.58 | I154: 2064.32 | J154: 2092.03 | K154: 2036.6 | L154: 1971.15 | M154: 8.05159
A155: 146 | B155: NMDC | C155: 89.1 | D155: 88.78 | E155: 88.12 | F155: 87.13 | G155: 86.47 | H155: 89.77 | I155: 90.43 | J155: 91.42 | K155: 89.45 | L155: 87.8 | M155: 91.57129
A156: 147 | B156: NTPC | C156: 85.8 | D156: 85.95 | E156: 85.20 | F156: 84.60 | G156: 83.85 | H156: 86.55 | I156: 87.30 | J156: 87.90 | K156: 86.7 | L156: 85.35 | M156: 103.40142
A157: 148 | B157: NATIONALUM | C157: 34.9 | D157: 34.88 | E157: 34.47 | F157: 34.03 | G157: 33.62 | H157: 35.32 | I157: 35.73 | J157: 36.17 | K157: 35.3 | L157: 34.45 | M157: 111.44307
A158: 149 | B158: NESTLEIND | C158: 16788.6 | D158: 16747.83 | E158: 16596.67 | F158: 16404.73 | G158: 16253.57 | H158: 16939.77 | I158: 17090.93 | J158: 17282.87 | K158: 16899 | L158: 16555.9 | M158: 0.8845
A159: 150 | B159: NAM-INDIA | C159: 272.95 | D159: 271.23 | E159: 264.12 | F159: 255.28 | G159: 248.17 | H159: 280.07 | I159: 287.18 | J159: 296.02 | K159: 278.35 | L159: 262.4 | M159: 18.98495
A160: 151 | B160: OBEROIRLTY | C160: 368.65 | D160: 368.58 | E160: 361.17 | F160: 353.68 | G160: 346.27 | H160: 376.07 | I160: 383.48 | J160: 390.97 | K160: 376 | L160: 361.1 | M160: 2.53523
A161: 152 | B161: ONGC | C161: 78.65 | D161: 78.72 | E161: 78.03 | F161: 77.42 | G161: 76.73 | H161: 79.33 | I161: 80.02 | J161: 80.63 | K161: 79.4 | L161: 78.1 | M161: 117.87233
A162: 153 | B162: OIL | C162: 94.85 | D162: 95.15 | E162: 94.35 | F162: 93.85 | G162: 93.05 | H162: 95.65 | I162: 96.45 | J162: 96.95 | K162: 95.95 | L162: 94.65 | M162: 4.16065
A163: 154 | B163: OFSS | C163: 2929.7 | D163: 2944.43 | E163: 2903.87 | F163: 2878.03 | G163: 2837.47 | H163: 2970.27 | I163: 3010.83 | J163: 3036.67 | K163: 2985 | L163: 2918.6 | M163: 0.28463
A164: 155 | B164: PIIND | C164: 1946.4 | D164: 2014.80 | E164: 1869.60 | F164: 1792.80 | G164: 1647.60 | H164: 2091.60 | I164: 2236.80 | J164: 2313.60 | K164: 2160 | L164: 1938 | M164: 8.92157
A165: 156 | B165: PNBHOUSING | C165: 218.45 | D165: 219.55 | E165: 213.50 | F165: 208.55 | G165: 202.50 | H165: 224.50 | I165: 230.55 | J165: 235.50 | K165: 225.6 | L165: 214.6 | M165: 17.40612
A166: 157 | B166: PAGEIND | C166: 19011.85 | D166: 19163.93 | E166: 18827.92 | F166: 18643.98 | G166: 18307.97 | H166: 19347.87 | I166: 19683.88 | J166: 19867.82 | K166: 19499.95 | L166: 18980 | M166: 0.65348
A167: 158 | B167: PETRONET | C167: 244.5 | D167: 244.58 | E167: 241.97 | F167: 239.43 | G167: 236.82 | H167: 247.12 | I167: 249.73 | J167: 252.27 | K167: 247.2 | L167: 242.05 | M167: 24.0714
A168: 159 | B168: PFIZER | C168: 4383.5 | D168: 4385.22 | E168: 4348.28 | F168: 4313.07 | G168: 4276.13 | H168: 4420.43 | I168: 4457.37 | J168: 4492.58 | K168: 4422.15 | L168: 4350 | M168: 0.21132
A169: 160 | B169: PIDILITIND | C169: 1378.3 | D169: 1365.03 | E169: 1336.37 | F169: 1294.43 | G169: 1265.77 | H169: 1406.97 | I169: 1435.63 | J169: 1477.57 | K169: 1393.7 | L169: 1323.1 | M169: 38.71685
A170: 161 | B170: PEL | C170: 1464.2 | D170: 1479.70 | E170: 1439.45 | F170: 1414.70 | G170: 1374.45 | H170: 1504.45 | I170: 1544.70 | J170: 1569.45 | K170: 1519.95 | L170: 1454.95 | M170: 17.64897
A171: 162 | B171: POLYCAB | C171: 842.45 | D171: 844.18 | E171: 833.37 | F171: 824.28 | G171: 813.47 | H171: 853.27 | I171: 864.08 | J171: 873.17 | K171: 855 | L171: 835.1 | M171: 2.15544
A172: 163 | B172: PFC | C172: 85.45 | D172: 86.10 | E172: 84.30 | F172: 83.15 | G172: 81.35 | H172: 87.25 | I172: 89.05 | J172: 90.20 | K172: 87.9 | L172: 84.95 | M172: 75.15012
A173: 164 | B173: POWERGRID | C173: 175.95 | D173: 176.38 | E173: 174.82 | F173: 173.68 | G173: 172.12 | H173: 177.52 | I173: 179.08 | J173: 180.22 | K173: 177.95 | L173: 175.25 | M173: 45.15135
A174: 165 | B174: PRESTIGE | C174: 225.1 | D174: 226.37 | E174: 220.73 | F174: 216.37 | G174: 210.73 | H174: 230.73 | I174: 236.37 | J174: 240.73 | K174: 232 | L174: 222 | M174: 16.20051
A175: 166 | B175: PGHH | C175: 10311.4 | D175: 10329.22 | E175: 10233.43 | F175: 10155.47 | G175: 10059.68 | H175: 10407.18 | I175: 10502.97 | J175: 10580.93 | K175: 10425 | L175: 10251.25 | M175: 0.12864
A176: 167 | B176: PNB | C176: 32.8 | D176: 32.67 | E176: 32.38 | F176: 31.97 | G176: 31.68 | H176: 33.08 | I176: 33.37 | J176: 33.78 | K176: 32.95 | L176: 32.25 | M176: 182.60474
A177: 168 | B177: QUESS | C177: 369.6 | D177: 368.80 | E177: 358.90 | F177: 348.20 | G177: 338.30 | H177: 379.50 | I177: 389.40 | J177: 400.10 | K177: 378.7 | L177: 358.1 | M177: 2.08708
A178: 169 | B178: RBLBANK | C178: 191.3 | D178: 185.47 | E178: 177.23 | F178: 163.17 | G178: 154.93 | H178: 199.53 | I178: 207.77 | J178: 221.83 | K178: 193.7 | L178: 171.4 | M178: 713.65078
A179: 170 | B179: RECLTD | C179: 105.75 | D179: 105.95 | E179: 103.20 | F179: 100.65 | G179: 97.90 | H179: 108.50 | I179: 111.25 | J179: 113.80 | K179: 108.7 | L179: 103.4 | M179: 118.70721
A180: 171 | B180: RAJESHEXPO | C180: 458.55 | D180: 463.70 | E180: 451.50 | F180: 444.45 | G180: 432.25 | H180: 470.75 | I180: 482.95 | J180: 490.00 | K180: 475.9 | L180: 456.65 | M180: 1.69558
A181: 172 | B181: RELIANCE | C181: 2146.45 | D181: 2141.48 | E181: 2125.17 | F181: 2103.88 | G181: 2087.57 | H181: 2162.77 | I181: 2179.08 | J181: 2200.37 | K181: 2157.8 | L181: 2120.2 | M181: 152.22384
A182: 173 | B182: SBICARD | C182: 757.95 | D182: 758.65 | E182: 752.30 | F182: 746.65 | G182: 740.30 | H182: 764.30 | I182: 770.65 | J182: 776.30 | K182: 765 | L182: 753 | M182: 9.13957
A183: 174 | B183: SBILIFE | C183: 868.6 | D183: 871.53 | E183: 859.22 | F183: 849.83 | G183: 837.52 | H183: 880.92 | I183: 893.23 | J183: 902.62 | K183: 883.85 | L183: 862.15 | M183: 8.27168
A184: 175 | B184: SRF | C184: 4081.35 | D184: 4011.62 | E184: 3900.28 | F184: 3719.22 | G184: 3607.88 | H184: 4192.68 | I184: 4304.02 | J184: 4485.08 | K184: 4122.95 | L184: 3830.55 | M184: 10.11129
A185: 176 | B185: SHREECEM | C185: 21910.1 | D185: 21868.52 | E185: 21662.88 | F185: 21415.67 | G185: 21210.03 | H185: 22115.73 | I185: 22321.37 | J185: 22568.58 | K185: 22074.15 | L185: 21621.3 | M185: 0.41439
A186: 177 | B186: SRTRANSFIN | C186: 676.75 | D186: 671.92 | E186: 663.83 | F186: 650.92 | G186: 642.83 | H186: 684.83 | I186: 692.92 | J186: 705.83 | K186: 680 | L186: 659 | M186: 28.96072
A187: 178 | B187: SIEMENS | C187: 1152.35 | D187: 1153.08 | E187: 1141.37 | F187: 1130.38 | G187: 1118.67 | H187: 1164.07 | I187: 1175.78 | J187: 1186.77 | K187: 1164.8 | L187: 1142.1 | M187: 5.85187
A188: 179 | B188: SBIN | C188: 190.65 | D188: 190.77 | E188: 189.43 | F188: 188.22 | G188: 186.88 | H188: 191.98 | I188: 193.32 | J188: 194.53 | K188: 192.1 | L188: 189.55 | M188: 448.22757
A189: 180 | B189: SAIL | C189: 37.7 | D189: 37.68 | E189: 37.12 | F189: 36.53 | G189: 35.97 | H189: 38.27 | I189: 38.83 | J189: 39.42 | K189: 38.25 | L189: 37.1 | M189: 302.10487
A190: 181 | B190: SUNPHARMA | C190: 525.95 | D190: 528.00 | E190: 520.55 | F190: 515.15 | G190: 507.70 | H190: 533.40 | I190: 540.85 | J190: 546.25 | K190: 535.45 | L190: 522.6 | M190: 72.75659
A191: 182 | B191: SUNTV | C191: 394.35 | D191: 396.63 | E191: 390.67 | F191: 386.98 | G191: 381.02 | H191: 400.32 | I191: 406.28 | J191: 409.97 | K191: 402.6 | L191: 392.95 | M191: 9.37639
A192: 183 | B192: SYNGENE | C192: 471.35 | D192: 472.57 | E192: 466.13 | F192: 460.92 | G192: 454.48 | H192: 477.78 | I192: 484.22 | J192: 489.43 | K192: 479 | L192: 467.35 | M192: 5.32398
A193: 184 | B193: TVSMOTOR | C193: 421.5 | D193: 422.18 | E193: 414.47 | F193: 407.43 | G193: 399.72 | H193: 429.22 | I193: 436.93 | J193: 443.97 | K193: 429.9 | L193: 415.15 | M193: 58.9438
A194: 185 | B194: TCS | C194: 2295.35 | D194: 2303.45 | E194: 2278.90 | F194: 2262.45 | G194: 2237.90 | H194: 2319.90 | I194: 2344.45 | J194: 2360.90 | K194: 2328 | L194: 2287 | M194: 31.65495
A195: 186 | B195: TATACONSUM | C195: 518.6 | D195: 510.42 | E195: 490.88 | F195: 463.17 | G195: 443.63 | H195: 538.13 | I195: 557.67 | J195: 585.38 | K195: 529.95 | L195: 482.7 | M195: 305.60093
A196: 187 | B196: TATAMOTORS | C196: 119.1 | D196: 118.27 | E196: 116.83 | F196: 114.57 | G196: 113.13 | H196: 120.53 | I196: 121.97 | J196: 124.23 | K196: 119.7 | L196: 116 | M196: 564.89837
A197: 188 | B197: TATAPOWER | C197: 49.7 | D197: 49.80 | E197: 49.00 | F197: 48.30 | G197: 47.50 | H197: 50.50 | I197: 51.30 | J197: 52.00 | K197: 50.6 | L197: 49.1 | M197: 200.80105
A198: 189 | B198: TATASTEEL | C198: 404.05 | D198: 401.28 | E198: 395.87 | F198: 387.68 | G198: 382.27 | H198: 409.47 | I198: 414.88 | J198: 423.07 | K198: 406.7 | L198: 393.1 | M198: 151.76343
A199: 190 | B199: TECHM | C199: 662.45 | D199: 661.62 | E199: 655.23 | F199: 648.02 | G199: 641.63 | H199: 668.83 | I199: 675.22 | J199: 682.43 | K199: 668 | L199: 654.4 | M199: 38.23898
A200: 191 | B200: RAMCOCEM | C200: 688.2 | D200: 687.70 | E200: 677.45 | F200: 666.70 | G200: 656.45 | H200: 698.45 | I200: 708.70 | J200: 719.45 | K200: 697.95 | L200: 676.95 | M200: 7.97319
A201: 192 | B201: TITAN | C201: 1091.05 | D201: 1102.83 | E201: 1074.27 | F201: 1057.48 | G201: 1028.92 | H201: 1119.62 | I201: 1148.18 | J201: 1164.97 | K201: 1131.4 | L201: 1086.05 | M201: 45.53674
A202: 193 | B202: TORNTPHARM | C202: 2941.05 | D202: 2953.10 | E202: 2914.95 | F202: 2888.85 | G202: 2850.70 | H202: 2979.20 | I202: 3017.35 | J202: 3043.45 | K202: 2991.25 | L202: 2927 | M202: 10.37725
A203: 194 | B203: TORNTPOWER | C203: 337.1 | D203: 342.98 | E203: 328.22 | F203: 319.33 | G203: 304.57 | H203: 351.87 | I203: 366.63 | J203: 375.52 | K203: 357.75 | L203: 334.1 | M203: 131.1582
A204: 195 | B204: TRENT | C204: 578.65 | D204: 578.18 | E204: 558.57 | F204: 538.48 | G204: 518.87 | H204: 598.27 | I204: 617.88 | J204: 637.97 | K204: 597.8 | L204: 558.1 | M204: 6.48885
A205: 196 | B205: UPL | C205: 480.3 | D205: 476.90 | E205: 468.90 | F205: 457.50 | G205: 449.50 | H205: 488.30 | I205: 496.30 | J205: 507.70 | K205: 484.9 | L205: 465.5 | M205: 100.13682
... 29 more rows

Sheet MidCap Intra
L5: Back To Main Page
A6: FOR INTRA DAY TRADING | K6: =Main!B10 -> 2020-08-10
A9: Sr.no | B9: Scrip | C9: CLOSE RATE | D9: Pivot Point | E9: Supports | H9: Resistances
C10: Point | E10: S1 | F10: S2 | G10: S3 | H10: R1 | I10: R2 | J10: R3 | K10: HIGH | L10: LOW | M10: Total Trade Quanity in Lakhs
A11: 1 | B11: 3MINDIA | C11: 21478.65 | D11: 21192.88 | E11: 20735.77 | F11: 19992.88 | G11: 19535.77 | H11: 21935.77 | I11: 22392.88 | J11: 23135.77 | K11: 21650 | L11: 20450 | M11: 0.05212
A12: 2 | B12: AARTIIND | C12: 1067.7 | D12: 1067.37 | E12: 1057.73 | F12: 1047.77 | G12: 1038.13 | H12: 1077.33 | I12: 1086.97 | J12: 1096.93 | K12: 1077 | L12: 1057.4 | M12: 4.14414
A13: 3 | B13: AAVAS | C13: 1349.9 | D13: 1357.25 | E13: 1331.55 | F13: 1313.20 | G13: 1287.50 | H13: 1375.60 | I13: 1401.30 | J13: 1419.65 | K13: 1382.95 | L13: 1338.9 | M13: 0.30132
A14: 4 | B14: ABB | C14: 881.8 | D14: 888.52 | E14: 872.68 | F14: 863.57 | G14: 847.73 | H14: 897.63 | I14: 913.47 | J14: 922.58 | K14: 904.35 | L14: 879.4 | M14: 0.95492
A15: 5 | B15: ABBOTINDIA | C15: 16199 | D15: 16192.25 | E15: 16085.80 | F15: 15972.60 | G15: 15866.15 | H15: 16305.45 | I15: 16411.90 | J15: 16525.10 | K15: 16298.7 | L15: 16079.05 | M15: 0.15324
A16: 6 | B16: ABCAPITAL | C16: 59.15 | D16: 58.93 | E16: 58.12 | F16: 57.08 | G16: 56.27 | H16: 59.97 | I16: 60.78 | J16: 61.82 | K16: 59.75 | L16: 57.9 | M16: 26.56815
A17: 7 | B17: ABFRL | C17: 120.95 | D17: 121.93 | E17: 119.02 | F17: 117.08 | G17: 114.17 | H17: 123.87 | I17: 126.78 | J17: 128.72 | K17: 124.85 | L17: 120 | M17: 20.38128
A18: 8 | B18: ACC | C18: 1397.2 | D18: 1404.25 | E18: 1385.45 | F18: 1373.70 | G18: 1354.90 | H18: 1416.00 | I18: 1434.80 | J18: 1446.55 | K18: 1423.05 | L18: 1392.5 | M18: 6.90559
A19: 9 | B19: ADANIGAS | C19: 162.05 | D19: 159.52 | E19: 155.53 | F19: 149.02 | G19: 145.03 | H19: 166.03 | I19: 170.02 | J19: 176.53 | K19: 163.5 | L19: 153 | M19: 29.33243
A20: 10 | B20: ADANIGREEN | C20: 370.45 | D20: 362.73 | E20: 349.72 | F20: 328.98 | G20: 315.97 | H20: 383.47 | I20: 396.48 | J20: 417.22 | K20: 375.75 | L20: 342 | M20: 22.82613
A21: 11 | B21: ADANIPORTS | C21: 326.65 | D21: 325.52 | E21: 322.68 | F21: 318.72 | G21: 315.88 | H21: 329.48 | I21: 332.32 | J21: 336.28 | K21: 328.35 | L21: 321.55 | M21: 26.34956
A22: 12 | B22: ADANIPOWER | C22: 36.65 | D22: 36.25 | E22: 35.60 | F22: 34.55 | G22: 33.90 | H22: 37.30 | I22: 37.95 | J22: 39.00 | K22: 36.9 | L22: 35.2 | M22: 83.91661
A23: 13 | B23: ADANITRANS | C23: 249.7 | D23: 245.67 | E23: 238.03 | F23: 226.37 | G23: 218.73 | H23: 257.33 | I23: 264.97 | J23: 276.63 | K23: 253.3 | L23: 234 | M23: 15.46086
A24: 14 | B24: ADVENZYMES | C24: 216.7 | D24: 218.07 | E24: 213.63 | F24: 210.57 | G24: 206.13 | H24: 221.13 | I24: 225.57 | J24: 228.63 | K24: 222.5 | L24: 215 | M24: 5.40765
A25: 15 | B25: AEGISCHEM | C25: 208.35 | D25: 210.97 | E25: 204.13 | F25: 199.92 | G25: 193.08 | H25: 215.18 | I25: 222.02 | J25: 226.23 | K25: 217.8 | L25: 206.75 | M25: 3.41378
A26: 16 | B26: AFFLE | C26: 1842.2 | D26: 1854.07 | E26: 1813.13 | F26: 1784.07 | G26: 1743.13 | H26: 1883.13 | I26: 1924.07 | J26: 1953.13 | K26: 1895 | L26: 1825 | M26: 0.83909
A27: 17 | B27: AIAENG | C27: 1666.3 | D27: 1678.75 | E27: 1647.55 | F27: 1628.80 | G27: 1597.60 | H27: 1697.50 | I27: 1728.70 | J27: 1747.45 | K27: 1709.95 | L27: 1660 | M27: 0.24247
A28: 18 | B28: AJANTPHARM | C28: 1693.1 | D28: 1695.68 | E28: 1673.42 | F28: 1653.73 | G28: 1631.47 | H28: 1715.37 | I28: 1737.63 | J28: 1757.32 | K28: 1717.95 | L28: 1676 | M28: 2.29507
A29: 19 | B29: AKZOINDIA | C29: 1915.3 | D29: 1903.65 | E29: 1872.65 | F29: 1830.00 | G29: 1799.00 | H29: 1946.30 | I29: 1977.30 | J29: 2019.95 | K29: 1934.65 | L29: 1861 | M29: 0.14453
A30: 20 | B30: ALKEM | C30: 2981.95 | D30: 2985.65 | E30: 2881.30 | F30: 2780.65 | G30: 2676.30 | H30: 3086.30 | I30: 3190.65 | J30: 3291.30 | K30: 3090 | L30: 2885 | M30: 23.37098
A31: 21 | B31: ALKYLAMINE | C31: 2444.2 | D31: 2426.40 | E31: 2402.80 | F31: 2361.40 | G31: 2337.80 | H31: 2467.80 | I31: 2491.40 | J31: 2532.80 | K31: 2450 | L31: 2385 | M31: 0.22356
A32: 22 | B32: ALLCARGO | C32: 98.35 | D32: 97.60 | E32: 95.80 | F32: 93.25 | G32: 91.45 | H32: 100.15 | I32: 101.95 | J32: 104.50 | K32: 99.4 | L32: 95.05 | M32: 1.61081
A33: 23 | B33: AMARAJABAT | C33: 718.15 | D33: 719.63 | E33: 712.02 | F33: 705.88 | G33: 698.27 | H33: 725.77 | I33: 733.38 | J33: 739.52 | K33: 727.25 | L33: 713.5 | M33: 6.88883
A34: 24 | B34: AMBER | C34: 1779.2 | D34: 1757.77 | E34: 1715.53 | F34: 1651.87 | G34: 1609.63 | H34: 1821.43 | I34: 1863.67 | J34: 1927.33 | K34: 1800 | L34: 1694.1 | M34: 1.39324
A35: 25 | B35: AMBUJACEM | C35: 219.55 | D35: 221.47 | E35: 216.68 | F35: 213.82 | G35: 209.03 | H35: 224.33 | I35: 229.12 | J35: 231.98 | K35: 226.25 | L35: 218.6 | M35: 48.71444
A36: 26 | B36: APLAPOLLO | C36: 2167.1 | D36: 2154.62 | E36: 2111.48 | F36: 2055.87 | G36: 2012.73 | H36: 2210.23 | I36: 2253.37 | J36: 2308.98 | K36: 2197.75 | L36: 2099 | M36: 0.64267
A37: 27 | B37: APLLTD | C37: 1051.15 | D37: 1075.02 | E37: 1021.13 | F37: 991.12 | G37: 937.23 | H37: 1105.03 | I37: 1158.92 | J37: 1188.93 | K37: 1128.9 | L37: 1045 | M37: 13.23116
A38: 28 | B38: APOLLOHOSP | C38: 1743.2 | D38: 1732.25 | E38: 1711.50 | F38: 1679.80 | G38: 1659.05 | H38: 1763.95 | I38: 1784.70 | J38: 1816.40 | K38: 1753 | L38: 1700.55 | M38: 15.7038
A39: 29 | B39: APOLLOTYRE | C39: 123.55 | D39: 121.00 | E39: 117.05 | F39: 110.55 | G39: 106.60 | H39: 127.50 | I39: 131.45 | J39: 137.95 | K39: 124.95 | L39: 114.5 | M39: 327.59762
A40: 30 | B40: ARVINDFASN | C40: 122.9 | D40: 122.68 | E40: 121.37 | F40: 119.83 | G40: 118.52 | H40: 124.22 | I40: 125.53 | J40: 127.07 | K40: 124 | L40: 121.15 | M40: 1.60558
A41: 31 | B41: ASAHIINDIA | C41: 196.5 | D41: 193.13 | E41: 188.37 | F41: 180.23 | G41: 175.47 | H41: 201.27 | I41: 206.03 | J41: 214.17 | K41: 197.9 | L41: 185 | M41: 1.31946
A42: 32 | B42: ASHOKA | C42: 58 | D42: 57.72 | E42: 57.03 | F42: 56.07 | G42: 55.38 | H42: 58.68 | I42: 59.37 | J42: 60.33 | K42: 58.4 | L42: 56.75 | M42: 10.98709
A43: 33 | B43: ASHOKLEY | C43: 49.95 | D43: 49.73 | E43: 49.07 | F43: 48.18 | G43: 47.52 | H43: 50.62 | I43: 51.28 | J43: 52.17 | K43: 50.4 | L43: 48.85 | M43: 288.02772
A44: 34 | B44: ASIANPAINT | C44: 1806.25 | D44: 1782.95 | E44: 1749.00 | F44: 1691.75 | G44: 1657.80 | H44: 1840.20 | I44: 1874.15 | J44: 1931.40 | K44: 1816.9 | L44: 1725.7 | M44: 51.6609
A45: 35 | B45: ASTERDM | C45: 128.3 | D45: 129.37 | E45: 126.83 | F45: 125.37 | G45: 122.83 | H45: 130.83 | I45: 133.37 | J45: 134.83 | K45: 131.9 | L45: 127.9 | M45: 0.86546
A46: 36 | B46: ASTRAL | C46: 1048.95 | D46: 1046.32 | E46: 1017.63 | F46: 986.32 | G46: 957.63 | H46: 1077.63 | I46: 1106.32 | J46: 1137.63 | K46: 1075 | L46: 1015 | M46: 2.74854
A47: 37 | B47: ASTRAZEN | C47: 3332.8 | D47: 3336.40 | E47: 3315.40 | F47: 3298.00 | G47: 3277.00 | H47: 3353.80 | I47: 3374.80 | J47: 3392.20 | K47: 3357.4 | L47: 3319 | M47: 0.23134
A48: 38 | B48: ATUL | C48: 5152.55 | D48: 5180.52 | E48: 5082.03 | F48: 5011.52 | G48: 4913.03 | H48: 5251.03 | I48: 5349.52 | J48: 5420.03 | K48: 5279 | L48: 5110 | M48: 0.32546
A49: 39 | B49: AUBANK | C49: 709.5 | D49: 715.40 | E49: 701.10 | F49: 692.70 | G49: 678.40 | H49: 723.80 | I49: 738.10 | J49: 746.50 | K49: 729.7 | L49: 707 | M49: 4.82417
A50: 40 | B50: AUROPHARMA | C50: 906.45 | D50: 909.15 | E50: 895.30 | F50: 884.15 | G50: 870.30 | H50: 920.30 | I50: 934.15 | J50: 945.30 | K50: 923 | L50: 898 | M50: 75.55414
A51: 41 | B51: AVANTIFEED | C51: 485.35 | D51: 487.03 | E51: 476.32 | F51: 467.28 | G51: 456.57 | H51: 496.07 | I51: 506.78 | J51: 515.82 | K51: 497.75 | L51: 478 | M51: 10.48977
A52: 42 | B52: AXISBANK | C52: 433.3 | D52: 432.48 | E52: 427.97 | F52: 422.63 | G52: 418.12 | H52: 437.82 | I52: 442.33 | J52: 447.67 | K52: 437 | L52: 427.15 | M52: 155.70556
A53: 43 | B53: BAJAJ-AUTO | C53: 3001.7 | D53: 2998.57 | E53: 2978.13 | F53: 2954.57 | G53: 2934.13 | H53: 3022.13 | I53: 3042.57 | J53: 3066.13 | K53: 3019 | L53: 2975 | M53: 5.15513
A54: 44 | B54: BAJAJCON | C54: 182.35 | D54: 182.92 | E54: 178.98 | F54: 175.62 | G54: 171.68 | H54: 186.28 | I54: 190.22 | J54: 193.58 | K54: 186.85 | L54: 179.55 | M54: 17.38547
A55: 45 | B55: BAJAJELEC | C55: 430.15 | D55: 432.57 | E55: 425.58 | F55: 421.02 | G55: 414.03 | H55: 437.13 | I55: 444.12 | J55: 448.68 | K55: 439.55 | L55: 428 | M55: 3.2373
A56: 46 | B56: BAJAJFINSV | C56: 6467.15 | D56: 6405.72 | E56: 6311.43 | F56: 6155.72 | G56: 6061.43 | H56: 6561.43 | I56: 6655.72 | J56: 6811.43 | K56: 6500 | L56: 6250 | M56: 8.25773
A57: 47 | B57: BAJAJHLDNG | C57: 2701.05 | D57: 2692.87 | E57: 2668.58 | F57: 2636.12 | G57: 2611.83 | H57: 2725.33 | I57: 2749.62 | J57: 2782.08 | K57: 2717.15 | L57: 2660.4 | M57: 0.263
A58: 48 | B58: BAJFINANCE | C58: 3464.3 | D58: 3418.58 | E58: 3355.72 | F58: 3247.13 | G58: 3184.27 | H58: 3527.17 | I58: 3590.03 | J58: 3698.62 | K58: 3481.45 | L58: 3310 | M58: 101.51345
A59: 49 | B59: BALKRISIND | C59: 1349.85 | D59: 1359.83 | E59: 1336.12 | F59: 1322.38 | G59: 1298.67 | H59: 1373.57 | I59: 1397.28 | J59: 1411.02 | K59: 1383.55 | L59: 1346.1 | M59: 9.73243
A60: 50 | B60: BALMLAWRIE | C60: 116.45 | D60: 116.35 | E60: 114.75 | F60: 113.05 | G60: 111.45 | H60: 118.05 | I60: 119.65 | J60: 121.35 | K60: 117.95 | L60: 114.65 | M60: 2.82715
A61: 51 | B61: BALRAMCHIN | C61: 130.2 | D61: 129.85 | E61: 127.35 | F61: 124.50 | G61: 122.00 | H61: 132.70 | I61: 135.20 | J61: 138.05 | K61: 132.35 | L61: 127 | M61: 33.90241
A62: 52 | B62: BANDHANBNK | C62: 307.5 | D62: 305.68 | E62: 302.07 | F62: 296.63 | G62: 293.02 | H62: 311.12 | I62: 314.73 | J62: 320.17 | K62: 309.3 | L62: 300.25 | M62: 208.35433
A63: 53 | B63: BANKBARODA | C63: 48.35 | D63: 47.77 | E63: 46.68 | F63: 45.02 | G63: 43.93 | H63: 49.43 | I63: 50.52 | J63: 52.18 | K63: 48.85 | L63: 46.1 | M63: 371.47126
A64: 54 | B64: BANKINDIA | C64: 48.95 | D64: 48.95 | E64: 48.10 | F64: 47.25 | G64: 46.40 | H64: 49.80 | I64: 50.65 | J64: 51.50 | K64: 49.8 | L64: 48.1 | M64: 27.35923
A65: 55 | B65: BASF | C65: 1325.7 | D65: 1333.65 | E65: 1302.30 | F65: 1278.90 | G65: 1247.55 | H65: 1357.05 | I65: 1388.40 | J65: 1411.80 | K65: 1365 | L65: 1310.25 | M65: 1.08491
A66: 56 | B66: BATAINDIA | C66: 1257.9 | D66: 1261.12 | E66: 1248.78 | F66: 1239.67 | G66: 1227.33 | H66: 1270.23 | I66: 1282.57 | J66: 1291.68 | K66: 1273.45 | L66: 1252 | M66: 14.89623
A67: 57 | B67: BAYERCROP | C67: 6137.85 | D67: 6229.63 | E67: 6009.27 | F67: 5880.68 | G67: 5660.32 | H67: 6358.22 | I67: 6578.58 | J67: 6707.17 | K67: 6450 | L67: 6101.05 | M67: 1.82253
A68: 58 | B68: BBTC | C68: 1360.5 | D68: 1357.48 | E68: 1335.02 | F68: 1309.53 | G68: 1287.07 | H68: 1382.97 | I68: 1405.43 | J68: 1430.92 | K68: 1379.95 | L68: 1332 | M68: 2.22398
A69: 59 | B69: BDL | C69: 419.45 | D69: 421.95 | E69: 414.50 | F69: 409.55 | G69: 402.10 | H69: 426.90 | I69: 434.35 | J69: 439.30 | K69: 429.4 | L69: 417 | M69: 8.96272
A70: 60 | B70: BEL | C70: 99.2 | D70: 99.43 | E70: 98.12 | F70: 97.03 | G70: 95.72 | H70: 100.52 | I70: 101.83 | J70: 102.92 | K70: 100.75 | L70: 98.35 | M70: 77.70524
A71: 61 | B71: BEML | C71: 656.6 | D71: 656.70 | E71: 646.95 | F71: 637.30 | G71: 627.55 | H71: 666.35 | I71: 676.10 | J71: 685.75 | K71: 666.45 | L71: 647.05 | M71: 6.6419
A72: 62 | B72: BERGEPAINT | C72: 555.15 | D72: 546.67 | E72: 535.33 | F72: 515.52 | G72: 504.18 | H72: 566.48 | I72: 577.82 | J72: 597.63 | K72: 558 | L72: 526.85 | M72: 36.88766
A73: 63 | B73: BHARATFORG | C73: 407.8 | D73: 408.67 | E73: 403.83 | F73: 399.87 | G73: 395.03 | H73: 412.63 | I73: 417.47 | J73: 421.43 | K73: 413.5 | L73: 404.7 | M73: 20.08743
A74: 64 | B74: BHARATRAS | C74: 10026.7 | D74: 9959.58 | E74: 9719.17 | F74: 9411.63 | G74: 9171.22 | H74: 10267.12 | I74: 10507.53 | J74: 10815.07 | K74: 10200 | L74: 9652.05 | M74: 0.16915
A75: 65 | B75: BHARTIARTL | C75: 560.8 | D75: 558.75 | E75: 554.10 | F75: 547.40 | G75: 542.75 | H75: 565.45 | I75: 570.10 | J75: 576.80 | K75: 563.4 | L75: 552.05 | M75: 72.10904
A76: 66 | B76: BHEL | C76: 35.25 | D76: 35.18 | E76: 34.82 | F76: 34.38 | G76: 34.02 | H76: 35.62 | I76: 35.98 | J76: 36.42 | K76: 35.55 | L76: 34.75 | M76: 339.40333
A77: 67 | B77: BIOCON | C77: 399.45 | D77: 402.45 | E77: 393.05 | F77: 386.65 | G77: 377.25 | H77: 408.85 | I77: 418.25 | J77: 424.65 | K77: 411.85 | L77: 396.05 | M77: 56.34992
A78: 68 | B78: BIRLACORPN | C78: 653.1 | D78: 659.38 | E78: 636.77 | F78: 620.43 | G78: 597.82 | H78: 675.72 | I78: 698.33 | J78: 714.67 | K78: 682 | L78: 643.05 | M78: 5.73695
A79: 69 | B79: BLISSGVS | C79: 130.05 | D79: 130.27 | E79: 127.78 | F79: 125.52 | G79: 123.03 | H79: 132.53 | I79: 135.02 | J79: 137.28 | K79: 132.75 | L79: 128 | M79: 7.09826
A80: 70 | B80: BLUEDART | C80: 1998.65 | D80: 2010.93 | E80: 1977.77 | F80: 1956.88 | G80: 1923.72 | H80: 2031.82 | I80: 2064.98 | J80: 2085.87 | K80: 2044.1 | L80: 1990.05 | M80: 0.17534
A81: 71 | B81: BLUESTARCO | C81: 498.2 | D81: 500.05 | E81: 490.15 | F81: 482.10 | G81: 472.20 | H81: 508.10 | I81: 518.00 | J81: 526.05 | K81: 509.95 | L81: 492 | M81: 5.10796
A82: 72 | B82: BOMDYEING | C82: 66.95 | D82: 66.07 | E82: 64.03 | F82: 61.12 | G82: 59.08 | H82: 68.98 | I82: 71.02 | J82: 73.93 | K82: 68.1 | L82: 63.15 | M82: 44.84818
A83: 73 | B83: BOSCHLTD | C83: 13657.65 | D83: 13499.20 | E83: 13208.40 | F83: 12759.15 | G83: 12468.35 | H83: 13948.45 | I83: 14239.25 | J83: 14688.50 | K83: 13790 | L83: 13049.95 | M83: 1.16365
A84: 74 | B84: BPCL | C84: 419.75 | D84: 417.40 | E84: 413.40 | F84: 407.05 | G84: 403.05 | H84: 423.75 | I84: 427.75 | J84: 434.10 | K84: 421.4 | L84: 411.05 | M84: 91.19146
A85: 75 | B85: BRIGADE | C85: 138.85 | D85: 139.78 | E85: 137.27 | F85: 135.68 | G85: 133.17 | H85: 141.37 | I85: 143.88 | J85: 145.47 | K85: 142.3 | L85: 138.2 | M85: 1.81825
A86: 76 | B86: BRITANNIA | C86: 3934.8 | D86: 3909.93 | E86: 3874.87 | F86: 3814.93 | G86: 3779.87 | H86: 3969.87 | I86: 4004.93 | J86: 4064.87 | K86: 3945 | L86: 3850 | M86: 10.61884
A87: 77 | B87: BSE | C87: 493.35 | D87: 495.45 | E87: 489.90 | F87: 486.45 | G87: 480.90 | H87: 498.90 | I87: 504.45 | J87: 507.90 | K87: 501 | L87: 492 | M87: 1.93921
A88: 78 | B88: BSOFT | C88: 142.85 | D88: 143.70 | E88: 138.70 | F88: 134.55 | G88: 129.55 | H88: 147.85 | I88: 152.85 | J88: 157.00 | K88: 148.7 | L88: 139.55 | M88: 72.76688
A89: 79 | B89: CADILAHC | C89: 390.9 | D89: 391.25 | E89: 387.20 | F89: 383.50 | G89: 379.45 | H89: 394.95 | I89: 399.00 | J89: 402.70 | K89: 395.3 | L89: 387.55 | M89: 46.04458
A90: 80 | B90: CANBK | C90: 101.9 | D90: 102.05 | E90: 101.35 | F90: 100.80 | G90: 100.10 | H90: 102.60 | I90: 103.30 | J90: 103.85 | K90: 102.75 | L90: 101.5 | M90: 46.03398
A91: 81 | B91: CANFINHOME | C91: 372.7 | D91: 372.63 | E91: 367.27 | F91: 361.83 | G91: 356.47 | H91: 378.07 | I91: 383.43 | J91: 388.87 | K91: 378 | L91: 367.2 | M91: 4.16232
A92: 82 | B92: CAPLIPOINT | C92: 585.55 | D92: 615.52 | E92: 545.03 | F92: 504.52 | G92: 434.03 | H92: 656.03 | I92: 726.52 | J92: 767.03 | K92: 686 | L92: 575 | M92: 44.48819
A93: 83 | B93: CARBORUNIV | C93: 243.5 | D93: 244.35 | E93: 241.40 | F93: 239.30 | G93: 236.35 | H93: 246.45 | I93: 249.40 | J93: 251.50 | K93: 247.3 | L93: 242.25 | M93: 0.70256
A94: 84 | B94: CARERATING | C94: 433.55 | D94: 434.93 | E94: 429.87 | F94: 426.18 | G94: 421.12 | H94: 438.62 | I94: 443.68 | J94: 447.37 | K94: 440 | L94: 431.25 | M94: 0.27659
A95: 85 | B95: CASTROLIND | C95: 121.45 | D95: 121.22 | E95: 119.73 | F95: 118.02 | G95: 116.53 | H95: 122.93 | I95: 124.42 | J95: 126.13 | K95: 122.7 | L95: 119.5 | M95: 16.15286
A96: 86 | B96: CCL | C96: 240.25 | D96: 243.32 | E96: 235.93 | F96: 231.62 | G96: 224.23 | H96: 247.63 | I96: 255.02 | J96: 259.33 | K96: 250.7 | L96: 239 | M96: 0.68234
A97: 87 | B97: CDSL | C97: 357.55 | D97: 355.57 | E97: 349.23 | F97: 340.92 | G97: 334.58 | H97: 363.88 | I97: 370.22 | J97: 378.53 | K97: 361.9 | L97: 347.25 | M97: 10.0023
A98: 88 | B98: CEATLTD | C98: 890.8 | D98: 894.37 | E98: 876.73 | F98: 862.67 | G98: 845.03 | H98: 908.43 | I98: 926.07 | J98: 940.13 | K98: 912 | L98: 880.3 | M98: 2.23364
A99: 89 | B99: CENTRALBK | C99: 17.55 | D99: 17.47 | E99: 17.23 | F99: 16.92 | G99: 16.68 | H99: 17.78 | I99: 18.02 | J99: 18.33 | K99: 17.7 | L99: 17.15 | M99: 9.67554
A100: 90 | B100: CENTURYPLY | C100: 131.7 | D100: 131.73 | E100: 130.97 | F100: 130.23 | G100: 129.47 | H100: 132.47 | I100: 133.23 | J100: 133.97 | K100: 132.5 | L100: 131 | M100: 1.33659
A101: 91 | B101: CENTURYTEX | C101: 323.7 | D101: 317.57 | E101: 309.43 | F101: 295.17 | G101: 287.03 | H101: 331.83 | I101: 339.97 | J101: 354.23 | K101: 325.7 | L101: 303.3 | M101: 51.91877
A102: 92 | B102: CERA | C102: 2274.3 | D102: 2272.97 | E102: 2246.28 | F102: 2218.27 | G102: 2191.58 | H102: 2300.98 | I102: 2327.67 | J102: 2355.68 | K102: 2299.65 | L102: 2244.95 | M102: 0.0649
A103: 93 | B103: CESC | C103: 580.85 | D103: 577.30 | E103: 570.60 | F103: 560.35 | G103: 553.65 | H103: 587.55 | I103: 594.25 | J103: 604.50 | K103: 584 | L103: 567.05 | M103: 2.75837
A104: 94 | B104: CGCL | C104: 205.25 | D104: 205.70 | E104: 203.55 | F104: 201.85 | G104: 199.70 | H104: 207.40 | I104: 209.55 | J104: 211.25 | K104: 207.85 | L104: 204 | M104: 0.46533
A105: 95 | B105: CHAMBLFERT | C105: 155.5 | D105: 155.85 | E105: 153.90 | F105: 152.30 | G105: 150.35 | H105: 157.45 | I105: 159.40 | J105: 161.00 | K105: 157.8 | L105: 154.25 | M105: 8.39316
A106: 96 | B106: CHENNPETRO | C106: 83.75 | D106: 83.95 | E106: 83.10 | F106: 82.45 | G106: 81.60 | H106: 84.60 | I106: 85.45 | J106: 86.10 | K106: 84.8 | L106: 83.3 | M106: 4.64003
A107: 97 | B107: CHOLAFIN | C107: 208.75 | D107: 207.02 | E107: 204.33 | F107: 199.92 | G107: 197.23 | H107: 211.43 | I107: 214.12 | J107: 218.53 | K107: 209.7 | L107: 202.6 | M107: 73.78626
A108: 98 | B108: CHOLAHLDNG | C108: 336.4 | D108: 335.87 | E108: 333.43 | F108: 330.47 | G108: 328.03 | H108: 338.83 | I108: 341.27 | J108: 344.23 | K108: 338.3 | L108: 332.9 | M108: 0.16129
A109: 99 | B109: CIPLA | C109: 728.65 | D109: 730.93 | E109: 722.22 | F109: 715.78 | G109: 707.07 | H109: 737.37 | I109: 746.08 | J109: 752.52 | K109: 739.65 | L109: 724.5 | M109: 61.59882
A110: 100 | B110: COALINDIA | C110: 129.75 | D110: 129.55 | E110: 128.75 | F110: 127.75 | G110: 126.95 | H110: 130.55 | I110: 131.35 | J110: 132.35 | K110: 130.35 | L110: 128.55 | M110: 65.5363
A111: 101 | B111: COCHINSHIP | C111: 331.85 | D111: 330.95 | E111: 324.90 | F111: 317.95 | G111: 311.90 | H111: 337.90 | I111: 343.95 | J111: 350.90 | K111: 337 | L111: 324 | M111: 8.15384
A112: 102 | B112: COLPAL | C112: 1456.95 | D112: 1452.15 | E112: 1436.85 | F112: 1416.75 | G112: 1401.45 | H112: 1472.25 | I112: 1487.55 | J112: 1507.65 | K112: 1467.45 | L112: 1432.05 | M112: 5.6752
A113: 103 | B113: CONCOR | C113: 455.9 | D113: 455.83 | E113: 449.17 | F113: 442.43 | G113: 435.77 | H113: 462.57 | I113: 469.23 | J113: 475.97 | K113: 462.5 | L113: 449.1 | M113: 10.68578
A114: 104 | B114: COROMANDEL | C114: 788.9 | D114: 793.22 | E114: 779.68 | F114: 770.47 | G114: 756.93 | H114: 802.43 | I114: 815.97 | J114: 825.18 | K114: 806.75 | L114: 784 | M114: 2.01697
A115: 105 | B115: CREDITACC | C115: 570.3 | D115: 574.38 | E115: 554.97 | F115: 539.63 | G115: 520.22 | H115: 589.72 | I115: 609.13 | J115: 624.47 | K115: 593.8 | L115: 559.05 | M115: 1.2934
A116: 106 | B116: CRISIL | C116: 1730.2 | D116: 1729.73 | E116: 1710.47 | F116: 1690.73 | G116: 1671.47 | H116: 1749.47 | I116: 1768.73 | J116: 1788.47 | K116: 1749 | L116: 1710 | M116: 0.45638
A117: 107 | B117: CROMPTON | C117: 260.65 | D117: 259.43 | E117: 253.27 | F117: 245.88 | G117: 239.72 | H117: 266.82 | I117: 272.98 | J117: 280.37 | K117: 265.6 | L117: 252.05 | M117: 6.68445
A118: 108 | B118: CSBBANK | C118: 199.55 | D118: 200.52 | E118: 197.03 | F118: 194.52 | G118: 191.03 | H118: 203.03 | I118: 206.52 | J118: 209.03 | K118: 204 | L118: 198 | M118: 1.6962
A119: 109 | B119: CUB | C119: 122.95 | D119: 121.85 | E119: 120.20 | F119: 117.45 | G119: 115.80 | H119: 124.60 | I119: 126.25 | J119: 129.00 | K119: 123.5 | L119: 119.1 | M119: 24.32231
A120: 110 | B120: CUMMINSIND | C120: 419.1 | D120: 417.42 | E120: 412.83 | F120: 406.57 | G120: 401.98 | H120: 423.68 | I120: 428.27 | J120: 434.53 | K120: 422 | L120: 411.15 | M120: 10.03976
A121: 111 | B121: CYIENT | C121: 339.9 | D121: 342.10 | E121: 336.20 | F121: 332.50 | G121: 326.60 | H121: 345.80 | I121: 351.70 | J121: 355.40 | K121: 348 | L121: 338.4 | M121: 4.25757
A122: 112 | B122: DABUR | C122: 512.3 | D122: 510.68 | E122: 507.67 | F122: 503.03 | G122: 500.02 | H122: 515.32 | I122: 518.33 | J122: 522.97 | K122: 513.7 | L122: 506.05 | M122: 27.54143
A123: 113 | B123: DALBHARAT | C123: 763.9 | D123: 780.38 | E123: 735.77 | F123: 707.63 | G123: 663.02 | H123: 808.52 | I123: 853.13 | J123: 881.27 | K123: 825 | L123: 752.25 | M123: 5.02595
A124: 114 | B124: DBCORP | C124: 74.1 | D124: 74.07 | E124: 73.03 | F124: 71.97 | G124: 70.93 | H124: 75.13 | I124: 76.17 | J124: 77.23 | K124: 75.1 | L124: 73 | M124: 0.95429
A125: 115 | B125: DBL | C125: 338.7 | D125: 337.65 | E125: 327.30 | F125: 315.90 | G125: 305.55 | H125: 349.05 | I125: 359.40 | J125: 370.80 | K125: 348 | L125: 326.25 | M125: 14.39191
A126: 116 | B126: DCAL | C126: 198.05 | D126: 201.77 | E126: 192.53 | F126: 187.02 | G126: 177.78 | H126: 207.28 | I126: 216.52 | J126: 222.03 | K126: 211 | L126: 196.25 | M126: 4.81616
A127: 117 | B127: DCBBANK | C127: 83.25 | D127: 82.65 | E127: 80.90 | F127: 78.55 | G127: 76.80 | H127: 85.00 | I127: 86.75 | J127: 89.10 | K127: 84.4 | L127: 80.3 | M127: 35.45084
A128: 118 | B128: DCMSHRIRAM | C128: 336.2 | D128: 336.32 | E128: 330.63 | F128: 325.07 | G128: 319.38 | H128: 341.88 | I128: 347.57 | J128: 353.13 | K128: 342 | L128: 330.75 | M128: 0.62534
A129: 119 | B129: DEEPAKNTR | C129: 611.2 | D129: 603.97 | E129: 588.43 | F129: 565.67 | G129: 550.13 | H129: 626.73 | I129: 642.27 | J129: 665.03 | K129: 619.5 | L129: 581.2 | M129: 21.60175
A130: 120 | B130: DELTACORP | C130: 108.35 | D130: 108.05 | E130: 100.30 | F130: 92.25 | G130: 84.50 | H130: 116.10 | I130: 123.85 | J130: 131.90 | K130: 115.8 | L130: 100 | M130: 143.74049
A131: 121 | B131: DHANUKA | C131: 782.45 | D131: 787.35 | E131: 775.20 | F131: 767.95 | G131: 755.80 | H131: 794.60 | I131: 806.75 | J131: 814.00 | K131: 799.5 | L131: 780.1 | M131: 0.45403
A132: 122 | B132: DISHTV | C132: 7.9 | D132: 7.98 | E132: 7.77 | F132: 7.63 | G132: 7.42 | H132: 8.12 | I132: 8.33 | J132: 8.47 | K132: 8.2 | L132: 7.85 | M132: 33.44657
A133: 123 | B133: DIVISLAB | C133: 2784.85 | D133: 2775.75 | E133: 2731.50 | F133: 2678.15 | G133: 2633.90 | H133: 2829.10 | I133: 2873.35 | J133: 2926.70 | K133: 2820 | L133: 2722.4 | M133: 14.48742
A134: 124 | B134: DIXON | C134: 7786.55 | D134: 7720.52 | E134: 7591.03 | F134: 7395.52 | G134: 7266.03 | H134: 7916.03 | I134: 8045.52 | J134: 8241.03 | K134: 7850 | L134: 7525 | M134: 0.98448
A135: 125 | B135: DLF | C135: 141.85 | D135: 142.25 | E135: 140.60 | F135: 139.35 | G135: 137.70 | H135: 143.50 | I135: 145.15 | J135: 146.40 | K135: 143.9 | L135: 141 | M135: 104.89309
A136: 126 | B136: DMART | C136: 2138.4 | D136: 2149.27 | E136: 2122.13 | F136: 2105.87 | G136: 2078.73 | H136: 2165.53 | I136: 2192.67 | J136: 2208.93 | K136: 2176.4 | L136: 2133 | M136: 3.54664
A137: 127 | B137: DRREDDY | C137: 4573.5 | D137: 4613.68 | E137: 4520.37 | F137: 4467.23 | G137: 4373.92 | H137: 4666.82 | I137: 4760.13 | J137: 4813.27 | K137: 4707 | L137: 4560.55 | M137: 16.65377
A138: 128 | B138: ECLERX | C138: 481.05 | D138: 479.48 | E138: 470.57 | F138: 460.08 | G138: 451.17 | H138: 489.97 | I138: 498.88 | J138: 509.37 | K138: 488.4 | L138: 469 | M138: 3.59825
A139: 129 | B139: EDELWEISS | C139: 78.8 | D139: 79.62 | E139: 77.83 | F139: 76.87 | G139: 75.08 | H139: 80.58 | I139: 82.37 | J139: 83.33 | K139: 81.4 | L139: 78.65 | M139: 8.08426
A140: 130 | B140: EICHERMOT | C140: 21807.35 | D140: 21836.73 | E140: 21530.62 | F140: 21253.88 | G140: 20947.77 | H140: 22113.47 | I140: 22419.58 | J140: 22696.32 | K140: 22142.85 | L140: 21560 | M140: 1.9529
A141: 131 | B141: EIDPARRY | C141: 298.05 | D141: 297.53 | E141: 291.57 | F141: 285.08 | G141: 279.12 | H141: 304.02 | I141: 309.98 | J141: 316.47 | K141: 303.5 | L141: 291.05 | M141: 5.52279
A142: 132 | B142: EIHOTEL | C142: 68.75 | D142: 68.87 | E142: 67.73 | F142: 66.72 | G142: 65.58 | H142: 69.88 | I142: 71.02 | J142: 72.03 | K142: 70 | L142: 67.85 | M142: 15.6563
A143: 133 | B143: ELGIEQUIP | C143: 169.95 | D143: 168.87 | E143: 166.58 | F143: 163.22 | G143: 160.93 | H143: 172.23 | I143: 174.52 | J143: 177.88 | K143: 171.15 | L143: 165.5 | M143: 0.16996
A144: 134 | B144: EMAMILTD | C144: 257.3 | D144: 252.70 | E144: 241.90 | F144: 226.50 | G144: 215.70 | H144: 268.10 | I144: 278.90 | J144: 294.30 | K144: 263.5 | L144: 237.3 | M144: 44.31966
A145: 135 | B145: ENDURANCE | C145: 958.4 | D145: 957.55 | E145: 949.05 | F145: 939.70 | G145: 931.20 | H145: 966.90 | I145: 975.40 | J145: 984.75 | K145: 966.05 | L145: 948.2 | M145: 0.44172
A146: 136 | B146: ENGINERSIN | C146: 66.3 | D146: 66.55 | E146: 65.90 | F146: 65.50 | G146: 64.85 | H146: 66.95 | I146: 67.60 | J146: 68.00 | K146: 67.2 | L146: 66.15 | M146: 10.11229
A147: 137 | B147: EQUITAS | C147: 50.95 | D147: 50.87 | E147: 50.18 | F147: 49.42 | G147: 48.73 | H147: 51.63 | I147: 52.32 | J147: 53.08 | K147: 51.55 | L147: 50.1 | M147: 122.86359
A148: 138 | B148: ERIS | C148: 535.5 | D148: 536.05 | E148: 528.15 | F148: 520.80 | G148: 512.90 | H148: 543.40 | I148: 551.30 | J148: 558.65 | K148: 543.95 | L148: 528.7 | M148: 1.4745
A149: 139 | B149: ESABINDIA | C149: 1341.4 | D149: 1346.10 | E149: 1329.20 | F149: 1317.00 | G149: 1300.10 | H149: 1358.30 | I149: 1375.20 | J149: 1387.40 | K149: 1363 | L149: 1333.9 | M149: 0.0454
A150: 140 | B150: ESCORTS | C150: 1123.65 | D150: 1130.55 | E150: 1113.10 | F150: 1102.55 | G150: 1085.10 | H150: 1141.10 | I150: 1158.55 | J150: 1169.10 | K150: 1148 | L150: 1120 | M150: 17.53969
A151: 141 | B151: ESSELPACK | C151: 258.25 | D151: 261.83 | E151: 253.17 | F151: 248.08 | G151: 239.42 | H151: 266.92 | I151: 275.58 | J151: 280.67 | K151: 270.5 | L151: 256.75 | M151: 2.28409
A152: 142 | B152: EXIDEIND | C152: 161.9 | D152: 160.62 | E152: 157.88 | F152: 153.87 | G152: 151.13 | H152: 164.63 | I152: 167.37 | J152: 171.38 | K152: 163.35 | L152: 156.6 | M152: 75.86811
A153: 143 | B153: FCONSUMER | C153: 11.75 | D153: 11.85 | E153: 11.55 | F153: 11.35 | G153: 11.05 | H153: 12.05 | I153: 12.35 | J153: 12.55 | K153: 12.15 | L153: 11.65 | M153: 83.95721
A154: 144 | B154: FDC | C154: 336.25 | D154: 337.75 | E154: 331.50 | F154: 326.75 | G154: 320.50 | H154: 342.50 | I154: 348.75 | J154: 353.50 | K154: 344 | L154: 333 | M154: 7.28395
A155: 145 | B155: FEDERALBNK | C155: 54.65 | D155: 53.95 | E155: 52.90 | F155: 51.15 | G155: 50.10 | H155: 55.70 | I155: 56.75 | J155: 58.50 | K155: 55 | L155: 52.2 | M155: 521.86679
A156: 146 | B156: FINCABLES | C156: 269.75 | D156: 270.68 | E156: 266.87 | F156: 263.98 | G156: 260.17 | H156: 273.57 | I156: 277.38 | J156: 280.27 | K156: 274.5 | L156: 267.8 | M156: 4.0435
A157: 147 | B157: FINEORG | C157: 2326.7 | D157: 2322.57 | E157: 2275.13 | F157: 2223.57 | G157: 2176.13 | H157: 2374.13 | I157: 2421.57 | J157: 2473.13 | K157: 2370 | L157: 2271 | M157: 0.18144
A158: 148 | B158: FINPIPE | C158: 449.65 | D158: 449.62 | E158: 445.38 | F158: 441.12 | G158: 436.88 | H158: 453.88 | I158: 458.12 | J158: 462.38 | K158: 453.85 | L158: 445.35 | M158: 0.31111
A159: 149 | B159: FLUOROCHEM | C159: 479.85 | D159: 471.97 | E159: 444.93 | F159: 410.02 | G159: 382.98 | H159: 506.88 | I159: 533.92 | J159: 568.83 | K159: 499 | L159: 437.05 | M159: 3.8677
A160: 150 | B160: FORTIS | C160: 138 | D160: 138.72 | E160: 136.43 | F160: 134.87 | G160: 132.58 | H160: 140.28 | I160: 142.57 | J160: 144.13 | K160: 141 | L160: 137.15 | M160: 9.61673
A161: 151 | B161: FRETAIL | C161: 108.7 | D161: 109.48 | E161: 106.27 | F161: 103.83 | G161: 100.62 | H161: 111.92 | I161: 115.13 | J161: 117.57 | K161: 112.7 | L161: 107.05 | M161: 55.55218
A162: 152 | B162: FSL | C162: 54.2 | D162: 54.72 | E162: 53.48 | F162: 52.77 | G162: 51.53 | H162: 55.43 | I162: 56.67 | J162: 57.38 | K162: 55.95 | L162: 54 | M162: 17.37285
A163: 153 | B163: GAIL | C163: 96.9 | D163: 96.65 | E163: 95.90 | F163: 94.90 | G163: 94.15 | H163: 97.65 | I163: 98.40 | J163: 99.40 | K163: 97.4 | L163: 95.65 | M163: 99.73831
A164: 154 | B164: GALAXYSURF | C164: 1700.3 | D164: 1702.93 | E164: 1671.42 | F164: 1642.53 | G164: 1611.02 | H164: 1731.82 | I164: 1763.33 | J164: 1792.22 | K164: 1734.45 | L164: 1674.05 | M164: 0.31819
A165: 155 | B165: GARFIBRES | C165: 1699.5 | D165: 1679.23 | E165: 1653.27 | F165: 1607.03 | G165: 1581.07 | H165: 1725.47 | I165: 1751.43 | J165: 1797.67 | K165: 1705.2 | L165: 1633 | M165: 0.21486
A166: 156 | B166: GEPIL | C166: 490.85 | D166: 488.65 | E166: 478.30 | F166: 465.75 | G166: 455.40 | H166: 501.20 | I166: 511.55 | J166: 524.10 | K166: 499 | L166: 476.1 | M166: 0.19599
A167: 157 | B167: GESHIP | C167: 272.85 | D167: 273.90 | E167: 269.30 | F167: 265.75 | G167: 261.15 | H167: 277.45 | I167: 282.05 | J167: 285.60 | K167: 278.5 | L167: 270.35 | M167: 0.89271
A168: 158 | B168: GET&D | C168: 83.25 | D168: 83.55 | E168: 82.20 | F168: 81.15 | G168: 79.80 | H168: 84.60 | I168: 85.95 | J168: 87.00 | K168: 84.9 | L168: 82.5 | M168: 0.47676
A169: 159 | B169: GHCL | C169: 144.2 | D169: 143.77 | E169: 141.53 | F169: 138.87 | G169: 136.63 | H169: 146.43 | I169: 148.67 | J169: 151.33 | K169: 146 | L169: 141.1 | M169: 6.02146
A170: 160 | B170: GICRE | C170: 140.9 | D170: 141.40 | E170: 139.80 | F170: 138.70 | G170: 137.10 | H170: 142.50 | I170: 144.10 | J170: 145.20 | K170: 143 | L170: 140.3 | M170: 3.54959
A171: 161 | B171: GILLETTE | C171: 4962.35 | D171: 4973.78 | E171: 4938.57 | F171: 4914.78 | G171: 4879.57 | H171: 4997.57 | I171: 5032.78 | J171: 5056.57 | K171: 5009 | L171: 4950 | M171: 0.15287
A172: 162 | B172: GLAXO | C172: 1488.7 | D172: 1490.45 | E172: 1480.90 | F172: 1473.10 | G172: 1463.55 | H172: 1498.25 | I172: 1507.80 | J172: 1515.60 | K172: 1500 | L172: 1482.65 | M172: 1.20079
A173: 163 | B173: GLENMARK | C173: 453.45 | D173: 457.12 | E173: 447.33 | F173: 441.22 | G173: 431.43 | H173: 463.23 | I173: 473.02 | J173: 479.13 | K173: 466.9 | L173: 451 | M173: 46.52819
A174: 164 | B174: GMDCLTD | C174: 41.2 | D174: 41.38 | E174: 40.92 | F174: 40.63 | G174: 40.17 | H174: 41.67 | I174: 42.13 | J174: 42.42 | K174: 41.85 | L174: 41.1 | M174: 5.16086
A175: 165 | B175: GMMPFAUDLR | C175: 5059.4 | D175: 4829.40 | E175: 4518.00 | F175: 3976.60 | G175: 3665.20 | H175: 5370.80 | I175: 5682.20 | J175: 6223.60 | K175: 5140.8 | L175: 4288 | M175: 1.72481
A176: 166 | B176: GMRINFRA | C176: 21.15 | D176: 21.03 | E176: 20.72 | F176: 20.28 | G176: 19.97 | H176: 21.47 | I176: 21.78 | J176: 22.22 | K176: 21.35 | L176: 20.6 | M176: 90.63883
A177: 167 | B177: GNFC | C177: 165.8 | D177: 166.05 | E177: 163.45 | F177: 161.10 | G177: 158.50 | H177: 168.40 | I177: 171.00 | J177: 173.35 | K177: 168.65 | L177: 163.7 | M177: 8.28951
A178: 168 | B178: GODFRYPHLP | C178: 944.65 | D178: 939.63 | E178: 925.02 | F178: 905.38 | G178: 890.77 | H178: 959.27 | I178: 973.88 | J178: 993.52 | K178: 954.25 | L178: 920 | M178: 1.01996
A179: 169 | B179: GODREJAGRO | C179: 464.55 | D179: 464.02 | E179: 461.53 | F179: 458.52 | G179: 456.03 | H179: 467.03 | I179: 469.52 | J179: 472.53 | K179: 466.5 | L179: 461 | M179: 1.36164
A180: 170 | B180: GODREJCP | C180: 689.1 | D180: 692.58 | E180: 683.62 | F180: 678.13 | G180: 669.17 | H180: 698.07 | I180: 707.03 | J180: 712.52 | K180: 701.55 | L180: 687.1 | M180: 11.29384
A181: 171 | B181: GODREJIND | C181: 366.85 | D181: 364.83 | E181: 357.67 | F181: 348.48 | G181: 341.32 | H181: 374.02 | I181: 381.18 | J181: 390.37 | K181: 372 | L181: 355.65 | M181: 2.08808
A182: 172 | B182: GODREJPROP | C182: 887.75 | D182: 890.02 | E182: 880.03 | F182: 872.32 | G182: 862.33 | H182: 897.73 | I182: 907.72 | J182: 915.43 | K182: 900 | L182: 882.3 | M182: 2.1476
A183: 173 | B183: GPPL | C183: 75.8 | D183: 75.95 | E183: 75.00 | F183: 74.20 | G183: 73.25 | H183: 76.75 | I183: 77.70 | J183: 78.50 | K183: 76.9 | L183: 75.15 | M183: 7.20656
A184: 174 | B184: GRANULES | C184: 315.75 | D184: 317.80 | E184: 307.20 | F184: 298.65 | G184: 288.05 | H184: 326.35 | I184: 336.95 | J184: 345.50 | K184: 328.4 | L184: 309.25 | M184: 41.0671
A185: 175 | B185: GRAPHITE | C185: 186.15 | D185: 185.32 | E185: 177.83 | F185: 169.52 | G185: 162.03 | H185: 193.63 | I185: 201.12 | J185: 209.43 | K185: 192.8 | L185: 177 | M185: 21.26265
A186: 176 | B186: GRASIM | C186: 636.55 | D186: 635.57 | E186: 629.23 | F186: 621.92 | G186: 615.58 | H186: 642.88 | I186: 649.22 | J186: 656.53 | K186: 641.9 | L186: 628.25 | M186: 22.26682
A187: 177 | B187: GREAVESCOT | C187: 82.25 | D187: 82.58 | E187: 81.57 | F187: 80.88 | G187: 79.87 | H187: 83.27 | I187: 84.28 | J187: 84.97 | K187: 83.6 | L187: 81.9 | M187: 1.9086
A188: 178 | B188: GRINDWELL | C188: 482.55 | D188: 481.62 | E188: 477.38 | F188: 472.22 | G188: 467.98 | H188: 486.78 | I188: 491.02 | J188: 496.18 | K188: 485.85 | L188: 476.45 | M188: 0.35268
A189: 179 | B189: GRSE | C189: 202.45 | D189: 204.70 | E189: 198.45 | F189: 194.45 | G189: 188.20 | H189: 208.70 | I189: 214.95 | J189: 218.95 | K189: 210.95 | L189: 200.7 | M189: 2.42738
A190: 180 | B190: GSFC | C190: 63.05 | D190: 63.15 | E190: 61.70 | F190: 60.35 | G190: 58.90 | H190: 64.50 | I190: 65.95 | J190: 67.30 | K190: 64.6 | L190: 61.8 | M190: 8.42439
A191: 181 | B191: GSPL | C191: 207.55 | D191: 207.63 | E191: 203.92 | F191: 200.28 | G191: 196.57 | H191: 211.27 | I191: 214.98 | J191: 218.62 | K191: 211.35 | L191: 204 | M191: 18.72188
A192: 182 | B192: GUJALKALI | C192: 344 | D192: 348.30 | E192: 332.90 | F192: 321.80 | G192: 306.40 | H192: 359.40 | I192: 374.80 | J192: 385.90 | K192: 363.7 | L192: 337.2 | M192: 9.55676
A193: 183 | B193: GUJGASLTD | C193: 303.05 | D193: 304.52 | E193: 300.53 | F193: 298.02 | G193: 294.03 | H193: 307.03 | I193: 311.02 | J193: 313.53 | K193: 308.5 | L193: 302 | M193: 4.99298
A194: 184 | B194: GULFOILLUB | C194: 625.7 | D194: 632.97 | E194: 615.88 | F194: 606.07 | G194: 588.98 | H194: 642.78 | I194: 659.87 | J194: 669.68 | K194: 650.05 | L194: 623.15 | M194: 0.37026
A195: 185 | B195: HAL | C195: 949.45 | D195: 955.83 | E195: 935.62 | F195: 921.78 | G195: 901.57 | H195: 969.67 | I195: 989.88 | J195: 1003.72 | K195: 976.05 | L195: 942 | M195: 2.43438
A196: 186 | B196: HATHWAY | C196: 39.65 | D196: 40.33 | E196: 38.97 | F196: 38.28 | G196: 36.92 | H196: 41.02 | I196: 42.38 | J196: 43.07 | K196: 41.7 | L196: 39.65 | M196: 5.10817
A197: 187 | B197: HATSUN | C197: 724.45 | D197: 725.82 | E197: 716.63 | F197: 708.82 | G197: 699.63 | H197: 733.63 | I197: 742.82 | J197: 750.63 | K197: 735 | L197: 718 | M197: 0.24245
A198: 188 | B198: HAVELLS | C198: 609.55 | D198: 608.28 | E198: 604.57 | F198: 599.58 | G198: 595.87 | H198: 613.27 | I198: 616.98 | J198: 621.97 | K198: 612 | L198: 603.3 | M198: 9.0989
A199: 189 | B199: HCLTECH | C199: 690.3 | D199: 691.73 | E199: 683.57 | F199: 676.83 | G199: 668.67 | H199: 698.47 | I199: 706.63 | J199: 713.37 | K199: 699.9 | L199: 685 | M199: 73.71589
A200: 190 | B200: HDFC | C200: 1777.7 | D200: 1774.17 | E200: 1766.53 | F200: 1755.37 | G200: 1747.73 | H200: 1785.33 | I200: 1792.97 | J200: 1804.13 | K200: 1781.8 | L200: 1763 | M200: 51.29995
A201: 191 | B201: HDFCAMC | C201: 2369 | D201: 2368.42 | E201: 2352.83 | F201: 2336.67 | G201: 2321.08 | H201: 2384.58 | I201: 2400.17 | J201: 2416.33 | K201: 2384 | L201: 2352.25 | M201: 3.6476
A202: 192 | B202: HDFCBANK | C202: 1043.85 | D202: 1037.22 | E202: 1027.23 | F202: 1010.62 | G202: 1000.63 | H202: 1053.83 | I202: 1063.82 | J202: 1080.43 | K202: 1047.2 | L202: 1020.6 | M202: 124.18816
A203: 193 | B203: HDFCLIFE | C203: 606.95 | D203: 608.75 | E203: 603.65 | F203: 600.35 | G203: 595.25 | H203: 612.05 | I203: 617.15 | J203: 620.45 | K203: 613.85 | L203: 605.45 | M203: 17.23762
A204: 194 | B204: HEG | C204: 786.25 | D204: 792.07 | E204: 762.13 | F204: 738.02 | G204: 708.08 | H204: 816.18 | I204: 846.12 | J204: 870.23 | K204: 822 | L204: 767.95 | M204: 10.37954
A205: 195 | B205: HEIDELBERG | C205: 183.05 | D205: 183.78 | E205: 181.77 | F205: 180.48 | G205: 178.47 | H205: 185.07 | I205: 187.08 | J205: 188.37 | K205: 185.8 | L205: 182.5 | M205: 1.65137
A206: 196 | B206: HERITGFOOD | C206: 313.35 | D206: 316.10 | E206: 305.85 | F206: 298.35 | G206: 288.10 | H206: 323.60 | I206: 333.85 | J206: 341.35 | K206: 326.35 | L206: 308.6 | M206: 0.59022
... 321 more rows

Sheet Bulk Deals
E6: Back To Main Page
A7: Subject : | B7: BULK DEAL | D7: =Main!B10 -> 2020-08-10
A9: Date | B9: Scrip code | C9: Scrip Name | D9: Client Name | E9: Buy / Sell | F9: Quantity Traded | G9: Trade Price / Wt.Avg.trade price | H9: Exchange
A10: 2020-08-07 | B10: 511463 | C10: ALEXANDER | D10: KAHAR NIKLESH KANAIYABHAI | E10: BUY | F10: 54,729 | G10: 11.67 | H10: BSE
A11: 2020-08-07 | B11: 511463 | C11: ALEXANDER | D11: KAHAR NIKLESH KANAIYABHAI | E11: SELL | F11: 39,160 | G11: 11.63 | H11: BSE
A12: 2020-08-07 | B12: 511463 | C12: ALEXANDER | D12: HEMANG B SHAH HUF | E12: BUY | F12: 50,000 | G12: 11.75 | H12: BSE
A13: 2020-08-07 | B13: 540697 | C13: AMFL | D13: NAVEEN GUPTA | E13: BUY | F13: 75,636 | G13: 3.57 | H13: BSE
A14: 2020-08-07 | B14: 540697 | C14: AMFL | D14: NAVEEN GUPTA | E14: SELL | F14: 75,636 | G14: 3.51 | H14: BSE
A15: 2020-08-07 | B15: 540697 | C15: AMFL | D15: BHARGAV DEEPAK RAVANI | E15: SELL | F15: 156,800 | G15: 3.43 | H15: BSE
A16: 2020-08-07 | B16: 540697 | C16: AMFL | D16: PRABHA GUPTA | E16: BUY | F16: 161,267 | G16: 3.5 | H16: BSE
A17: 2020-08-07 | B17: 540697 | C17: AMFL | D17: PRABHA GUPTA | E17: SELL | F17: 161,267 | G17: 3.6 | H17: BSE
A18: 2020-08-07 | B18: 540697 | C18: AMFL | D18: YOGESH AGGARWAL | E18: BUY | F18: 70,000 | G18: 3.53 | H18: BSE
A19: 2020-08-07 | B19: 540697 | C19: AMFL | D19: YOGESH AGGARWAL | E19: SELL | F19: 15,000 | G19: 3.4 | H19: BSE
A20: 2020-08-07 | B20: 540697 | C20: AMFL | D20: KUMAR GURU BALASUBRAMANYAM | E20: BUY | F20: 122,058 | G20: 3.4 | H20: BSE
A21: 2020-08-07 | B21: 538716 | C21: ARYACAPM | D21: TIA ENTERPRISES PRIVATE LIMITED | E21: BUY | F21: 115,000 | G21: 30 | H21: BSE
A22: 2020-08-07 | B22: 538716 | C22: ARYACAPM | D22: HOLLY ENTERPRISES PRIVATE LIMITED | E22: SELL | F22: 120,000 | G22: 30 | H22: BSE
A23: 2020-08-07 | B23: 530245 | C23: ARYAMAN | D23: TIA ENTERPRISES PRIVATE LIMITED | E23: BUY | F23: 179,400 | G23: 48 | H23: BSE
A24: 2020-08-07 | B24: 530245 | C24: ARYAMAN | D24: JAI AMBE TRADEXIM PRIVATE LIMITED | E24: BUY | F24: 68,000 | G24: 48.05 | H24: BSE
A25: 2020-08-07 | B25: 530245 | C25: ARYAMAN | D25: PANKAJ PIYUSH TRADE AND INVESTMENT LTD | E25: SELL | F25: 147,000 | G25: 48 | H25: BSE
A26: 2020-08-07 | B26: 540024 | C26: ASHARI | D26: SABAH TAIYAB NOORANI | E26: SELL | F26: 44,444 | G26: 8.9 | H26: BSE
A27: 2020-08-07 | B27: 540024 | C27: ASHARI | D27: VIRENDRARAMNATHLAVHARKAR | E27: BUY | F27: 44,800 | G27: 8.9 | H27: BSE
A28: 2020-08-07 | B28: 504697 | C28: GALADA | D28: CPLUS007 | E28: BUY | F28: 37,682 | G28: 1.38 | H28: BSE
A29: 2020-08-07 | B29: 505725 | C29: HINDEVER | D29: BRIJESH LAXMANPRASAD SAHU | E29: SELL | F29: 24,000 | G29: 77.54 | H29: BSE
A30: 2020-08-07 | B30: 540850 | C30: JFL | D30: HARDATTRAI BIYANI | E30: BUY | F30: 100,000 | G30: 7.5 | H30: BSE
A31: 2020-08-07 | B31: 540850 | C31: JFL | D31: BIYANI FINANCIAL PVT LTD | E31: SELL | F31: 100,000 | G31: 7.5 | H31: BSE
A32: 2020-08-07 | B32: 542771 | C32: NOVATEOR | D32: YASH RAJESH SHAH | E32: SELL | F32: 36,000 | G32: 3.26 | H32: BSE
A33: 2020-08-07 | B33: 541112 | C33: SHREESHAY | D33: TIA ENTERPRISES PRIVATE LIMITED | E33: BUY | F33: 160,000 | G33: 16.25 | H33: BSE
A34: 2020-08-07 | B34: 541112 | C34: SHREESHAY | D34: PANKAJ PIYUSH TRADE AND INVESTMENT LTD | E34: SELL | F34: 320,000 | G34: 16.27 | H34: BSE
A35: 2020-08-07 | B35: 541112 | C35: SHREESHAY | D35: TIA ENTERPRIES PRIVATE LIMITED | E35: BUY | F35: 96,000 | G35: 16.28 | H35: BSE
A36: 2020-08-07 | B36: 540269 | C36: SKL | D36: DISPLAY COMMERCIAL PRIVATE LIMITED | E36: BUY | F36: 80,000 | G36: 4.25 | H36: BSE
A37: 2020-08-07 | B37: APOLLOTYRE | C37: Apollo Tyres Ltd. | D37: TOWER RESEARCH CAPITAL MARKETS INDIA PRIVATE LIMITED | E37: BUY | F37: 3,128,228 | G37: 121.95 | H37: NSE
A38: 2020-08-07 | B38: CENTURYTEX | C38: Century Textiles Ltd. | D38: MORGAN STANLEY ASIA SINGAPORE PTE | E38: BUY | F38: 688,800 | G38: 317.45 | H38: NSE
A39: 2020-08-07 | B39: GSS | C39: GSS Infotech Limited | D39: VISHWAMURTE TRAD INVEST PE LTD | E39: BUY | F39: 252,355 | G39: 25.78 | H39: NSE
A40: 2020-08-07 | B40: MINDSPACE | C40: Mindspace Business P REIT | D40: NOMURA INVESTMENT | E40: BUY | F40: 6,263,200 | G40: 302.45 | H40: NSE
A41: 2020-08-07 | B41: MINDSPACE | C41: Mindspace Business P REIT | D41: CAPITAL INCOME BUILDER | E41: BUY | F41: 5,181,400 | G41: 303.44 | H41: NSE
A42: 2020-08-07 | B42: RBLBANK | C42: RBL Bank Limited | D42: GRAVITON RESEARCH CAPITAL LLP | E42: BUY | F42: 3,372,182 | G42: 185.04 | H42: NSE
A43: 2020-08-07 | B43: RBLBANK | C43: RBL Bank Limited | D43: TOWER RESEARCH CAPITAL MARKETS INDIA PRIVATE LIMITED | E43: BUY | F43: 3,949,110 | G43: 184.11 | H43: NSE
A44: 2020-08-07 | B44: RBLBANK | C44: RBL Bank Limited | D44: SURJECTIVE RESEARCH CAPITAL LLP | E44: BUY | F44: 3,395,395 | G44: 184.87 | H44: NSE
A45: 2020-08-07 | B45: WELCORP | C45: Welspun Corp Limited | D45: AUTHUM INVESTMENT & INFRASTRUCTURE LIMITED | E45: BUY | F45: 1,305,890 | G45: 100.61 | H45: NSE
A46: 2020-08-07 | B46: APOLLOTYRE | C46: Apollo Tyres Ltd. | D46: TOWER RESEARCH CAPITAL MARKETS INDIA PRIVATE LIMITED | E46: SELL | F46: 3,364,716 | G46: 122.18 | H46: NSE
A47: 2020-08-07 | B47: GDL-RE | C47: GATEWAY DISTRIPARKS RE | D47: GENERAL INS.COPR OF INDIA | E47: SELL | F47: 195,555 | G47: 12.55 | H47: NSE
A48: 2020-08-07 | B48: GSS | C48: GSS Infotech Limited | D48: VISHWAMURTE TRAD INVEST PE LTD | E48: SELL | F48: 232,355 | G48: 26.19 | H48: NSE
A49: 2020-08-07 | B49: RBLBANK | C49: RBL Bank Limited | D49: SURJECTIVE RESEARCH CAPITAL LLP | E49: SELL | F49: 3,395,874 | G49: 184.98 | H49: NSE
A50: 2020-08-07 | B50: RBLBANK | C50: RBL Bank Limited | D50: GRAVITON RESEARCH CAPITAL LLP | E50: SELL | F50: 3,372,182 | G50: 185.27 | H50: NSE
A51: 2020-08-07 | B51: RBLBANK | C51: RBL Bank Limited | D51: TOWER RESEARCH CAPITAL MARKETS INDIA PRIVATE LIMITED | E51: SELL | F51: 4,345,342 | G51: 184.54 | H51: NSE
A52: 2020-08-07 | B52: SPENCER-RE | C52: Spencer's Retail RE | D52: HABROK INDIA MASTER LP | E52: SELL | F52: 123,842 | G52: 26.53 | H52: NSE
A53: 2020-08-07 | B53: WELCORP | C53: Welspun Corp Limited | D53: AUTHUM INVESTMENT & INFRASTRUCTURE LIMITED | E53: SELL | F53: 32,167 | G53: 102.88 | H53: NSE

Sheet Call Tracker (Equity & F&O)
M5: Back To Main Page
A6: Retail Research Technical Calls & Fundamental Performance Report for the month of Aug-2020
M7: =Main!B10 -> 2020-08-10
B8: Positional Call
A9: Sr.no | B9: Date | D9: Company | E9: Rec | F9: Rec Price | G9: Stop Loss*** | H9: Call Closed At | I9: Target | J9: Remark | K9: Profit / Loss per Share | L9: All charges | M9: Net Gain / Loss % | N9: Status | O9: Closed Date
A10: 1 | B10: 2020-06-29 | D10: BATAINDIA | E10: Buy<> | F10: 1296 | G10: 1,231.00 | H10: 1,344.00 | I10: 1400-1450 | J10: Part Profit of Rs.48/- | K10: =H10-F10 -> 48 | L10: =(F10*-0.8)/100 -> -10.37 | M10: =(K10+L10)/F10 -> 2.90% | N10: Successful | O10: 2020-07-06 | R10: H
A11: 2 | B11: 2020-07-02 | D11: LT | E11: Buy<> | F11: 927-937 | G11: 874 | I11: 1030-1070 | J11: Open | R11: H
A12: 3 | B12: 2020-07-06 | D12: VINATIORGA | E12: Buy | F12: 1000 | G12: 935.00 | H12: 1,040.00 | I12: 1080-1120 | J12: Part Profit of Rs.40/- | K12: =H12-F12 -> 40 | L12: -8.00 | M12: =(K12+L12)/F12 -> 3.20% | N12: Successful | O12: 2020-07-08 | R12: N
A13: 4 | B13: 2020-07-10 | D13: CUMMINSIND | E13: Buy | F13: 396 | G13: 370.00 | H13: 420.00 | I13: 440-450 | J13: Profit of Rs.24/- | K13: 24 | L13: -3.17 | M13: 5.26% | N13: Successful | O13: 2020-08-07 | R13: N
A14: 5 | B14: 2020-07-14 | D14: ENGINERSIN | E14: Buy | F14: 70.5 | G14: 64.50 | H14: 69.25 | I14: 80-84 | J14: Loss of Rs.1.25/- | K14: =H14-F14 -> -1.25 | L14: =(F14*-0.8)/100 -> -0.56 | M14: =(K14+L14)/F14 -> -2.57% | N14: Unsuccessful | O14: 2020-08-03 | R14: H
A15: 6 | B15: 2020-07-22 | D15: NESTLEIND | E15: Buy | F15: 17000-17060 | G15: 15950 | I15: 18500-19000 | J15: Open | R15: H
A16: 7 | B16: 2020-07-27 | D16: EXIDEIND | E16: Buy | F16: 155 | G16: 145 | H16: 155.00 | I16: 175 | J16: Neutral | K16: =H16-F16 -> 0 | L16: =(F16*-0.8)/100 -> -1.24 | M16: =(K16+L16)/F16 -> -0.80% | N16: Neutral | O16: 2020-08-03 | R16: N
A17: 8 | B17: 2020-07-29 | D17: CROMPTON | E17: Buy | F17: 245 | G17: 230.00 | H17: 262.00 | I17: 275 | J17: Profit of Rs.17/- | K17: 17 | L17: -1.96 | M17: 6.14% | N17: Successful | O17: 2020-08-06 | R17: N
A18: 9 | B18: 2020-08-03 | D18: SUNPHARMA | E18: Buy | F18: 517-523 | G18: 478 | I18: 580-600 | J18: Open | R18: H
A19: 10 | B19: 2020-08-05 | D19: BHARATFORG | E19: Buy | F19: 396-400 | G19: 374 | I19: 450 | J19: Open | R19: N
A20: 11 | B20: 2020-08-06 | D20: EXIDEIND | E20: Buy | F20: 153 | G20: 141.00 | H20: 162.50 | I20: 175 | J20: Profit of Rs.9.5/- | K20: =H20-F20 -> 9.5 | L20: =(F20*-0.8)/100 -> -1.22 | M20: =(K20+L20)/F20 -> 5.41% | N20: Successful | O20: 2020-08-07 | R20: N
A24: CLBS = Closing Basis ***
A25: Dividend adjusted <> | F25: Reinitiated $
A26: Part book {} | F26: Revised stoploss #
B28: Momentum Call
A29: Sr.no | B29: Date | D29: Company | E29: Rec | F29: Rec Price | G29: Stop Loss | H29: Call Closed At | I29: Target | J29: Remark | K29: Profit / Loss per Share/Lot | L29: All charges | M29: Net Gain / Loss % | N29: Status | O29: Closed Date
A30: 1 | B30: 2020-07-30 | D30: CONCOR | E30: Buy | F30: 446.5 | G30: 431 | H30: 463 | I30: 475 | J30: Profit of Rs.16.5/- | K30: =H30-F30 -> 16.5 | L30: =(F30*-0.8)/100 -> -3.57 | M30: =(K30+L30)/F30 -> 2.90% | N30: Successful | O30: 2020-08-04 | R30: N
A31: 2 | B31: 2020-07-31 | D31: BEML | E31: Buy | F31: 641 | G31: 625 | H31: 657 | I31: 670-675 | J31: Profit of Rs.16/- | K31: 16 | L31: -5.13 | M31: 1.70% | N31: Successful | O31: 2020-08-04 | R31: N
A32: 3 | B32: 2020-07-31 | D32: BIOCON | E32: Buy | F32: 410 | G32: 399 | H32: 399 | I32: 430 | J32: Loss of Rs.11/- | K32: -11 | L32: -3.28 | M32: -3.48% | N32: Unsuccessful | O32: 2020-08-07 | R32: N
A33: 4 | B33: 2020-08-03 | D33: BHARTIARTL | E33: Buy | F33: 550-552 | G33: 534 | I33: 575-580 | J33: Open | R33: H
A34: 5 | B34: 2020-08-03 | D34: CIPLA | E34: Buy | F34: 705 | G34: 688 | H34: 717 | I34: 730-735 | J34: Profit of Rs.12/- | K34: =H34-F34 -> 12 | L34: =(F34*-0.07)/100 -> -0.49 | M34: =(K34+L34)/F34 -> 1.63% | N34: Successful | O34: 2020-08-03 | R34: H
A35: 6 | B35: 2020-08-03 | D35: TCS | E35: Buy | F35: 2247.5 | G35: 2190 | H35: 2299.5 | I35: 2350 | J35: Profit of Rs.52/- | K35: 52 | L35: =(F35*-0.8)/100 -> -17.98 | M35: 1.51% | N35: Successful | O35: 2020-08-05 | R35: N
A36: 7 | B36: 2020-08-03 | D36: HDFCBANK | E36: Buy | F36: 1001 | G36: 970 | H36: 1034 | I36: 1050-1060 | J36: Profit of Rs.33/- | K36: =H36-F36 -> 33 | L36: =(F36*-0.8)/100 -> -8.01 | M36: =(K36+L36)/F36 -> 2.50% | N36: Successful | O36: 2020-08-04 | R36: H
A37: 8 | B37: 2020-08-04 | D37: PGHL | E37: Buy | F37: 4385 | G37: 4280 | H37: 4490 | I37: 4600-4650 | J37: Profit of Rs.33/- | K37: =H37-F37 -> 105 | L37: =(F37*-0.8)/100 -> -35.08 | M37: =(K37+L37)/F37 -> 1.59% | N37: Successful | O37: 2020-08-07 | R37: H
A38: 9 | B38: 2020-08-05 | D38: HINDUNILVR | E38: Buy | F38: 2197-2203 | G38: 2150 | I38: 2300 | J38: Open | R38: N
A39: 10 | B39: 2020-08-05 | D39: DABUR | E39: Buy | F39: 503-505 | G39: 489 | I39: 520-530 | J39: Open | R39: H
A40: 11 | B40: 2020-08-05 | D40: CENTURYTEX | E40: Buy | F40: 299 | G40: 290 | H40: 304 | I40: 320 | J40: Profit of Rs.5/- | K40: =H40-F40 -> 5 | L40: =(F40*-0.07)/100 -> -0.21 | M40: =(K40+L40)/F40 -> 1.60% | N40: Successful | O40: 2020-08-05 | R40: N
A41: 12 | B41: 2020-08-07 | D41: TATASTEEL | E41: Sell | F41: 402-404 | G41: 415 | I41: 385-380 | J41: Open | R41: H
A42: 13 | B42: 2020-08-07 | D42: FINCABLES | E42: Buy | F42: 272.5-273.5 | G42: 264 | I42: 294 | J42: Open | R42: N
A45: CLBS = Closing Basis *** | H45: *
A46: Dividend adjusted <> | F46: Reinitiated $
F47: Revised stoploss #
A49: Master Trade High Risk
A50: Sr.no | B50: Date | D50: Company | E50: Rec | F50: Rec Price | G50: Stop Loss | H50: Call Closed At | I50: Target | J50: Remark | K50: Profit / Loss per share | L50: All charges | M50: Gain / Loss per Lot | N50: Lot | O50: Status | P50: Closed Date
A51: 1 | B51: 2020-07-31 | D51: AMBUJACEM AUG FUT | E51: Sell | F51: 220.25 | G51: 225 | H51: 224.5 | I51: 210 | J51: Loss of Rs.4.25/- | K51: -4.25 | L51: =(220.25*3000)*0.07% -> 462.525 | M51: =(N51*K51)+L51 -> -12287.475 | N51: 3000 | O51: Unsuccessful | P51: 2020-08-03 | R51: H
A56: Master Trade Medium Risk
A57: Sr.no | B57: Date | D57: Company | E57: Rec | F57: Rec Price | G57: Stop Loss | H57: Call Closed At | I57: Target | J57: Remark | K57: Profit/ Loss per lot | L57: All charges | M57: Gain / Loss per Lot | N57: Lot | O57: Status | P57: Closed Date
A58: 1 | B58: 2020-07-31 | D58: ITC 210 CE AUG | E58: Buy | F58: 2.1-2.3 | G58: 0.5 | I58: 5-6.0 | J58: Open | R58: H
A59: 2 | B59: 2020-08-05 | D59: MARUTI 6000 PE AUG | E59: Buy | F59: 68-72 | I59: 150-170 | J59: Open | R59: H
A62: Techno -Funda (positional)
A63: Sr.no | B63: Date | D63: Company | E63: Rec | F63: Rec Price | G63: Stop Loss*** | H63: Call Closed At | I63: Target | J63: Remark | K63: Profit / Loss per Share | L63: Gain / Loss % | M63: Status | N63: Closed Date | O63: NSE Closed Price
A65: CLBS = Closing Basis *** | F65: Reinitiated $
A66: Dividend adjusted <> | F66: Revised stoploss #
B71: Investment Idea
A72: Sr.no | B72: Date | D72: Company | E72: Rec | F72: Rec Price | G72: Point of Review | H72: Close Rate | I72: Target | J72: Remark | K72: Profit / Loss per Share | L72: Gain / Loss % | M72: Status | N72: Closed Date
A73: 1 | B73: 2013-11-01 | D73: L&T Finance Holding | E73: Accu | F73: 82.00 | G73: - | H73: 100 | I73: 100.00 | J73: Target Achieved | K73: =H73-F73 -> 18.00 | L73: =K73/F73 -> 21.95% | M73: Successful | N73: 2016-10-14
A74: 2 | B74: 2014-06-04 | D74: Finolex Inds | E74: Buy | F74: 257.00 | G74: - | H74: 300 | I74: 300.00 | J74: Target Achieved | K74: 43.00 | L74: 16.73% | M74: Successful | N74: 2014-07-02
A75: 3 | B75: 2014-07-08 | D75: JK Cement | E75: Buy | F75: 393.00 | G75: - | H75: 468 | I75: 468.00 | J75: Target Achieved | K75: 75.00 | L75: 19.08% | M75: Successful | N75: 2014-08-12
A76: 4 | B76: 2014-08-06 | D76: Finolex Cables | E76: Buy | F76: 205.00 | G76: - | H76: 275 | I76: 250.00 | J76: Target Achieved | K76: 70.00 | L76: 34.15% | M76: Successful | N76: 2014-11-19
A77: 5 | B77: 2014-09-04 | D77: Exide Inds | E77: Buy | F77: 162.00 | G77: - | H77: 190 | I77: 190.00 | J77: Target Achieved | K77: 28.00 | L77: 17.28% | M77: Successful | N77: 2015-01-02
A78: 6 | B78: 2014-09-04 | D78: Deepak Nitrite | E78: Buy | F78: 75.00 | G78: - | H78: 91.5 | I78: 95-100 | J78: Profit of Rs.16.50/- | K78: 16.50 | L78: 22.00% | M78: Successful | N78: 2014-11-11
A79: 7 | B79: 2014-10-01 | D79: Mercks | E79: Buy | F79: 850.00 | G79: - | H79: 982.5 | I79: 1050.00 | J79: Profit of Rs.132.50/- | K79: 132.50 | L79: 15.59% | M79: Successful | N79: 2015-02-04
A80: 8 | B80: 2014-10-01 | D80: Grindwell Norton | E80: Buy | F80: 475.00 | G80: - | H80: 515 | I80: 600.00 | J80: Profit of Rs.40/- | K80: 40.00 | L80: 8.42% | M80: Successful | N80: 2014-10-27
A81: 9 | B81: 2014-10-01 | D81: Snowman Logistics | E81: Buy | F81: 86.00 | G81: - | H81: 99 | I81: 140.00 | J81: Profit of Rs.13.00/- | K81: 13.00 | L81: 15.12% | M81: Successful | N81: 2014-10-27
A82: 10 | B82: 2014-10-14 | D82: Birla Corp | E82: Buy | F82: 496.60 | G82: - | H82: 621 | I82: 580.00 | J82: Target Achieved | K82: 124.40 | L82: 25.05% | M82: Successful | N82: 2016-08-23
A83: 11 | B83: 2014-10-14 | D83: Ultratech Cem | E83: Buy | F83: 2481.90 | G83: - | H83: 2840 | I83: 2870.00 | J83: Profit of Rs.358.10/- | K83: 358.10 | L83: 14.43% | M83: Successful | N83: 2015-01-13
A84: 12 | B84: 2014-10-16 | D84: Sintex Inds | E84: Buy | F84: 84.50 | G84: - | H84: 93 | I84: 110.00 | J84: Profit of Rs.8.50/- | K84: 8.50 | L84: 10.06% | M84: Successful | N84: 2014-10-27
A85: 13 | B85: 2014-10-16 | D85: HSIL | E85: Buy | F85: 401.00 | G85: - | H85: 428 | I85: 450.00 | J85: Profit of Rs.27.00/- | K85: 27.00 | L85: 6.73% | M85: Successful | N85: 2015-01-16
A86: 14 | B86: 2014-10-16 | D86: Eveready Inds | E86: Buy | F86: 101.00 | G86: - | H86: 112 | I86: 120.00 | J86: Profit of Rs.11.00/- | K86: 11.00 | L86: 10.89% | M86: Successful | N86: 2014-10-27
A87: 15 | B87: 2014-11-11 | D87: Pennar Inds | E87: Buy | F87: 59.00 | G87: - | H87: 76 | I87: 76.00 | J87: Target Achieved | K87: 17.00 | L87: 28.81% | M87: Successful | N87: 2017-10-24
A88: 16 | B88: 2014-11-11 | D88: Snowman Logistics | E88: Buy | F88: 99.00 | G88: - | H88: 120 | I88: 120.00 | J88: Profit of Rs.21/- | K88: 21.00 | L88: 21.21% | M88: Successful | N88: 2014-11-17
A89: 17 | B89: 2014-11-13 | D89: Dharamsi Morarji Chem | E89: Buy | F89: 22.00 | G89: - | H89: 33.55 | I89: 32.00 | J89: Profit of Rs 11.55/- | K89: 11.55 | L89: 52.50% | M89: Successful | N89: 2015-07-03
A90: 18 | B90: 2014-12-03 | D90: Tatachem | E90: Buy | F90: 440.00 | G90: - | H90: 520 | I90: 520.00 | J90: Profit of Rs 80.00/- | K90: 80.00 | L90: 18.18% | M90: Successful | N90: 2015-07-23
A91: 19 | B91: 2014-12-03 | D91: Advanta | E91: Buy | F91: 360.00 | G91: - | H91: 427 | I91: 425.00 | J91: Profit of Rs.67.00/- | K91: 67.00 | L91: 18.61% | M91: Successful | N91: 2015-02-23
A92: 20 | B92: 2015-01-08 | D92: GDL | E92: Buy | F92: 360.00 | G92: - | H92: 455 | I92: 420.00 | J92: Profit of Rs.95.00/- | K92: 95.00 | L92: 26.39% | M92: Successful | N92: 2015-01-20
A93: 21 | B93: 2015-01-08 | D93: NRB Bearing | E93: Buy | F93: 130.00 | H93: 175.5 | I93: 165.00 | J93: Profit of Rs 45.50/- | K93: 45.50 | L93: 35.00% | M93: Successful | N93: 2017-12-19
A94: 22 | B94: 2015-02-05 | D94: GSFC | E94: Accu | F94: 98.00 | H94: 120 | I94: 120.00 | J94: Target Achieved | K94: 22.00 | L94: 22.45% | M94: Successful | N94: 2017-01-18
A95: 23 | B95: 2015-02-05 | D95: Sundrmfast | E95: Accu | F95: 196.00 | H95: 262 | I95: 255.00 | J95: Target Achieved | K95: 66.00 | L95: 33.67% | M95: Successful | N95: 2016-08-17
A96: 24 | B96: 2015-03-04 | D96: GPPL | E96: Accu | F96: 235 | H96: 77.00 | I96: 280-285 | J96: Loss of Rs.158/- | K96: -158.00 | L96: -67.23% | M96: Unsuccessful | N96: 2019-02-26
A97: 25 | B97: 2015-03-04 | D97: ORIENTCEM | E97: Accu | F97: 185.00 | H97: 224 | I97: 220-225 | J97: Target Achieved | K97: 39.00 | L97: 21.08% | M97: Successful | N97: 2016-10-04
A98: 26 | B98: 2015-03-27 | D98: PFS | E98: Accu | F98: 49.5 | H98: 15.85 | I98: 67.00 | J98: Loss of Rs.33.65/- | K98: -33.65 | L98: -68% | M98: Unsuccessful | N98: 2019-06-11
A99: 27 | B99: 2015-03-30 | D99: Walchandnagar Ind Ltd | E99: Accu | F99: 183.50 | H99: 219 | I99: 218.00 | J99: Profit of Rs.35.50/- | K99: 35.50 | L99: 19.35% | M99: Successful | N99: 2015-04-09
A100: 28 | B100: 2015-04-20 | D100: Kalpataru Power Transmission Ltd | E100: Accu | F100: =(227+237)/2 -> 232.00 | H100: 298 | I100: 298.00 | J100: Target Achieved | K100: 66.00 | L100: 28.45% | M100: Successful | N100: 2017-03-29
A101: 29 | B101: 2015-05-04 | D101: Mastek Ltd | E101: Buy | F101: 385.00 | H101: =212.5+331 -> 543.5 | I101: 510.00 | J101: Profit of Rs 158.50/- | K101: 158.50 | L101: 41.17% | M101: Successful | N101: 2015-08-19
A102: 30 | B102: 2015-05-04 | D102: Suprajit Eng | E102: Buy | F102: 115.50 | H102: 146 | I102: 142.00 | J102: Profit of Rs 30.50/- | K102: 30.50 | L102: 26.41% | M102: Successful | N102: 2015-07-17
A103: 31 | B103: 2015-05-27 | D103: TCI | E103: Buy | F103: 237.50 | H103: 279.5 | I103: 278.00 | J103: Target Achieved | K103: 42.00 | L103: 17.68% | M103: Successful | N103: 2015-08-06
A104: 32 | B104: 2015-06-19 | D104: HSIL | E104: Accu | F104: 340.00 | H104: 448 | I104: 448.00 | J104: Target Achieved | K104: 108.00 | L104: 31.76% | M104: Successful | N104: 2017-10-10
A105: 33 | B105: 2015-07-06 | D105: Capital First | E105: Accu | F105: 390.00 | H105: 460 | I105: 460.00 | J105: Target Achieved | K105: =H105-F105 -> 70.00 | L105: =K105/F105 -> 17.95% | M105: Successful | N105: 2016-04-18
A106: 34 | B106: 2015-07-10 | D106: Dolphin OffShore | E106: Accu | F106: 122.5 | H106: 61.00 | I106: 172.00 | J106: Loss of Rs.61.50/- | K106: -61.50 | L106: -50.20% | M106: Unsuccessful | N106: 2018-08-21
A107: 35 | B107: 2015-08-03 | D107: Allcargo logistics | E107: Accu | F107: 297.50 | H107: 350 | I107: 360.00 | J107: Profit of Rs 52.50/- | K107: 52.50 | L107: 17.65% | M107: Successful | N107: 2015-08-16
A108: 36 | B108: 2015-08-03 | D108: Camline Fine | E108: Accu | F108: 115.50 | H108: 149 | I108: 140.00 | J108: Profit of Rs 33.50/- | K108: 33.50 | L108: 29.00% | M108: Successful | N108: 2017-01-05
A109: 37 | B109: 2015-09-04 | D109: TCI | E109: Accu | F109: 226.00 | H109: 292 | I109: 292.00 | J109: Target Achieved | K109: 66.00 | L109: 29.20% | M109: Successful | N109: 2015-10-09
A110: 38 | B110: 2015-09-07 | D110: Kalpataru Power Transmission Ltd | E110: Accu | F110: 232.50 | H110: 312.5 | I110: 310.00 | J110: Target Achieved | K110: 80.00 | L110: 34.41% | M110: Successful | N110: 2017-03-29
A111: 39 | B111: 2015-09-21 | D111: LLOYD ELECTRIC & ENG LTD | E111: Accu | F111: 196.50 | H111: 238 | I111: 238.00 | J111: Target Achieved | K111: 41.50 | L111: 21.12% | M111: Successful | N111: 2015-10-14
A112: 40 | B112: 2015-09-24 | D112: L&T Finance Holding | E112: Accu | F112: 65.00 | H112: 82 | I112: 82.00 | J112: Target Achieved | K112: 17.00 | L112: 26.15% | M112: Successful | N112: 2016-07-27
A113: 41 | B113: 2015-10-14 | D113: KEC International ltd | E113: Accu | F113: 144.00 | H113: 182.5 | I113: 181.00 | J113: Target Achieved | K113: 38.50 | L113: 26.74% | M113: Successful | N113: 2017-03-23
A114: 42 | B114: 2015-10-14 | D114: Gruh Finance | E114: Accu | F114: 264.00 | H114: 311 | I114: 311.00 | J114: Target Achieved | K114: 47.00 | L114: 17.80% | M114: Successful | N114: 2016-08-22
A115: 43 | B115: 2015-11-10 | D115: Pidilitind | E115: Buy | F115: 549.50 | H115: 630 | I115: 630.00 | J115: Target Achieved | K115: 80.50 | L115: 14.65% | M115: Successful | N115: 2016-02-19
A116: 44 | B116: 2015-12-04 | D116: Zensar Technology | E116: Accu | F116: 1027.50 | H116: 1315 | I116: 1250.00 | J116: Target Achieved | K116: 287.50 | L116: 27.98% | M116: Successful | N116: 2018-05-24
A117: 45 | B117: 2015-12-29 | D117: Vinati Organics Ltd | E117: Accu | F117: 465.00 | H117: 540 | I117: 540.00 | J117: Target Achieved | K117: 75.00 | L117: 16.13% | M117: Successful | N117: 2016-06-09
A118: 46 | B118: 2016-01-11 | D118: GSFC | E118: Buy | F118: 81.00 | H118: 110 | I118: 110.00 | J118: Target Achieved | K118: 29.00 | L118: 35.80% | M118: Successful | N118: 2017-01-10
A119: 47 | B119: 2016-01-13 | D119: SSWL | E119: Buy | F119: 417.50 | H119: 547 | I119: 535.00 | J119: Target Achieved | K119: 129.50 | L119: 31.02% | M119: Successful | N119: 2016-07-27
A120: 48 | B120: 2016-02-08 | D120: Persistent System Ltd | E120: Accu | F120: 650.00 | H120: 800 | I120: 800.00 | J120: Target Achieved | K120: 150.00 | L120: 23.08% | M120: Successful | N120: 2018-02-23
A121: 49 | B121: 2016-03-04 | D121: UPL | E121: Accu | F121: 437.50 | H121: 504.5 | I121: 522.00 | J121: Profit of Rs.67/- | K121: 67.00 | L121: 15.31% | M121: Successful | N121: 2016-04-20
A122: 50 | B122: 2016-03-09 | D122: Ashoka Buildcon Ltd | E122: Accu | F122: 189.50 | H122: 218 | I122: 218.00 | J122: Target Achieved | K122: 28.50 | L122: 15.04% | M122: Successful | N122: 2017-10-26
A123: 51 | B123: 2016-04-11 | D123: PTC INDIA FIN SERV LTD | E123: Accu | F123: 36.5 | H123: 15.85 | I123: 60.00 | J123: Loss of Rs.20.65/- | K123: -20.65 | L123: -56.58% | M123: Unsuccessful | N123: 2019-06-11
A124: 52 | B124: 2016-04-12 | D124: CAMLINFINE $ | E124: Accu | F124: 93.00 | H124: 149 | I124: 140.00 | J124: Profit of Rs 56/- | K124: 56.00 | L124: 60.22% | M124: Successful | N124: 2017-01-05
A125: 53 | B125: 2016-04-12 | D125: Greaves Cotton Ltd. | E125: Accu | F125: 130.00 | H125: 150 | I125: 150-155 | J125: Target Achieved | K125: 20.00 | L125: 15.38% | M125: Successful | N125: 2016-07-13
A126: 54 | B126: 2016-04-13 | D126: DHFL | E126: Accu | F126: 196.00 | H126: 299 | I126: 299.00 | J126: Target Achieved | K126: 103.00 | L126: 52.55% | M126: Successful | N126: 2016-09-07
A127: 55 | B127: 2016-04-13 | D127: Magma | E127: Accu | F127: 88.00 | H127: 103 | I127: 103.00 | J127: Target Achieved | K127: 15.00 | L127: 17.05% | M127: Successful | N127: 2016-06-09
A128: 56 | B128: 2016-05-02 | D128: KEC International ltd $ | E128: Accu | F128: 127.50 | H128: 148 | I128: 148-150 | J128: Target Achieved | K128: =H128-F128 -> 20.50 | L128: =K128/F128 -> 16.08% | M128: Successful | N128: 2016-07-13
A129: 57 | B129: 2016-05-03 | D129: Mindtree | E129: Accu | F129: 675.00 | H129: 815 | I129: 790-800 | J129: Target Achieved | K129: =H129-F129 -> 140.00 | L129: =K129/F129 -> 20.74% | M129: Successful | N129: 2018-02-23
A130: 58 | B130: 2016-06-01 | D130: Atulauto | E130: Accu | F130: 500 | H130: 232.50 | I130: 565-570 | J130: Loss of Rs.267.50 /- | K130: =H130-F130 -> -267.50 | L130: =K130/F130 -> -53.50% | M130: Unsuccessful | N130: 2019-09-27
A131: 59 | B131: 2016-06-06 | D131: TRITURBINE | E131: Accu | F131: 110.00 | H131: 126.5 | I131: 125.00 | J131: Profit of Rs.16.50/- | K131: =H131-F131 -> 16.50 | L131: =K131/F131 -> 15.00% | M131: Successful | N131: 2016-07-01
A132: 60 | B132: 2016-06-17 | D132: Pennar Industries Ltd | E132: Accu | F132: 44.00 | H132: 69.5 | I132: 69.50 | J132: Profit of Rs.25.50/- | K132: =H132-F132 -> 25.50 | L132: =K132/F132 -> 57.95% | M132: Successful | N132: 2017-08-30
A133: 61 | B133: 2016-06-28 | D133: EVEREADY | E133: Accu | F133: 262.50 | H133: 340 | I133: 333.00 | J133: Profit of Rs.77.50/- | K133: 77.50 | L133: 29.52% | M133: Successful | N133: 2017-10-09
A134: 62 | B134: 2016-06-28 | D134: FIEMIND | E134: Accu | F134: 840.00 | H134: 1230 | I134: 1230.00 | J134: Target Achieved | K134: 390.00 | L134: 46.43% | M134: Successful | N134: 2016-10-06
A135: 63 | B135: 2016-07-05 | D135: Bajaj Corp Ltd | E135: Accu | F135: 395 | H135: =(468.5+342.5)/2 -> 405.50 | I135: 510.00 | J135: Profit of Rs.10.50/- | K135: =H135-F135 -> 10.50 | L135: =K135/F135 -> 3% | M135: Neutral | N135: 2019-05-21
A136: 64 | B136: 2016-08-02 | D136: GPPL $ | E136: Buy | F136: =169.5-12.8 -> 156.7 | H136: 77.00 | I136: 198-200 | J136: Loss of Rs.79.7/- | K136: -79.70 | L136: -50.86% | M136: Unsuccessful | N136: 2019-02-26
A137: 65 | B137: 2016-08-04 | D137: WONDERLA HOLIDAYS LTD | E137: Accu | F137: 400 | H137: 305.00 | I137: 475.00 | J137: Loss of Rs.95/- | K137: -95.00 | L137: -23.75% | M137: Unsuccessful | N137: 2019-05-21
A138: 66 | B138: 2016-08-11 | D138: CAMLINFINE | E138: Accu | F138: 86.50 | H138: 130 | I138: 130.00 | J138: Profit of Rs.43.50/- | K138: 43.50 | L138: 50.29% | M138: Successful | N138: 2017-12-22
A139: 67 | B139: 2016-08-18 | D139: GRANULES | E139: Accu | F139: 133.5 | H139: 126.50 | I139: 178.00 | J139: Exit | K139: -7.00 | L139: -5.24% | M139: Unsuccessful | N139: 2016-09-02
A140: 68 | B140: 2016-08-31 | D140: VA TECH WABAG | E140: Accu | F140: 560.00 | H140: 725 | I140: 725.00 | J140: Target Achieved | K140: 165.00 | L140: 29.46% | M140: Successful | N140: 2016-03-27
A141: 69 | B141: 2016-09-01 | D141: SKIPPER LIMITED | E141: Accu | F141: 160.50 | H141: 210 | I141: 210.00 | J141: Target Achieved | K141: 49.50 | L141: 30.84% | M141: Successful | N141: 2017-05-16
A142: 70 | B142: 2016-10-03 | D142: IFBIND | E142: Accu | F142: 430.00 | H142: 596 | I142: 575.00 | J142: Profit of Rs.166/- | K142: 166.00 | L142: 38.60% | M142: Successful | N142: 2017-02-03
A143: 71 | B143: 2016-10-14 | D143: ASIANTILES | E143: Accu | F143: 280.00 | H143: 345 | I143: 345.00 | J143: Target Achieved | K143: =H143-F143 -> 65.00 | L143: =K143/F143 -> 23.21% | M143: Successful | N143: 2017-03-20
A144: 72 | B144: 2016-10-14 | D144: DEEPIND | E144: Accu | F144: 245.00 | H144: 325.5 | I144: 330.00 | J144: Profit of Rs.80.5/- | K144: 80.50 | L144: =K144/F144 -> 32.86% | M144: Successful | N144: 2017-02-03
A145: 73 | B145: 2016-10-17 | D145: DCBBANK | E145: Accu | F145: 125.00 | H145: 160 | I145: 160.00 | J145: Target Achieved | K145: 35.00 | L145: 28.00% | M145: Successful | N145: 2017-03-09
A146: 74 | B146: 2016-10-17 | D146: ORIENTREF | E146: Accu | F146: 114.00 | H146: 145 | I146: 145.00 | J146: Target Achieved | K146: 31.00 | L146: =K146/F146 -> 27.19% | M146: Successful | N146: 2017-05-04
A147: 75 | B147: 2016-10-17 | D147: GANECOS | E147: Accu | F147: 212.00 | H147: 280 | I147: 276.00 | J147: Profit of Rs.68/- | K147: 68.00 | L147: =K147/F147 -> 32.08% | M147: Successful | N147: 2017-05-03
A148: 76 | B148: 2016-11-04 | D148: NBCC | E148: Accu | F148: 155.00 | H148: 210 | I148: 210.00 | J148: Profit of Rs.55/- | K148: 55.00 | L148: =K148/F148 -> 35.48% | M148: Successful | N148: 2017-07-28
A149: 77 | B149: 2016-12-06 | D149: PRECAM | E149: Accu | F149: 150.5 | H149: 72.50 | I149: 174.00 | J149: Loss of Rs.78/- | K149: -78.00 | L149: -51.83% | M149: Unsuccessful | N149: 2018-08-21
A150: 78 | B150: 2016-12-08 | D150: INFRATEL | E150: Accu | F150: 380.00 | H150: 478 | I150: 468.00 | J150: Target Achieved | K150: =H150-F150 -> 98.00 | L150: =K150/F150 -> 25.79% | M150: Successful | N150: 2017-10-17
A151: 79 | B151: 2016-12-30 | D151: GODREJPROP | E151: Accu | F151: 305.00 | H151: 375 | I151: 375.00 | J151: Target Achieved | K151: =H151-F151 -> 70.00 | L151: =K151/F151 -> 22.95% | M151: Successful | N151: 2017-02-02
A152: 80 | B152: 2017-01-04 | D152: DEEPAKNTR | E152: Accu | F152: 99.50 | H152: 158 | I152: 158.00 | J152: Target Achieved | K152: =H152-F152 -> 58.50 | L152: =K152/F152 -> 58.79% | M152: Successful | N152: 2017-06-12
A153: 81 | B153: 2017-01-04 | D153: DEEPAKNTR | E153: Accu | F153: 99.50 | H153: 158 | I153: 158.00 | J153: Target Achieved | K153: 58.50 | L153: 58.79% | M153: Successful | N153: 2017-06-12
A154: 82 | B154: 2017-02-20 | D154: RECLTD | E154: Accu | F154: 140.50 | H154: 220 | I154: 220.00 | J154: Target Achieved | K154: =H154-F154 -> 79.50 | L154: =K154/F154 -> 56.58% | M154: Successful | N154: 2017-05-09
A155: 83 | B155: 2017-02-20 | D155: SUBROS | E155: Accu | F155: 202.50 | H155: 234 | I155: 234.00 | J155: Target Achieved | K155: 31.50 | L155: 15.56% | M155: Successful | N155: 2017-04-11
A156: 84 | B156: 2017-03-24 | D156: VRLLOG | E156: Accu | F156: 300.50 | H156: 417.5 | I156: 420.00 | J156: Profit of Rs.117/- | K156: =H156-F156 -> 117.00 | L156: =K156/F156 -> 38.94% | M156: Successful | N156: 2017-12-01
A157: 85 | B157: 2017-03-24 | D157: FIEMIND | E157: Accu | F157: 850.00 | H157: 1042.5 | I157: 1023.00 | J157: Profit of Rs 192.50/- | K157: 192.50 | L157: 22.65% | M157: Successful | N157: 2017-04-05
A158: 86 | B158: 2017-04-05 | D158: RATNAMANI | E158: Accu | F158: 785.00 | H158: 930 | I158: 920.00 | J158: Profit of Rs.145/- | K158: =H158-F158 -> 145.00 | L158: =K158/F158 -> 18.47% | M158: Successful | N158: 2017-08-29
A159: 87 | B159: 2017-04-06 | D159: ZEEMEDIA | E159: Accu | F159: 40 | H159: 13.10 | I159: 60.00 | J159: Loss of Rs.26.9/- | K159: -26.90 | L159: -67.25% | M159: Unsuccessful | N159: 2018-02-07
A160: 88 | B160: 2017-04-12 | D160: DABUR | E160: Accu | F160: 289.50 | H160: 354 | I160: 360.00 | J160: Profit of Rs.64.5/- | K160: =H160-F160 -> 64.50 | L160: =K160/F160 -> 22.28% | M160: Successful | N160: 2017-11-01
A161: 89 | B161: 2017-04-20 | D161: KPRMILL | E161: Accu | F161: 700.00 | H161: 840 | I161: 840.00 | J161: Profit of Rs.140/- | K161: 140.00 | L161: 20.00% | M161: Successful | N161: 2017-06-07
A162: 90 | B162: 2017-06-01 | D162: ESSELPACK | E162: Accu | F162: 130.00 | H162: 144.25 | I162: 170.00 | J162: Profit of Rs.14.25/- | K162: 14.25 | L162: 10.96% | M162: Successful | N162: 2019-07-29
A163: 91 | B163: 2017-06-15 | D163: KEI | E163: Accu | F163: 214.50 | H163: 262 | I163: 262.00 | J163: Profit of Rs.47.5/- | K163: 47.50 | L163: 22.14% | M163: Successful | N163: 2017-08-30
A164: 92 | B164: 2017-07-17 | D164: MAYURUNIQ | E164: Accu | F164: 370.00 | H164: 447.5 | I164: 450.00 | J164: Target Achieved | K164: 77.50 | L164: 20.95% | M164: Successful | N164: 2017-10-27
A165: 93 | B165: 2017-07-27 | D165: RAMCOCEM | E165: Accu | F165: 657.50 | H165: 825 | I165: 820.00 | J165: Target Achieved | K165: 167.50 | L165: 25.48% | M165: Successful | N165: 2017-12-21
A166: 94 | B166: 2017-08-17 | D166: FINPIPE | E166: Accu | F166: 605.00 | H166: 750 | I166: 750.00 | J166: Profit of Rs.145/- | K166: 145.00 | L166: 23.97% | M166: Successful | N166: 2017-10-19
A167: 95 | B167: 2017-09-01 | D167: SHK | E167: Accu | F167: 255 | H167: 217.25 | I167: 320.00 | J167: Loss of Rs.37.75/- | K167: -37.75 | L167: -15% | M167: Unsuccessful | N167: 2019-07-15
A168: 96 | B168: 2017-09-19 | D168: SKIPPER | E168: Accu | F168: 215.00 | H168: 258 | I168: 258.00 | J168: Target Achieved | K168: 43.00 | L168: 20.00% | M168: Successful | N168: 2017-11-01
A169: 97 | B169: 2017-09-19 | D169: SKIPPER | E169: Accu | F169: 215.00 | H169: 258 | I169: 258.00 | J169: Target Achieved | K169: 43.00 | L169: 20.00% | M169: Successful | N169: 2017-11-01
A170: 98 | B170: 2017-09-20 | D170: CAMLINFINE$ | E170: Accu | F170: 75.00 | H170: 90 | I170: 90.00 | J170: Profit of Rs.15.00/- | K170: =H170-F170 -> 15.00 | L170: =K170/F170 -> 20.00% | M170: Successful | N170: 2017-10-11
A171: 99 | B171: 2017-10-03 | D171: GNA | E171: Accu | F171: 315.00 | H171: 392 | I171: 384.00 | J171: Profit of Rs.77/- | K171: 77.00 | L171: 24.44% | M171: Successful | N171: 2017-10-09
A172: 100 | B172: 2017-10-05 | D172: NOCIL | E172: Accu | F172: 145.00 | H172: 179 | I172: 180.00 | J172: Profit of Rs.34/- | K172: 34.00 | L172: 23.45% | M172: Successful | N172: 2017-10-17
A173: 101 | B173: 2017-10-06 | D173: CENTURYPLY | E173: Accu | F173: 256.00 | H173: 323 | I173: 320.00 | J173: Target Achieved | K173: 67.00 | L173: 26.17% | M173: Successful | N173: 2017-11-28
A174: 102 | B174: 2017-10-09 | D174: EIHOTEL | E174: Accu | F174: 137.50 | H174: 184 | I174: 183.00 | J174: Profit of Rs.46.5/- | K174: 46.50 | L174: 33.82% | M174: Successful | N174: 2018-01-08
A175: 103 | B175: 2017-10-10 | D175: NRBBEARING | E175: Accu | F175: 125.50 | H175: 158 | I175: 155.00 | J175: Profit of Rs.32.5/- | K175: 32.50 | L175: 25.90% | M175: Successful | N175: 2017-11-28
A176: 104 | B176: 2017-10-10 | D176: BOROSIL | E176: Accu | F176: 895.00 | H176: 1122.5 | I176: 1078.00 | J176: Profit of Rs.227.5/- | K176: 227.50 | L176: 25.42% | M176: Successful | N176: 2018-01-17
A177: 105 | B177: 2017-10-12 | D177: CYIENT | E177: Accu | F177: 525.00 | H177: 629 | I177: 629.00 | J177: Target Achieved | K177: 104.00 | L177: 19.81% | M177: Successful | N177: 2018-01-19
A178: 106 | B178: 2017-11-07 | D178: HATSUN | E178: Accu | F178: 740.00 | H178: 892.5 | I178: 900.00 | J178: Profit of Rs.152.5/- | K178: =H178-F178 -> 152.50 | L178: =K178/F178 -> 20.61% | M178: Successful | N178: 2017-11-13
A179: 107 | B179: 2017-12-04 | D179: SANGHIIND | E179: Accu | F179: 118.50 | H179: 143.5 | I179: 145.00 | J179: Profit of Rs.25/- | K179: =H179-F179 -> 25.00 | L179: =K179/F179 -> 21.10% | M179: Successful | N179: 2017-12-28
A180: 108 | B180: 2017-12-21 | D180: KAJARIACER | E180: Accu | F180: 715 | H180: 500.00 | I180: 872.00 | J180: Loss of Rs.215/- | K180: =H180-F180 -> -215.00 | L180: =K180/F180 -> -30.07% | M180: Unsuccessful | N180: 2019-07-24
A181: 109 | B181: 2017-12-29 | D181: GNA | E181: Accu | F181: 435.00 | H181: 542.5 | I181: 539.00 | J181: Target Achieved | K181: 107.50 | L181: 24.71% | M181: Successful | N181: 2018-04-16
A182: 110 | B182: 2017-12-29 | D182: ZENSARTECH | E182: Accu | F182: 885.00 | H182: 1090 | I182: 1084.00 | J182: Target Achieved | K182: 205.00 | L182: 23.16% | M182: Successful | N182: 2018-04-23
A183: 111 | B183: 2018-04-02 | D183: EVERESTIND | E183: Accu | F183: 478.50 | H183: 442 | I183: 613.00 | J183: Loss of Rs.36.50 /- | K183: =H183-F183 -> -36.50 | L183: =K183/F183 -> -7.63% | M183: Unsuccessful | N183: 2019-10-24
A184: 112 | B184: 2018-04-04 | D184: GPPL$ | E184: Accu | F184: =141.5-7.3 -> 134.2 | H184: 77.00 | I184: 180.00 | J184: Loss of Rs.57.2/- | K184: =H184-F184 -> -57.20 | L184: =K184/F184 -> -42.62% | M184: Unsuccessful | N184: 2019-02-26
A185: 113 | B185: 2018-04-19 | D185: MANPASAND | E185: Accu | F185: 430 | H185: 220.00 | I185: 537.00 | J185: Loss of Rs.210/- | K185: =H185-F185 -> -210.00 | L185: =K185/F185 -> -48.84% | M185: Unsuccessful | N185: 2018-06-01
A186: 114 | B186: 2018-04-30 | D186: HEIDELBERG | E186: Accu | F186: 153.50 | H186: 196.00 | I186: 196.00 | J186: Profit of Rs.42.50/- | K186: =H186-F186 -> 42.50 | L186: =K186/F186 -> 28% | M186: Successful | N186: 2019-05-20
A187: 115 | B187: 2018-07-25 | D187: ZEEMEDIA | E187: Accu | F187: 27.5 | H187: 13.10 | I187: 60.00 | J187: Loss of Rs.14.40/- | K187: -14.40 | L187: -52.36% | M187: Unsuccessful | N187: 2018-02-07
A188: 116 | B188: 2018-08-06 | D188: GABRIEL | E188: Accu | F188: 148.5 | H188: 102 | I188: 182.00 | J188: Loss of Rs.46.50/- | K188: =H188-F188 -> -46.50 | L188: =K188/F188 -> -31.31% | M188: Unsuccessful | N188: 2019-07-15
A189: 117 | B189: 2018-08-23 | D189: INDIANHUME | E189: Accu | F189: 285 | H189: 355 | I189: 364.00 | J189: Profit of Rs.70/- | K189: 70.00 | L189: 24.56% | M189: Successful | N189: 2018-12-21
A190: 118 | B190: 2018-08-29 | D190: GRINDWELL | E190: Accu | F190: 525 | H190: 585 | I190: 635.00 | J190: Profit of Rs.60- | K190: =H190-F190 -> 60.00 | L190: =K190/F190 -> 11.43% | M190: Successful | N190: 2019-07-16
A191: 119 | B191: 2018-10-22 | D191: FINPIPE | E191: Accu | F191: 475 | H191: 574 | I191: 570.00 | J191: Target Achieved | K191: 99.00 | L191: 20.84% | M191: Successful | N191: 2018-10-30
A192: 120 | B192: 2018-10-24 | D192: GULFOILLUB | E192: Accu | F192: 707.5 | H192: 872 | I192: 872.00 | J192: Target Achieved | K192: 164.50 | L192: 23.25% | M192: Successful | N192: 2019-01-17
A193: 121 | B193: 2018-10-25 | D193: DBCORP | E193: Accu | F193: 162 | H193: 204 | I193: 209.00 | J193: Profit of Rs.42/- | K193: 42.00 | L193: 25.93% | M193: Successful | N193: 2019-03-15
A194: 122 | B194: 2018-10-26 | D194: RITES | E194: Accu | F194: 240 | H194: 297 | I194: 297.00 | J194: Target Achieved | K194: 57.00 | L194: 23.75% | M194: Successful | N194: 2018-11-13
A195: 123 | B195: 2018-12-05 | D195: BRIGADE | E195: Accu | F195: 202.5 | H195: 255 | I195: 252.00 | J195: Target Achieved | K195: 52.50 | L195: 25.93% | M195: Successful | N195: 2019-03-18
A196: 124 | B196: 2018-12-31 | D196: JKCEMENT | E196: Accu | F196: 710 | H196: 866 | I196: 866.00 | J196: Target Achieved | K196: 156.00 | L196: 21.97% | M196: Successful | N196: 2019-03-29
A197: 125 | B197: 2019-02-26 | D197: MARICO | E197: Accu | F197: 337.25 | H197: 398.5 | I197: 411.00 | J197: Profit of Rs.61.25/- | K197: 61.25 | L197: 18.16% | M197: Successful | N197: 2019-10-22
A198: 126 | B198: 2019-04-04 | D198: ITDCEM | E198: Accu | F198: 130 | H198: 65 | I198: 158.00 | J198: Loss of Rs.65 /- | K198: -65.00 | L198: -50.00% | M198: Unsuccessful | N198: 2019-09-18
A199: 127 | B199: 2017-10-09 | D199: RECLTD | E199: Accu | F199: 141.5 | H199: 183.50 | I199: 210.00 | J199: Part Profit of Rs.42/- | K199: 42.00 | L199: 30% | M199: Successful | N199: 2017-11-03 | R199: V
A200: 128 | B200: 2017-12-05 | D200: ALLCARGO | E200: Accu | F200: 172.00 | H200: 155.25 | I200: 230.00 | J200: Loss of Rs.16.75/- | K200: =H200-F200 -> -16.75 | L200: =K200/F200 -> -9.74% | M200: Unsuccessful | N200: 2019-11-18 | R200: V
A201: 129 | B201: 2018-10-25 | D201: GODREJCP | E201: Accu | F201: 698.50 | H201: 850.00 | I201: 890.00 | J201: Part Profit of Rs.151.50/- | K201: 151.50 | L201: 22% | M201: Successful | N201: 2018-12-19 | R201: V
A202: 130 | B202: 2017-05-22 | D202: GREAVESCOT | E202: Accu | F202: 127.6 | H202: 138.00 | I202: 190.00 | J202: Profit of Rs.10.40 | K202: 10.40 | L202: 8% | M202: Successful | N202: 2019-11-05 | R202: K
A203: 131 | B203: 2018-02-27 | D203: MOLDTKPAC | E203: Accu | F203: 317.00 | I203: 398.00 | J203: Open | M203: Open | R203: K
A204: 132 | B204: 2018-03-05 | D204: LICHSGFIN | E204: Accu | F204: =510-14.4 -> 495.60 | H204: 350 | I204: 672.00 | J204: Loss of Rs.145.60/- | K204: =H204-F204 -> -145.60 | L204: =K204/F204 -> -29.38% | M204: Unsuccessful | N204: 2020-02-26 | R204: K
A205: 133 | B205: 2018-05-17 | D205: PHILIPCARB | E205: Accu | F205: 230.30 | H205: 102.5 | I205: 348.00 | J205: Loss of Rs.127.80/- | K205: =H205-F205 -> -127.80 | L205: =K205/F205 -> -55.49% | M205: Unsuccessful | N205: 2020-03-06 | R205: V
A206: 134 | B206: 2018-06-07 | D206: KEC | E206: Accu | F206: =342.5-5.1 -> 337.40 | I206: 439.00 | J206: Open | M206: Open | R206: K
A207: 135 | B207: 2018-07-04 | D207: ASHOKLEY | E207: Accu | F207: =127.5-5.53 -> 121.97 | I207: 170.00 | J207: Open | M207: Open | R207: K
A208: 136 | B208: 2018-07-13 | D208: FCONSUMER | E208: Accu | F208: 46.50 | H208: 17 | I208: 59.00 | J208: Loss of Rs.29.50/- | K208: =H208-F208 -> -29.50 | L208: =K208/F208 -> -63.44% | M208: Unsuccessful | N208: 2020-02-26 | R208: V
A209: 137 | B209: 2018-10-23 | D209: JKPAPER | E209: Accu | F209: 156.50 | I209: 191.00 | J209: Open | M209: Open | R209: V
A210: 138 | B210: 2018-12-05 | D210: CCL | E210: Accu | F210: 259.50 | I210: 321.00 | J210: Open | M210: Open | R210: K
A211: 139 | B211: 2018-12-05 | D211: VARROC | E211: Accu | F211: 715 | H211: 445 | I211: 840.00 | J211: Loss of Rs.270/- | K211: =H211-F211 -> -270.00 | L211: =K211/F211 -> -37.76% | M211: Unsuccessful | N211: 2019-12-01 | R211: V
A212: 140 | B212: 2019-01-04 | D212: MGL | E212: Accu | F212: 875 | H212: 1165 | I212: 1185.00 | J212: Profit of Rs.290/- | K212: 290.00 | L212: 33.14% | M212: Successful | N212: 2020-01-17 | R212: V
A213: 141 | B213: 2019-04-04 | D213: COCHINSHIP | E213: Accu | F213: =387-14.63 -> 372.37 | H213: 490 | I213: 490.00 | J213: Target Achieved | K213: 117.63 | L213: 31.59% | M213: Successful | N213: 2020-01-20 | R213: V
A214: 142 | B214: 2019-04-23 | D214: MAHINDCIE | E214: Buy | F214: 220 | H214: 127.5 | I214: 284.00 | J214: Loss of Rs.92.50/- | K214: -92.50 | L214: -42.05% | M214: Unsuccessful | N214: 2020-03-06 | R214: V
A215: 143 | B215: 2019-06-06 | D215: RADICO | E215: Buy | F215: 332.8 | H215: 405 | I215: 419.00 | J215: Profit of Rs.72.20/- | K215: =H215-F215 -> 72.20 | L215: =K215/F215 -> 21.69% | M215: Successful | N215: 2020-01-30 | R215: V
A216: 144 | B216: 2019-06-25 | D216: M&MFIN | E216: Accu | F216: 386 | H216: 395.00 | I216: 452.00 | J216: Profit of Rs.9/- | K216: =H216-F216 -> 9.00 | L216: =K216/F216 -> 2% | M216: Neutral | N216: 2020-02-07 | R216: V
A217: 145 | B217: 2019-08-30 | D217: INDHOTEL | E217: Accu | F217: 135-140 | I217: 190.00 | J217: Open | M217: Open | R217: V
A218: 146 | B218: 2019-09-23 | D218: KNRCON | E218: Accu | F218: 235 | H218: 295 | I218: 296.00 | J218: Profit of Rs.60/- | K218: =H218-F218 -> 60.00 | L218: =K218/F218 -> 25.53% | M218: Successful | N218: 2020-01-14 | R218: V
A219: 147 | B219: 2019-10-14 | D219: KEC$ | E219: Accu | F219: 277.5 | H219: 333 | I219: 333.00 | J219: Profit of Rs.55.50/- | K219: =H219-F219 -> 55.50 | L219: =K219/F219 -> 20.00% | M219: Successful | N219: 2020-01-16 | R219: K
A220: 148 | B220: 2019-10-14 | D220: MGL$ | E220: Accu | F220: 930 | H220: 1165 | I220: 1200.00 | J220: Profit of Rs.235/- | K220: =H220-F220 -> 235.00 | L220: =K220/F220 -> 25.27% | M220: Successful | N220: 2020-01-17 | R220: K
A221: 149 | B221: 2019-10-15 | D221: JKPAPER$ | E221: Accu | F221: 111.00 | I221: 141.00 | J221: Open | M221: Open | R221: V
A222: 150 | B222: 2019-10-15 | D222: RADICO$ | E222: Accu | F222: 296.00 | H222: 370 | I222: 370.00 | J222: Target Achieved | K222: =H222-F222 -> 74.00 | L222: =K222/F222 -> 25.00% | M222: Successful | N222: 2020-01-23 | R222: K
... 5 more rows

Sheet Sheet2 (hidden)
A1: SYMBOL | B1: SERIES | C1: OPEN | D1: HIGH | E1: LOW | F1: CLOSE | G1: LAST | H1: PREVCLOSE | I1: TOTTRDQTY | J1: TOTTRDVAL | K1: TIMESTAMP | L1: TOTALTRADES | M1: ISIN | N1: ISIN
A2: 20MICRONS | B2: EQ | C2: 27.9 | D2: 29 | E2: 25.9 | F2: 26.2 | G2: 25.9 | H2: 27.5 | I2: 80527 | J2: 2193820.55 | K2: 2020-04-08 | L2: 1099 | M2: INE144J01027
A3: 21STCENMGM | B3: EQ | C3: 10.15 | D3: 10.5 | E3: 10.1 | F3: 10.4 | G3: 10.5 | H3: 10.3 | I3: 3205 | J3: 32728.25 | K3: 2020-04-08 | L3: 28 | M3: INE253B01015
A4: 3IINFOTECH | B4: EQ | C4: 1.35 | D4: 1.35 | E4: 1.2 | F4: 1.25 | G4: 1.25 | H4: 1.35 | I4: 2793301 | J4: 3578364.95 | K4: 2020-04-08 | L4: 46535 | M4: INE748C01020
A5: 3MINDIA | B5: EQ | C5: 18950 | D5: 19170 | E5: 18155.05 | F5: 18318.2 | G5: 18270 | H5: 18755.7 | I5: 9926 | J5: 183605811.2 | K5: 2020-04-08 | L5: 4453 | M5: INE470A01017
A6: 3PLAND | B6: EQ | C6: 3.7 | D6: 3.85 | E6: 3.7 | F6: 3.85 | G6: 3.85 | H6: 3.7 | I6: 406 | J6: 1557.85 | K6: 2020-04-08 | L6: 9 | M6: INE105C01023
A7: 5PAISA | B7: EQ | C7: 119.95 | D7: 134 | E7: 115 | F7: 123.35 | G7: 120.5 | H7: 116.4 | I7: 6500 | J7: 793277.05 | K7: 2020-04-08 | L7: 265 | M7: INE618L01018
A8: 63MOONS | B8: EQ | C8: 50.7 | D8: 55.45 | E8: 50.7 | F8: 53.7 | G8: 53.55 | H8: 50.7 | I8: 72221 | J8: 3890984.7 | K8: 2020-04-08 | L8: 3078 | M8: INE111B01023
A9: A2ZINFRA | B9: EQ | C9: 3.15 | D9: 3.25 | E9: 3.1 | F9: 3.15 | G9: 3.15 | H9: 3.15 | I9: 116011 | J9: 367778.85 | K9: 2020-04-08 | L9: 227 | M9: INE619I01012
A10: AARTIDRUGS | B10: EQ | C10: 627 | D10: 669.3 | E10: 605 | F10: 631.6 | G10: 625 | H10: 607.85 | I10: 75970 | J10: 48223549.15 | K10: 2020-04-08 | L10: 5720 | M10: INE767A01016
A11: AARTIIND | B11: EQ | C11: 839.95 | D11: 909.8 | E11: 818 | F11: 854.9 | G11: 864 | H11: 830.7 | I11: 477805 | J11: 419092386.9 | K11: 2020-04-08 | L11: 50045 | M11: INE769A01020
A12: AARVEEDEN | B12: EQ | C12: 8.95 | D12: 9.25 | E12: 7.85 | F12: 8.35 | G12: 8.45 | H12: 8.1 | I12: 9251 | J12: 77100.1 | K12: 2020-04-08 | L12: 94 | M12: INE273D01019
A13: AAVAS | B13: EQ | C13: 1101 | D13: 1183 | E13: 1101 | F13: 1135.2 | G13: 1137 | H13: 1142.35 | I13: 24179 | J13: 28073100.85 | K13: 2020-04-08 | L13: 3631 | M13: INE216P01012
A14: ABAN | B14: EQ | C14: 15.7 | D14: 16.2 | E14: 15.7 | F14: 16.2 | G14: 16.2 | H14: 15.45 | I14: 37609 | J14: 608439.6 | K14: 2020-04-08 | L14: 288 | M14: INE421A01028
A15: ABB | B15: EQ | C15: 935 | D15: 965 | E15: 910 | F15: 930.7 | G15: 928 | H15: 931.35 | I15: 87757 | J15: 82358527.9 | K15: 2020-04-08 | L15: 4699 | M15: INE117A01022
A16: ABBOTINDIA | B16: EQ | C16: 16799.45 | D16: 18250 | E16: 16750 | F16: 17481.1 | G16: 17488 | H16: 16699.7 | I16: 57991 | J16: 1023745502 | K16: 2020-04-08 | L16: 21022 | M16: INE358A01014
A17: ABCAPITAL | B17: EQ | C17: 45 | D17: 47.9 | E17: 44.25 | F17: 45.6 | G17: 45.7 | H17: 45.1 | I17: 1253267 | J17: 57952493.6 | K17: 2020-04-08 | L17: 7317 | M17: INE674K01013
A18: ABFRL | B18: EQ | C18: 148 | D18: 152.8 | E18: 146.75 | F18: 149 | G18: 148 | H18: 149.85 | I18: 416099 | J18: 62371769.1 | K18: 2020-04-08 | L18: 10148 | M18: INE647O01011
A19: ABSLNN50ET | B19: EQ | C19: 244 | D19: 248 | E19: 210 | F19: 235 | G19: 235 | H19: 244 | I19: 56 | J19: 12779.4 | K19: 2020-04-08 | L19: 13 | M19: INF209KB1B87
A20: ACC | B20: EQ | C20: 1000 | D20: 1029.9 | E20: 941.25 | F20: 956.05 | G20: 958 | H20: 1009.95 | I20: 2153627 | J20: 2101320389 | K20: 2020-04-08 | L20: 79728 | M20: INE012A01025
A21: ACCELYA | B21: EQ | C21: 874.3 | D21: 886 | E21: 862 | F21: 880.45 | G21: 879.95 | H21: 874.3 | I21: 10865 | J21: 9557704.55 | K21: 2020-04-08 | L21: 923 | M21: INE793A01012
A22: ACE | B22: EQ | C22: 32.75 | D22: 35.2 | E22: 32.55 | F22: 33.25 | G22: 33.35 | H22: 32.95 | I22: 244708 | J22: 8296578.4 | K22: 2020-04-08 | L22: 2925 | M22: INE731H01025
A23: ADANIENT | B23: EQ | C23: 136.85 | D23: 147.15 | E23: 134.9 | F23: 138.1 | G23: 137.5 | H23: 138.15 | I23: 3237290 | J23: 456492273.1 | K23: 2020-04-08 | L23: 23696 | M23: INE423A01024
A24: ADANIGAS | B24: EQ | C24: 93.9 | D24: 96.35 | E24: 90.5 | F24: 90.8 | G24: 90.65 | H24: 94 | I24: 1888606 | J24: 176837924.4 | K24: 2020-04-08 | L24: 14517 | M24: INE399L01023
A25: ADANIGREEN | B25: EQ | C25: 166.85 | D25: 166.85 | E25: 162 | F25: 166.45 | G25: 166.85 | H25: 158.95 | I25: 702014 | J25: 116248737 | K25: 2020-04-08 | L25: 10187 | M25: INE364U01010
A26: ADANIPORTS | B26: EQ | C26: 248 | D26: 255.85 | E26: 242.75 | F26: 250.85 | G26: 249.7 | H26: 248.1 | I26: 6897883 | J26: 1724830525 | K26: 2020-04-08 | L26: 81499 | M26: INE742F01042
A27: ADANIPOWER | B27: EQ | C27: 28.65 | D27: 31.15 | E27: 27.5 | F27: 28.95 | G27: 28.85 | H27: 28.8 | I27: 12308064 | J27: 361987996.9 | K27: 2020-04-08 | L27: 23153 | M27: INE814H01011
A28: ADANITRANS | B28: EQ | C28: 196.65 | D28: 202 | E28: 190 | F28: 193.65 | G28: 193.5 | H28: 198.3 | I28: 306320 | J28: 59783940.3 | K28: 2020-04-08 | L28: 4236 | M28: INE931S01010
A29: ADFFOODS | B29: EQ | C29: 187.85 | D29: 192.25 | E29: 184 | F29: 187.7 | G29: 187.3 | H29: 183.1 | I29: 22107 | J29: 4185556.05 | K29: 2020-04-08 | L29: 773 | M29: INE982B01019
A30: ADHUNIKIND | B30: EQ | C30: 13.3 | D30: 13.3 | E30: 13.3 | F30: 13.3 | G30: 13.3 | H30: 12.7 | I30: 5518 | J30: 73389.4 | K30: 2020-04-08 | L30: 21 | M30: INE452L01012
A31: ADLABS | B31: EQ | C31: 2.75 | D31: 2.85 | E31: 2.75 | F31: 2.85 | G31: 2.85 | H31: 2.75 | I31: 19360 | J31: 54965.35 | K31: 2020-04-08 | L31: 72 | M31: INE172N01012
A32: ADORWELD | B32: EQ | C32: 195.7 | D32: 201.9 | E32: 193.95 | F32: 195.1 | G32: 194.45 | H32: 196.75 | I32: 1438 | J32: 283768.75 | K32: 2020-04-08 | L32: 94 | M32: INE045A01017
A33: ADROITINFO | B33: EQ | C33: 5.5 | D33: 5.7 | E33: 5.45 | F33: 5.7 | G33: 5.7 | H33: 5.7 | I33: 691 | J33: 3857 | K33: 2020-04-08 | L33: 25 | M33: INE737B01033
A34: ADSL | B34: EQ | C34: 13.05 | D34: 13.2 | E34: 12.4 | F34: 12.5 | G34: 12.45 | H34: 12.7 | I34: 16203 | J34: 205559.25 | K34: 2020-04-08 | L34: 143 | M34: INE102I01027
A35: ADVANIHOTR | B35: EQ | C35: 30.1 | D35: 33 | E35: 30.1 | F35: 31.8 | G35: 31.5 | H35: 30.65 | I35: 5340 | J35: 169948.95 | K35: 2020-04-08 | L35: 193 | M35: INE199C01026
A36: ADVENZYMES | B36: EQ | C36: 140.2 | D36: 146.55 | E36: 137.95 | F36: 139.2 | G36: 139.75 | H36: 136.55 | I36: 77441 | J36: 11046136.15 | K36: 2020-04-08 | L36: 1990 | M36: INE837H01020
A37: AEGISCHEM | B37: EQ | C37: 150 | D37: 158.5 | E37: 147.1 | F37: 156.35 | G37: 156.05 | H37: 144.1 | I37: 175470 | J37: 27041093.9 | K37: 2020-04-08 | L37: 4268 | M37: INE208C01025
A38: AFFLE | B38: BE | C38: 1050 | D38: 1053.45 | E38: 1030 | F38: 1053.45 | G38: 1053.45 | H38: 1003.3 | I38: 8191 | J38: 8619737.5 | K38: 2020-04-08 | L38: 470 | M38: INE00WC01019
A39: AGARIND | B39: EQ | C39: 49.8 | D39: 52.85 | E39: 49.05 | F39: 52.25 | G39: 52.5 | H39: 49.95 | I39: 7826 | J39: 404450.25 | K39: 2020-04-08 | L39: 207 | M39: INE204E01012
A40: AGCNET | B40: BE | C40: 224.35 | D40: 235.55 | E40: 213.25 | F40: 234.7 | G40: 235.55 | H40: 224.35 | I40: 2524 | J40: 573063 | K40: 2020-04-08 | L40: 70 | M40: INE676A01019
A41: AGRITECH | B41: EQ | C41: 23.95 | D41: 23.95 | E41: 23.95 | F41: 23.95 | G41: 23.95 | H41: 22.85 | I41: 504 | J41: 12070.8 | K41: 2020-04-08 | L41: 18 | M41: INE449G01018
A42: AGROPHOS | B42: EQ | C42: 5.7 | D42: 5.7 | E42: 5.2 | F42: 5.7 | G42: 5.7 | H42: 5.45 | I42: 40596 | J42: 227201.55 | K42: 2020-04-08 | L42: 340 | M42: INE740V01019
A43: AHLEAST | B43: EQ | C43: 133.15 | D43: 141.85 | E43: 128.15 | F43: 131.55 | G43: 128.35 | H43: 131.5 | I43: 3303 | J43: 439718.1 | K43: 2020-04-08 | L43: 350 | M43: INE926K01017
A44: AHLUCONT | B44: EQ | C44: 145.95 | D44: 148 | E44: 136 | F44: 146.3 | G44: 148 | H44: 144.1 | I44: 153910 | J44: 21077811.2 | K44: 2020-04-08 | L44: 995 | M44: INE758C01029
A45: AHLWEST | B45: EQ | C45: 289.9 | D45: 289.9 | E45: 270.95 | F45: 275 | G45: 275 | H45: 277 | I45: 238 | J45: 67030 | K45: 2020-04-08 | L45: 91 | M45: INE915K01010
A46: AIAENG | B46: EQ | C46: 1259.45 | D46: 1291 | E46: 1229 | F46: 1255.85 | G46: 1268 | H46: 1249.9 | I46: 73842 | J46: 92756824.05 | K46: 2020-04-08 | L46: 10503 | M46: INE212H01026
A47: AIONJSW | B47: EQ | C47: 10.9 | D47: 11.1 | E47: 10.2 | F47: 11.1 | G47: 11.1 | H47: 10.6 | I47: 90347 | J47: 996144.95 | K47: 2020-04-08 | L47: 180 | M47: INE743C01021
A48: AIRAN | B48: EQ | C48: 9.8 | D48: 10.3 | E48: 9.75 | F48: 9.8 | G48: 9.75 | H48: 9.85 | I48: 1826 | J48: 18127.1 | K48: 2020-04-08 | L48: 25 | M48: INE645W01026
A49: AJANTPHARM | B49: EQ | C49: 1325.75 | D49: 1450 | E49: 1325 | F49: 1367.5 | G49: 1363 | H49: 1340.2 | I49: 166582 | J49: 233126032.5 | K49: 2020-04-08 | L49: 8748 | M49: INE031B01049
A50: AJMERA | B50: EQ | C50: 64.95 | D50: 70.5 | E50: 64.6 | F50: 68.4 | G50: 69.9 | H50: 64.65 | I50: 31766 | J50: 2167947.5 | K50: 2020-04-08 | L50: 909 | M50: INE298G01027
A51: AKASH | B51: BE | C51: 90 | D51: 90 | E51: 90 | F51: 90 | G51: 90 | H51: 90.95 | I51: 500 | J51: 45000 | K51: 2020-04-08 | L51: 1 | M51: INE737W01013
A52: AKSHARCHEM | B52: EQ | C52: 174.75 | D52: 177.6 | E52: 165.3 | F52: 169.7 | G52: 167.15 | H52: 165.25 | I52: 3130 | J52: 531878.25 | K52: 2020-04-08 | L52: 293 | M52: INE542B01011
A53: AKSHOPTFBR | B53: EQ | C53: 3.6 | D53: 3.6 | E53: 3.6 | F53: 3.6 | G53: 3.6 | H53: 3.45 | I53: 27750 | J53: 99900 | K53: 2020-04-08 | L53: 45 | M53: INE523B01011
A54: AKZOINDIA | B54: EQ | C54: 2084.95 | D54: 2133 | E54: 2030 | F54: 2047.9 | G54: 2040 | H54: 2086.75 | I54: 12835 | J54: 26789836.95 | K54: 2020-04-08 | L54: 2242 | M54: INE133A01011
A55: ALANKIT | B55: EQ | C55: 12.9 | D55: 12.9 | E55: 12.9 | F55: 12.9 | G55: 12.9 | H55: 12.3 | I55: 14247 | J55: 183786.3 | K55: 2020-04-08 | L55: 75 | M55: INE914E01040
A56: ALBERTDAVD | B56: EQ | C56: 338.8 | D56: 364.75 | E56: 338.8 | F56: 353.15 | G56: 352 | H56: 341.15 | I56: 24334 | J56: 8579416.55 | K56: 2020-04-08 | L56: 1220 | M56: INE155C01010
A57: ALCHEM | B57: BE | C57: 1.4 | D57: 1.4 | E57: 1.4 | F57: 1.4 | G57: 1.4 | H57: 1.35 | I57: 8608 | J57: 12051.2 | K57: 2020-04-08 | L57: 18 | M57: INE964B01033
A58: ALEMBICLTD | B58: EQ | C58: 43.7 | D58: 48.05 | E58: 39.7 | F58: 45.05 | G58: 45.5 | H58: 42.15 | I58: 695128 | J58: 31779132.75 | K58: 2020-04-08 | L58: 6991 | M58: INE426A01027
A59: ALICON | B59: EQ | C59: 195.95 | D59: 196 | E59: 181.05 | F59: 184.75 | G59: 184 | H59: 189.25 | I59: 3909 | J59: 722322.5 | K59: 2020-04-08 | L59: 123 | M59: INE062D01024
A60: ALKALI | B60: EQ | C60: 29.95 | D60: 31.75 | E60: 29.65 | F60: 31.75 | G60: 31.75 | H60: 28.9 | I60: 9346 | J60: 289594.95 | K60: 2020-04-08 | L60: 349 | M60: INE773I01017
A61: ALKEM | B61: EQ | C61: 2360 | D61: 2736.5 | E61: 2326.2 | F61: 2671.15 | G61: 2639 | H61: 2324.05 | I61: 371259 | J61: 967330461.6 | K61: 2020-04-08 | L61: 44106 | M61: INE540L01014
A62: ALKYLAMINE | B62: EQ | C62: 1236.6 | D62: 1398 | E62: 1222.2 | F62: 1334.05 | G62: 1334 | H62: 1232.45 | I62: 41501 | J62: 55061848.25 | K62: 2020-04-08 | L62: 3832 | M62: INE150B01021
A63: ALLCARGO | B63: EQ | C63: 63.05 | D63: 65.85 | E63: 63 | F63: 65.7 | G63: 65.85 | H63: 59.9 | I63: 300794 | J63: 19569467.05 | K63: 2020-04-08 | L63: 3098 | M63: INE418H01029
A64: ALLSEC | B64: EQ | C64: 131.7 | D64: 131.9 | E64: 129.35 | F64: 131.9 | G64: 131.9 | H64: 125.65 | I64: 1335 | J64: 175836.2 | K64: 2020-04-08 | L64: 37 | M64: INE835G01018
A65: ALOKINDS | B65: EQ | C65: 4.7 | D65: 4.7 | E65: 4.7 | F65: 4.7 | G65: 4.7 | H65: 4.5 | I65: 1698707 | J65: 7983922.9 | K65: 2020-04-08 | L65: 397 | M65: INE270A01029
A66: ALPA | B66: EQ | C66: 18.55 | D66: 20.15 | E66: 17.8 | F66: 20.15 | G66: 20.15 | H66: 16.8 | I66: 131233 | J66: 2593665.9 | K66: 2020-04-08 | L66: 858 | M66: INE385I01010
A67: ALPHAGEO | B67: EQ | C67: 126 | D67: 137.5 | E67: 126 | F67: 134.45 | G67: 133.3 | H67: 129.7 | I67: 22258 | J67: 2986986.5 | K67: 2020-04-08 | L67: 783 | M67: INE137C01018
A68: ALPSINDUS | B68: EQ | C68: 0.65 | D68: 0.75 | E68: 0.65 | F68: 0.75 | G68: 0.7 | H68: 0.7 | I68: 25369 | J68: 18108.8 | K68: 2020-04-08 | L68: 33 | M68: INE093B01015
A69: AMARAJABAT | B69: EQ | C69: 501.1 | D69: 513.65 | E69: 488.45 | F69: 502.05 | G69: 504.9 | H69: 501.1 | I69: 755312 | J69: 378881689.9 | K69: 2020-04-08 | L69: 18162 | M69: INE885A01032
A70: AMBER | B70: EQ | C70: 1189.9 | D70: 1199 | E70: 1072 | F70: 1108.05 | G70: 1109.25 | H70: 1189.9 | I70: 93512 | J70: 105805912.2 | K70: 2020-04-08 | L70: 14252 | M70: INE371P01015
A71: AMBIKCO | B71: EQ | C71: 539.25 | D71: 559 | E71: 531.05 | F71: 545.2 | G71: 536.4 | H71: 537.25 | I71: 3988 | J71: 2168349.4 | K71: 2020-04-08 | L71: 406 | M71: INE540G01014
A72: AMBUJACEM | B72: EQ | C72: 158.5 | D72: 159.5 | E72: 148.2 | F72: 149.7 | G72: 149.55 | H72: 159 | I72: 10421438 | J72: 1597618498 | K72: 2020-04-08 | L72: 84074 | M72: INE079A01024
A73: AMDIND | B73: EQ | C73: 9.9 | D73: 10.5 | E73: 9.5 | F73: 9.8 | G73: 9.55 | H73: 10 | I73: 17757 | J73: 177659.15 | K73: 2020-04-08 | L73: 707 | M73: INE005I01014
A74: AMJLAND | B74: EQ | C74: 14.3 | D74: 14.95 | E74: 13.7 | F74: 14 | G74: 14 | H74: 14.25 | I74: 12523 | J74: 176065.3 | K74: 2020-04-08 | L74: 106 | M74: INE606A01024
A75: AMRUTANJAN | B75: EQ | C75: 326 | D75: 352 | E75: 320.1 | F75: 345.45 | G75: 344.3 | H75: 324 | I75: 278725 | J75: 95586275.35 | K75: 2020-04-08 | L75: 9075 | M75: INE098F01031
A76: ANANTRAJ | B76: EQ | C76: 19.55 | D76: 20.15 | E76: 18.6 | F76: 18.75 | G76: 18.8 | H76: 19.55 | I76: 184694 | J76: 3509270.8 | K76: 2020-04-08 | L76: 1012 | M76: INE242C01024
A77: ANDHRACEMT | B77: EQ | C77: 1.8 | D77: 1.9 | E77: 1.7 | F77: 1.85 | G77: 1.9 | H77: 1.75 | I77: 105618 | J77: 196578.05 | K77: 2020-04-08 | L77: 227 | M77: INE666E01012
A78: ANDHRAPAP | B78: EQ | C78: 148.55 | D78: 148.55 | E78: 147 | F78: 148.55 | G78: 148.55 | H78: 141.5 | I78: 2622 | J78: 389210.05 | K78: 2020-04-08 | L78: 70 | M78: INE435A01028
A79: ANDHRSUGAR | B79: EQ | C79: 206.95 | D79: 212 | E79: 195 | F79: 206.05 | G79: 205.85 | H79: 203.55 | I79: 35494 | J79: 7286675.25 | K79: 2020-04-08 | L79: 1328 | M79: INE715B01013
A80: ANIKINDS | B80: EQ | C80: 7.25 | D80: 7.25 | E80: 6.65 | F80: 6.8 | G80: 6.8 | H80: 6.95 | I80: 4994 | J80: 34701.65 | K80: 2020-04-08 | L80: 35 | M80: INE087B01017
A81: ANKITMETAL | B81: EQ | C81: 0.4 | D81: 0.45 | E81: 0.35 | F81: 0.45 | G81: 0.45 | H81: 0.4 | I81: 64810 | J81: 27213.05 | K81: 2020-04-08 | L81: 29 | M81: INE106I01010
A82: ANSALAPI | B82: EQ | C82: 3.65 | D82: 3.8 | E82: 3.65 | F82: 3.8 | G82: 3.8 | H82: 3.65 | I82: 3974 | J82: 15023.75 | K82: 2020-04-08 | L82: 28 | M82: INE436A01026
A83: ANSALHSG | B83: EQ | C83: 3 | D83: 3 | E83: 2.8 | F83: 2.9 | G83: 2.9 | H83: 2.9 | I83: 31510 | J83: 91846.6 | K83: 2020-04-08 | L83: 64 | M83: INE880B01015
A84: ANUP | B84: EQ | C84: 304.75 | D84: 323.7 | E84: 303.1 | F84: 313.2 | G84: 313.05 | H84: 312.75 | I84: 11786 | J84: 3732090.6 | K84: 2020-04-08 | L84: 460 | M84: INE294Z01018
A85: APARINDS | B85: EQ | C85: 296.95 | D85: 300.35 | E85: 290.6 | F85: 295.85 | G85: 295.5 | H85: 296.05 | I85: 6051 | J85: 1806443.45 | K85: 2020-04-08 | L85: 427 | M85: INE372A01015
A86: APCL | B86: EQ | C86: 102.4 | D86: 102.4 | E86: 95.2 | F86: 97.35 | G86: 97 | H86: 98.5 | I86: 3739 | J86: 362867.6 | K86: 2020-04-08 | L86: 79 | M86: INE071F01012
A87: APCOTEXIND | B87: EQ | C87: 87.55 | D87: 94.85 | E87: 86 | F87: 87.5 | G87: 86.1 | H87: 87.45 | I87: 13115 | J87: 1175575.25 | K87: 2020-04-08 | L87: 323 | M87: INE116A01032
A88: APEX | B88: EQ | C88: 190 | D88: 201.65 | E88: 185.1 | F88: 201.65 | G88: 201.65 | H88: 183.35 | I88: 141806 | J88: 27768799.35 | K88: 2020-04-08 | L88: 3293 | M88: INE346W01013
A89: APLAPOLLO | B89: EQ | C89: 1245 | D89: 1274 | E89: 1220 | F89: 1259.5 | G89: 1258 | H89: 1231.75 | I89: 21152 | J89: 26442272.1 | K89: 2020-04-08 | L89: 3032 | M89: INE702C01019
A90: APLLTD | B90: EQ | C90: 630 | D90: 702.65 | E90: 615.5 | F90: 640.85 | G90: 626 | H90: 610.2 | I90: 540272 | J90: 353935242.1 | K90: 2020-04-08 | L90: 30323 | M90: INE901L01018
A91: APOLLO | B91: EQ | C91: 45.5 | D91: 56 | E91: 45.25 | F91: 54.3 | G91: 53.55 | H91: 46.7 | I91: 68951 | J91: 3631629.4 | K91: 2020-04-08 | L91: 1694 | M91: INE713T01010
A92: APOLLOHOSP | B92: EQ | C92: 1225.9 | D92: 1338.4 | E92: 1211 | F92: 1263.95 | G92: 1261 | H92: 1225.95 | I92: 2070270 | J92: 2654141027 | K92: 2020-04-08 | L92: 156926 | M92: INE437A01024
A93: APOLLOPIPE | B93: EQ | C93: 279.5 | D93: 304 | E93: 262.95 | F93: 281.3 | G93: 281 | H93: 280.1 | I93: 12940 | J93: 3607793.25 | K93: 2020-04-08 | L93: 543 | M93: INE126J01016
A94: APOLLOTYRE | B94: EQ | C94: 83.5 | D94: 87.15 | E94: 82 | F94: 83.4 | G94: 83.15 | H94: 83.5 | I94: 2950752 | J94: 248872037.1 | K94: 2020-04-08 | L94: 19408 | M94: INE438A01022
A95: APOLSINHOT | B95: EQ | C95: 460.35 | D95: 460.4 | E95: 421.1 | F95: 439.8 | G95: 436 | H95: 438.6 | I95: 694 | J95: 306874.65 | K95: 2020-04-08 | L95: 84 | M95: INE451F01024
A96: APTECHT | B96: EQ | C96: 85.3 | D96: 87.7 | E96: 83.55 | F96: 84.6 | G96: 84.3 | H96: 85.3 | I96: 106721 | J96: 9133416.7 | K96: 2020-04-08 | L96: 2385 | M96: INE266F01018
A97: ARCHIDPLY | B97: EQ | C97: 16.55 | D97: 17 | E97: 16.45 | F97: 16.85 | G97: 16.95 | H97: 16.75 | I97: 4083 | J97: 68300.2 | K97: 2020-04-08 | L97: 63 | M97: INE877I01016
A98: ARCHIES | B98: EQ | C98: 9.4 | D98: 9.5 | E98: 9 | F98: 9.05 | G98: 9.15 | H98: 9.45 | I98: 24343 | J98: 224667.6 | K98: 2020-04-08 | L98: 150 | M98: INE731A01020
A99: ARCOTECH | B99: EQ | C99: 0.9 | D99: 0.95 | E99: 0.85 | F99: 0.9 | G99: 0.9 | H99: 0.9 | I99: 51482 | J99: 47500.05 | K99: 2020-04-08 | L99: 77 | M99: INE574I01035
A100: ARENTERP | B100: EQ | C100: 12.65 | D100: 12.65 | E100: 12.05 | F100: 12.05 | G100: 12.05 | H100: 12.65 | I100: 63 | J100: 765.15 | K100: 2020-04-08 | L100: 4 | M100: INE610C01014
A101: ARIES | B101: EQ | C101: 44.4 | D101: 47.6 | E101: 42.65 | F101: 43.6 | G101: 44 | H101: 44.4 | I101: 50875 | J101: 2250478.25 | K101: 2020-04-08 | L101: 1080 | M101: INE298I01015
A102: ARIHANT | B102: EQ | C102: 12.05 | D102: 12.55 | E102: 11.6 | F102: 12.15 | G102: 12.5 | H102: 12.05 | I102: 964 | J102: 11418.15 | K102: 2020-04-08 | L102: 27 | M102: INE413D01011
A103: ARIHANTSUP | B103: EQ | C103: 21.4 | D103: 21.45 | E103: 19.45 | F103: 19.5 | G103: 21 | H103: 20.45 | I103: 4362 | J103: 85414.05 | K103: 2020-04-08 | L103: 80 | M103: INE643K01018
A104: ARMANFIN | B104: EQ | C104: 340 | D104: 373.2 | E104: 337.7 | F104: 373.05 | G104: 373.2 | H104: 355.45 | I104: 50867 | J104: 18465582.65 | K104: 2020-04-08 | L104: 911 | M104: INE109C01017
A105: AROGRANITE | B105: EQ | C105: 21.95 | D105: 24.5 | E105: 20.85 | F105: 24.2 | G105: 24.5 | H105: 22.35 | I105: 26052 | J105: 602565.3 | K105: 2020-04-08 | L105: 183 | M105: INE210C01013
A106: ARROWGREEN | B106: BE | C106: 33.55 | D106: 35 | E106: 33.45 | F106: 33.45 | G106: 33.45 | H106: 33.85 | I106: 5735 | J106: 195198.5 | K106: 2020-04-08 | L106: 32 | M106: INE570D01018
A107: ARSHIYA | B107: EQ | C107: 7.1 | D107: 7.6 | E107: 7.1 | F107: 7.6 | G107: 7.6 | H107: 7.25 | I107: 23178 | J107: 175819.45 | K107: 2020-04-08 | L107: 63 | M107: INE968D01022
A108: ARSSINFRA | B108: EQ | C108: 11.25 | D108: 12.3 | E108: 10.9 | F108: 11.8 | G108: 11.85 | H108: 11.15 | I108: 16388 | J108: 189874.85 | K108: 2020-04-08 | L108: 107 | M108: INE267I01010
A109: ARTEMISMED | B109: EQ | C109: 140 | D109: 147 | E109: 136.3 | F109: 138 | G109: 137 | H109: 139.15 | I109: 1729 | J109: 245138.4 | K109: 2020-04-08 | L109: 31 | M109: INE025R01013
A110: ARVIND | B110: EQ | C110: 23.5 | D110: 24.4 | E110: 22.45 | F110: 23.75 | G110: 23.75 | H110: 22.2 | I110: 2137547 | J110: 50521243.45 | K110: 2020-04-08 | L110: 7057 | M110: INE034A01011
A111: ARVINDFASN | B111: EQ | C111: 139.8 | D111: 141.9 | E111: 132.2 | F111: 133.8 | G111: 134.75 | H111: 139.85 | I111: 46445 | J111: 6387304.5 | K111: 2020-04-08 | L111: 1243 | M111: INE955V01021
A112: ARVSMART | B112: EQ | C112: 64.05 | D112: 67 | E112: 64 | F112: 65.4 | G112: 65.5 | H112: 65 | I112: 10000 | J112: 656036.65 | K112: 2020-04-08 | L112: 320 | M112: INE034S01021
A113: ASAHIINDIA | B113: EQ | C113: 152 | D113: 158 | E113: 147.05 | F113: 155.5 | G113: 152.35 | H113: 153.2 | I113: 5605 | J113: 858978.65 | K113: 2020-04-08 | L113: 218 | M113: INE439A01020
A114: ASAHISONG | B114: EQ | C114: 80.8 | D114: 88.95 | E114: 80.05 | F114: 85.25 | G114: 86 | H114: 80.9 | I114: 8055 | J114: 692533.2 | K114: 2020-04-08 | L114: 314 | M114: INE228I01012
A115: ASAL | B115: EQ | C115: 14.8 | D115: 14.9 | E115: 14.5 | F115: 14.5 | G115: 14.5 | H115: 14.25 | I115: 8037 | J115: 118819.3 | K115: 2020-04-08 | L115: 36 | M115: INE900C01027
A116: ASALCBR | B116: EQ | C116: 164.9 | D116: 175 | E116: 158 | F116: 165.7 | G116: 165 | H116: 162.9 | I116: 31033 | J116: 5116102.05 | K116: 2020-04-08 | L116: 970 | M116: INE073G01016
A117: ASHAPURMIN | B117: EQ | C117: 22.1 | D117: 22.1 | E117: 22.05 | F117: 22.1 | G117: 22.1 | H117: 21.05 | I117: 8770 | J117: 193792 | K117: 2020-04-08 | L117: 43 | M117: INE348A01023
A118: ASHIANA | B118: EQ | C118: 52.9 | D118: 52.9 | E118: 49.1 | F118: 49.95 | G118: 50 | H118: 50 | I118: 69042 | J118: 3480534.3 | K118: 2020-04-08 | L118: 621 | M118: INE365D01021
A119: ASHIMASYN | B119: EQ | C119: 3.9 | D119: 3.9 | E119: 3.9 | F119: 3.9 | G119: 3.9 | H119: 3.55 | I119: 28914 | J119: 112764.6 | K119: 2020-04-08 | L119: 46 | M119: INE440A01010
A120: ASHOKA | B120: EQ | C120: 38.35 | D120: 42.7 | E120: 37.8 | F120: 42.7 | G120: 42.7 | H120: 38.85 | I120: 1577514 | J120: 65134101.3 | K120: 2020-04-08 | L120: 8475 | M120: INE442H01029
A121: ASHOKLEY | B121: EQ | C121: 39.85 | D121: 47.8 | E121: 38.75 | F121: 43.85 | G121: 43.6 | H121: 39.85 | I121: 76817768 | J121: 3355417806 | K121: 2020-04-08 | L121: 169889 | M121: INE208A01029
A122: ASIANHOTNR | B122: EQ | C122: 70 | D122: 71.8 | E122: 66 | F122: 71.55 | G122: 71.5 | H122: 65.4 | I122: 4982 | J122: 349215.55 | K122: 2020-04-08 | L122: 198 | M122: INE363A01022
A123: ASIANPAINT | B123: EQ | C123: 1623.8 | D123: 1687.8 | E123: 1600 | F123: 1608.95 | G123: 1608 | H123: 1623.8 | I123: 2382216 | J123: 3911658954 | K123: 2020-04-08 | L123: 101146 | M123: INE021A01026
A124: ASIANTILES | B124: EQ | C124: 156 | D124: 162.9 | E124: 155 | F124: 157.6 | G124: 156.5 | H124: 157.65 | I124: 19917 | J124: 3151924.4 | K124: 2020-04-08 | L124: 431 | M124: INE022I01019
A125: ASPINWALL | B125: EQ | C125: 93 | D125: 98.7 | E125: 83.55 | F125: 93 | G125: 93 | H125: 90 | I125: 413 | J125: 38837.15 | K125: 2020-04-08 | L125: 20 | M125: INE991I01015
A126: ASTEC | B126: EQ | C126: 450.65 | D126: 465.05 | E126: 440 | F126: 460.05 | G126: 460.3 | H126: 443.9 | I126: 5283 | J126: 2392645.5 | K126: 2020-04-08 | L126: 494 | M126: INE563J01010
A127: ASTERDM | B127: EQ | C127: 96 | D127: 103.5 | E127: 93.8 | F127: 99.25 | G127: 99 | H127: 94.55 | I127: 996205 | J127: 98978623.7 | K127: 2020-04-08 | L127: 4570 | M127: INE914M01019
A128: ASTRAL | B128: EQ | C128: 962 | D128: 986 | E128: 952 | F128: 955.45 | G128: 954 | H128: 973.85 | I128: 59212 | J128: 57381672.65 | K128: 2020-04-08 | L128: 7623 | M128: INE006I01046
A129: ASTRAMICRO | B129: EQ | C129: 56.9 | D129: 62.55 | E129: 55.85 | F129: 61.7 | G129: 62.55 | H129: 56.9 | I129: 253097 | J129: 15146656.55 | K129: 2020-04-08 | L129: 1961 | M129: INE386C01029
A130: ASTRAZEN | B130: EQ | C130: 2700 | D130: 2830 | E130: 2544 | F130: 2561.6 | G130: 2549 | H130: 2693.65 | I130: 38510 | J130: 104113109 | K130: 2020-04-08 | L130: 6647 | M130: INE203A01020
A131: ASTRON | B131: EQ | C131: 26.15 | D131: 29.9 | E131: 25.3 | F131: 27.5 | G131: 27.8 | H131: 27.65 | I131: 61618 | J131: 1693449.45 | K131: 2020-04-08 | L131: 1743 | M131: INE646X01014
A132: ATFL | B132: EQ | C132: 479.65 | D132: 499 | E132: 475 | F132: 481.55 | G132: 475 | H132: 479.65 | I132: 6104 | J132: 2975754.9 | K132: 2020-04-08 | L132: 411 | M132: INE209A01019
A133: ATLANTA | B133: EQ | C133: 3 | D133: 3.15 | E133: 3 | F133: 3.15 | G133: 3.15 | H133: 3 | I133: 8624 | J133: 26936.35 | K133: 2020-04-08 | L133: 28 | M133: INE285H01022
A134: ATLASCYCLE | B134: BE | C134: 30 | D134: 31.5 | E134: 29.5 | F134: 30.7 | G134: 30.7 | H134: 30 | I134: 2000 | J134: 60118.65 | K134: 2020-04-08 | L134: 42 | M134: INE446A01025
A135: ATNINTER | B135: BE | C135: 0.1 | D135: 0.1 | E135: 0.1 | F135: 0.1 | G135: 0.1 | H135: 0.1 | I135: 12716 | J135: 1271.6 | K135: 2020-04-08 | L135: 5 | M135: INE803A01027
A136: ATUL | B136: EQ | C136: 3930 | D136: 4005 | E136: 3908.35 | F136: 3951.85 | G136: 3954.95 | H136: 3927.1 | I136: 76768 | J136: 304824820.4 | K136: 2020-04-08 | L136: 11635 | M136: INE100A01010
A137: ATULAUTO | B137: EQ | C137: 151.35 | D137: 154.05 | E137: 146.8 | F137: 153.45 | G137: 153.95 | H137: 146.75 | I137: 13699 | J137: 2093863.3 | K137: 2020-04-08 | L137: 810 | M137: INE951D01028
A138: AUBANK | B138: EQ | C138: 461.2 | D138: 490 | E138: 457 | F138: 480.3 | G138: 473 | H138: 478.4 | I138: 1791057 | J138: 837589012.6 | K138: 2020-04-08 | L138: 59410 | M138: INE949L01017
A139: AURIONPRO | B139: EQ | C139: 41.75 | D139: 43.7 | E139: 40 | F139: 42.9 | G139: 42.9 | H139: 40.95 | I139: 8828 | J139: 376649.05 | K139: 2020-04-08 | L139: 213 | M139: INE132H01018
A140: AUROPHARMA | B140: EQ | C140: 432.5 | D140: 476.3 | E140: 426.3 | F140: 438.15 | G140: 438.9 | H140: 445.7 | I140: 13186213 | J140: 5925576015 | K140: 2020-04-08 | L140: 205238 | M140: INE406A01037
A141: AUSOMENT | B141: EQ | C141: 26.1 | D141: 26.1 | E141: 26.1 | F141: 26.1 | G141: 26.1 | H141: 25 | I141: 100 | J141: 2610 | K141: 2020-04-08 | L141: 1 | M141: INE218C01016
A142: AUTOAXLES | B142: EQ | C142: 413 | D142: 423.5 | E142: 398.05 | F142: 413.45 | G142: 416 | H142: 399.3 | I142: 5448 | J142: 2244823.45 | K142: 2020-04-08 | L142: 638 | M142: INE449A01011
A143: AUTOIND | B143: EQ | C143: 11.3 | D143: 11.35 | E143: 11.1 | F143: 11.35 | G143: 11.35 | H143: 10.85 | I143: 9358 | J143: 105383.05 | K143: 2020-04-08 | L143: 68 | M143: INE718H01014
A144: AUTOLITIND | B144: EQ | C144: 13.2 | D144: 14.4 | E144: 13.2 | F144: 13.8 | G144: 13.9 | H144: 13.75 | I144: 4699 | J144: 65525.8 | K144: 2020-04-08 | L144: 68 | M144: INE448A01013
A145: AVADHSUGAR | B145: EQ | C145: 143.55 | D145: 143.55 | E145: 143.55 | F145: 143.55 | G145: 143.55 | H145: 136.75 | I145: 13174 | J145: 1891127.7 | K145: 2020-04-08 | L145: 157 | M145: INE349W01017
A146: AVANTIFEED | B146: EQ | C146: 311 | D146: 341.55 | E146: 310.5 | F146: 341.35 | G146: 341.55 | H146: 310.5 | I146: 748404 | J146: 246839085.1 | K146: 2020-04-08 | L146: 23272 | M146: INE871C01038
A147: AVTNPL | B147: EQ | C147: 25.45 | D147: 27.8 | E147: 24.25 | F147: 27.25 | G147: 27 | H147: 25.05 | I147: 213540 | J147: 5643644.4 | K147: 2020-04-08 | L147: 1601 | M147: INE488D01021
A148: AXISBANK | B148: EQ | C148: 383.75 | D148: 427.7 | E148: 373.5 | F148: 391.35 | G148: 391.4 | H148: 388.85 | I148: 64930772 | J148: 2.575974593e+10 | K148: 2020-04-08 | L148: 769506 | M148: INE238A01034
A149: AXISCADES | B149: EQ | C149: 30.9 | D149: 31.5 | E149: 28.65 | F149: 31.4 | G149: 31.5 | H149: 30 | I149: 39670 | J149: 1232336.75 | K149: 2020-04-08 | L149: 621 | M149: INE555B01013
A150: AXISGOLD | B150: EQ | C150: 3969.9 | D150: 3989 | E150: 3925 | F150: 3973.3 | G150: 3983 | H150: 3919.55 | I150: 701 | J150: 2769851.6 | K150: 2020-04-08 | L150: 206 | M150: INF846K01347
A151: AXISNIFTY | B151: EQ | C151: 1000.01 | D151: 1000.01 | E151: 1000.01 | F151: 1000.01 | G151: 1000.01 | H151: 1007 | I151: 2 | J151: 2000.02 | K151: 2020-04-08 | L151: 1 | M151: INF846K01ZL0
A152: AYMSYNTEX | B152: EQ | C152: 15.5 | D152: 16.8 | E152: 15.5 | F152: 16.5 | G152: 16.5 | H152: 16.1 | I152: 2637 | J152: 43548.55 | K152: 2020-04-08 | L152: 26 | M152: INE193B01039
A153: BAFNAPH | B153: EQ | C153: 16.05 | D153: 16.05 | E153: 16.05 | F153: 16.05 | G153: 16.05 | H153: 15.3 | I153: 272 | J153: 4365.6 | K153: 2020-04-08 | L153: 8 | M153: INE878I01022
A154: BAGFILMS | B154: BE | C154: 1.75 | D154: 1.8 | E154: 1.75 | F154: 1.8 | G154: 1.8 | H154: 1.75 | I154: 3861 | J154: 6912.3 | K154: 2020-04-08 | L154: 20 | M154: INE116D01028
A155: BAJAJ-AUTO | B155: EQ | C155: 2180 | D155: 2383.45 | E155: 2168.55 | F155: 2241.7 | G155: 2260 | H155: 2280.05 | I155: 840875 | J155: 1933266167 | K155: 2020-04-08 | L155: 59866 | M155: INE917I01010
A156: BAJAJCON | B156: EQ | C156: 136 | D156: 148.65 | E156: 135.1 | F156: 137.95 | G156: 138 | H156: 138.15 | I156: 1031633 | J156: 145711259.1 | K156: 2020-04-08 | L156: 26102 | M156: INE933K01021
A157: BAJAJELEC | B157: EQ | C157: 277.3 | D157: 294.5 | E157: 277.3 | F157: 287.8 | G157: 289 | H157: 277.3 | I157: 58251 | J157: 16797537.55 | K157: 2020-04-08 | L157: 3821 | M157: INE193E01025
A158: BAJAJFINSV | B158: EQ | C158: 4575 | D158: 4950 | E158: 4537.8 | F158: 4608.5 | G158: 4604 | H158: 4724.9 | I158: 1113057 | J158: 5259493342 | K158: 2020-04-08 | L158: 158158 | M158: INE918I01018
A159: BAJAJHIND | B159: EQ | C159: 3.05 | D159: 3.05 | E159: 3.05 | F159: 3.05 | G159: 3.05 | H159: 2.95 | I159: 80900 | J159: 246745 | K159: 2020-04-08 | L159: 110 | M159: INE306A01021
A160: BAJAJHLDNG | B160: EQ | C160: 2027.95 | D160: 2073.85 | E160: 1925 | F160: 2024.75 | G160: 2025 | H160: 1978.9 | I160: 25453 | J160: 51363834.45 | K160: 2020-04-08 | L160: 6198 | M160: INE118A01012
A161: BAJFINANCE | B161: EQ | C161: 2184 | D161: 2374 | E161: 2144.15 | F161: 2332.9 | G161: 2329 | H161: 2253.35 | I161: 9109346 | J161: 2.088826331e+10 | K161: 2020-04-08 | L161: 516967 | M161: INE296A01024
A162: BALAJITELE | B162: EQ | C162: 43 | D162: 45 | E162: 40.8 | F162: 41.9 | G162: 42.15 | H162: 43.75 | I162: 194912 | J162: 8414452.4 | K162: 2020-04-08 | L162: 1677 | M162: INE794B01026
A163: BALAMINES | B163: EQ | C163: 277 | D163: 296 | E163: 260.4 | F163: 283.65 | G163: 284.45 | H163: 271.2 | I163: 70594 | J163: 20058887.5 | K163: 2020-04-08 | L163: 2337 | M163: INE050E01027
A164: BALAXI | B164: BE | C164: 82.7 | D164: 82.7 | E164: 75.05 | F164: 79.9 | G164: 79.9 | H164: 79 | I164: 1047 | J164: 78761.9 | K164: 2020-04-08 | L164: 24 | M164: INE618N01014
A165: BALKRISHNA | B165: EQ | C165: 8.6 | D165: 8.8 | E165: 8.35 | F165: 8.8 | G165: 8.8 | H165: 8.4 | I165: 7860 | J165: 67624.35 | K165: 2020-04-08 | L165: 49 | M165: INE875R01011
A166: BALKRISIND | B166: EQ | C166: 822 | D166: 862 | E166: 815 | F166: 821.35 | G166: 818.3 | H166: 823.55 | I166: 444079 | J166: 371870250.3 | K166: 2020-04-08 | L166: 24462 | M166: INE787D01026
A167: BALLARPUR | B167: EQ | C167: 0.4 | D167: 0.4 | E167: 0.3 | F167: 0.35 | G167: 0.35 | H167: 0.35 | I167: 9769871 | J167: 3419941.15 | K167: 2020-04-08 | L167: 514 | M167: INE294A01037
A168: BALMLAWRIE | B168: EQ | C168: 84 | D168: 87.9 | E168: 81 | F168: 84.75 | G168: 85.65 | H168: 85.5 | I168: 202053 | J168: 17357055.25 | K168: 2020-04-08 | L168: 3105 | M168: INE164A01016
A169: BALPHARMA | B169: EQ | C169: 38.9 | D169: 41.7 | E169: 38.9 | F169: 41.7 | G169: 41.7 | H169: 37.95 | I169: 40933 | J169: 1688199.5 | K169: 2020-04-08 | L169: 518 | M169: INE083D01012
A170: BALRAMCHIN | B170: EQ | C170: 123.85 | D170: 126.4 | E170: 123 | F170: 126.4 | G170: 126.4 | H170: 120.4 | I170: 642515 | J170: 80884980.2 | K170: 2020-04-08 | L170: 7125 | M170: INE119A01028
A171: BANARBEADS | B171: EQ | C171: 30.25 | D171: 32.5 | E171: 29.6 | F171: 29.75 | G171: 29.75 | H171: 31.5 | I171: 160 | J171: 4873.85 | K171: 2020-04-08 | L171: 26 | M171: INE655B01011
A172: BANARISUG | B172: EQ | C172: 900 | D172: 925 | E172: 880 | F172: 886.1 | G172: 880 | H172: 893.1 | I172: 410 | J172: 368979.1 | K172: 2020-04-08 | L172: 94 | M172: INE459A01010
A173: BANCOINDIA | B173: EQ | C173: 65.45 | D173: 67.5 | E173: 64.1 | F173: 65.95 | G173: 66 | H173: 65.45 | I173: 40062 | J173: 2654130.6 | K173: 2020-04-08 | L173: 1013 | M173: INE213C01025
A174: BANDHANBNK | B174: EQ | C174: 167.95 | D174: 209.05 | E174: 167.5 | F174: 193.75 | G174: 195.25 | H174: 167.25 | I174: 30692919 | J174: 5833285762 | K174: 2020-04-08 | L174: 332020 | M174: INE545U01014
A175: BANG | B175: EQ | C175: 12.05 | D175: 13.1 | E175: 11.9 | F175: 13.1 | G175: 13.1 | H175: 12.5 | I175: 1590 | J175: 20489 | K175: 2020-04-08 | L175: 31 | M175: INE863I01016
A176: BANKBARODA | B176: EQ | C176: 48 | D176: 51.5 | E176: 47.3 | F176: 48.35 | G176: 48.45 | H176: 48.15 | I176: 27159204 | J176: 1340103716 | K176: 2020-04-08 | L176: 77070 | M176: INE028A01039
A177: BANKBEES | B177: EQ | C177: 190 | D177: 205.4 | E177: 186.06 | F177: 191.28 | G177: 191.4 | H177: 192.12 | I177: 676832 | J177: 131368353.2 | K177: 2020-04-08 | L177: 10023 | M177: INF204KB15I9
A178: BANKINDIA | B178: EQ | C178: 32.7 | D178: 34.75 | E178: 32.5 | F178: 33.35 | G178: 33.25 | H178: 32.95 | I178: 1236627 | J178: 41574499.75 | K178: 2020-04-08 | L178: 6257 | M178: INE084A01016
A179: BANSWRAS | B179: EQ | C179: 77.4 | D179: 77.4 | E179: 70.2 | F179: 71.15 | G179: 70.2 | H179: 73.75 | I179: 22922 | J179: 1667255.55 | K179: 2020-04-08 | L179: 137 | M179: INE629D01012
A180: BASF | B180: EQ | C180: 1154 | D180: 1154 | E180: 1105 | F180: 1119.95 | G180: 1120.5 | H180: 1138.25 | I180: 26139 | J180: 29425244.35 | K180: 2020-04-08 | L180: 2640 | M180: INE373A01013
A181: BASML | B181: EQ | C181: 74.05 | D181: 84 | E181: 74.05 | F181: 80 | G181: 80 | H181: 78.7 | I181: 1648 | J181: 135366.45 | K181: 2020-04-08 | L181: 154 | M181: INE186H01014
A182: BATAINDIA | B182: EQ | C182: 1246.5 | D182: 1339 | E182: 1228 | F182: 1240.05 | G182: 1238.95 | H182: 1246.4 | I182: 1346088 | J182: 1726485633 | K182: 2020-04-08 | L182: 66274 | M182: INE176A01028
A183: BAYERCROP | B183: EQ | C183: 3500 | D183: 3946.6 | E183: 3499.3 | F183: 3818.15 | G183: 3772.15 | H183: 3510 | I183: 32833 | J183: 125437264 | K183: 2020-04-08 | L183: 6737 | M183: INE462A01022
A184: BBL | B184: EQ | C184: 590 | D184: 621.25 | E184: 590 | F184: 613.05 | G184: 621.25 | H184: 589.55 | I184: 9335 | J184: 5684085.45 | K184: 2020-04-08 | L184: 804 | M184: INE464A01028
A185: BBTC | B185: EQ | C185: 810 | D185: 854.3 | E185: 774 | F185: 784.2 | G185: 787.95 | H185: 788.4 | I185: 76612 | J185: 62014517.65 | K185: 2020-04-08 | L185: 5281 | M185: INE050A01025
A186: BCG | B186: EQ | C186: 3.6 | D186: 3.65 | E186: 3.55 | F186: 3.65 | G186: 3.65 | H186: 3.5 | I186: 305718 | J186: 1113234.95 | K186: 2020-04-08 | L186: 149 | M186: INE425B01027
A187: BCP | B187: EQ | C187: 10.75 | D187: 10.75 | E187: 10.5 | F187: 10.75 | G187: 10.75 | H187: 10.25 | I187: 8192 | J187: 87934.6 | K187: 2020-04-08 | L187: 28 | M187: INE905P01028
A188: BDL | B188: EQ | C188: 191 | D188: 229 | E188: 188.2 | F188: 218.2 | G188: 216.4 | H188: 191.4 | I188: 448405 | J188: 97968192.25 | K188: 2020-04-08 | L188: 13672 | M188: INE171Z01018
A189: BEARDSELL | B189: EQ | C189: 6.7 | D189: 7.3 | E189: 6.7 | F189: 7.3 | G189: 7.3 | H189: 7.05 | I189: 1250 | J189: 8417 | K189: 2020-04-08 | L189: 4 | M189: INE520H01022
A190: BEDMUTHA | B190: EQ | C190: 12.8 | D190: 13.05 | E190: 12.45 | F190: 12.45 | G190: 12.45 | H190: 13.1 | I190: 19584 | J190: 245429.15 | K190: 2020-04-08 | L190: 32 | M190: INE844K01012
A191: BEL | B191: EQ | C191: 69 | D191: 71.3 | E191: 65.1 | F191: 66.4 | G191: 66.5 | H191: 69 | I191: 16699885 | J191: 1138705070 | K191: 2020-04-08 | L191: 69587 | M191: INE263A01024
A192: BEML | B192: EQ | C192: 492 | D192: 523.5 | E192: 492 | F192: 503.6 | G192: 503 | H192: 475.95 | I192: 890527 | J192: 458689246.6 | K192: 2020-04-08 | L192: 23670 | M192: INE258A01016
A193: BEPL | B193: EQ | C193: 31 | D193: 32.75 | E193: 30.3 | F193: 31.25 | G193: 31.6 | H193: 30.25 | I193: 333595 | J193: 10578641.1 | K193: 2020-04-08 | L193: 3321 | M193: INE922A01025
A194: BERGEPAINT | B194: EQ | C194: 479.9 | D194: 487.65 | E194: 460 | F194: 463.5 | G194: 462 | H194: 479.2 | I194: 1729062 | J194: 817908730.6 | K194: 2020-04-08 | L194: 32950 | M194: INE463A01038
A195: BFINVEST | B195: EQ | C195: 258 | D195: 268.8 | E195: 244.6 | F195: 246.3 | G195: 248.95 | H195: 257.45 | I195: 4938 | J195: 1236639.95 | K195: 2020-04-08 | L195: 244 | M195: INE878K01010
A196: BFUTILITIE | B196: EQ | C196: 158.35 | D196: 158.35 | E196: 151.05 | F196: 154.05 | G196: 153.7 | H196: 150.85 | I196: 138134 | J196: 21700813.75 | K196: 2020-04-08 | L196: 1649 | M196: INE243D01012
A197: BGRENERGY | B197: EQ | C197: 22.1 | D197: 22.85 | E197: 20.95 | F197: 21.1 | G197: 21.15 | H197: 22.2 | I197: 172282 | J197: 3763089.75 | K197: 2020-04-08 | L197: 1108 | M197: INE661I01014
A198: BHAGERIA | B198: EQ | C198: 85 | D198: 91.05 | E198: 80.65 | F198: 81.6 | G198: 82.3 | H198: 84.2 | I198: 34795 | J198: 2944870.7 | K198: 2020-04-08 | L198: 925 | M198: INE354C01027
A199: BHAGYANGR | B199: EQ | C199: 14.05 | D199: 15.2 | E199: 14 | F199: 14.4 | G199: 14.4 | H199: 14.4 | I199: 1338 | J199: 19622.25 | K199: 2020-04-08 | L199: 50 | M199: INE458B01036
A200: BHAGYAPROP | B200: EQ | C200: 18 | D200: 20 | E200: 18 | F200: 20 | G200: 20 | H200: 19 | I200: 999 | J200: 19011 | K200: 2020-04-08 | L200: 5 | M200: INE363W01018
... 1470 more rows

Sheet Sheet1 (hidden)

Sheet Sheet3 (hidden)

Sheet Sheet4 (hidden)

Sheet Sheet5 (hidden)
